Body Name,Vendor Number,Vendor Name,Cost Centre,Service Label,BV Code,Amount,Period
Slough Borough Council,806064,24 X 7 Buckinghamshire Ltd,F123,Education & Inclusion,Supplies and Services,"1,325.70",Jul-22
Slough Borough Council,806064,24 X 7 Buckinghamshire Ltd,F123,Education & Inclusion,Supplies and Services,747.32,Jul-22
Slough Borough Council,806064,24 X 7 Buckinghamshire Ltd,F123,Education & Inclusion,Supplies and Services,"1,450.44",Jul-22
Slough Borough Council,806064,24 X 7 Buckinghamshire Ltd,F123,Education & Inclusion,Supplies and Services,"2,112.76",Jul-22
Slough Borough Council,806064,24 X 7 Buckinghamshire Ltd,F123,Education & Inclusion,Supplies and Services,"1,592.40",Jul-22
Slough Borough Council,804709,247 Careservices Ltd,M44D,Adult Social Care Operations,Supplies and Services,"11,520.00",Jul-22
Slough Borough Council,804709,247 Careservices Ltd,M44D,Adult Social Care Operations,Supplies and Services,"9,360.00",Jul-22
Slough Borough Council,1869,3Ms Gold Services Limited,P006,Capital,Capital Charges,"8,530.46",Jul-22
Slough Borough Council,806901,4way Consulting Ltd,P240,Capital,Capital Charges,"1,390.37",Jul-22
Slough Borough Council,3963,50:50 Sync Cic,F449,Education & Inclusion,Supplies and Services,"2,550.00",Jul-22
Slough Borough Council,1055,A J Chapman,F123,Education & Inclusion,Supplies and Services,"1,435.50",Jul-22
Slough Borough Council,1055,A J Chapman,F123,Education & Inclusion,Supplies and Services,"3,960.00",Jul-22
Slough Borough Council,1055,A J Chapman,F123,Education & Inclusion,Supplies and Services,"1,435.50",Jul-22
Slough Borough Council,536,Ability Housing Association,M42E,Adult Social Care Operations,Supplies and Services,"2,759.87",Jul-22
Slough Borough Council,536,Ability Housing Association,M42E,Adult Social Care Operations,Supplies and Services,"3,377.93",Jul-22
Slough Borough Council,536,Ability Housing Association,M42E,Adult Social Care Operations,Supplies and Services,"2,546.08",Jul-22
Slough Borough Council,536,Ability Housing Association,M42E,Adult Social Care Operations,Supplies and Services,"2,643.26",Jul-22
Slough Borough Council,536,Ability Housing Association,M42E,Adult Social Care Operations,Supplies and Services,"2,604.38",Jul-22
Slough Borough Council,536,Ability Housing Association,M42E,Adult Social Care Operations,Supplies and Services,"2,448.90",Jul-22
Slough Borough Council,536,Ability Housing Association,M42E,Adult Social Care Operations,Supplies and Services,"1,399.37",Jul-22
Slough Borough Council,536,Ability Housing Association,M42E,Adult Social Care Operations,Supplies and Services,"1,833.76",Jul-22
Slough Borough Council,536,Ability Housing Association,M42E,Adult Social Care Operations,Supplies and Services,"2,358.52",Jul-22
Slough Borough Council,536,Ability Housing Association,M42E,Adult Social Care Operations,Supplies and Services,"2,708.37",Jul-22
Slough Borough Council,536,Ability Housing Association,M42E,Adult Social Care Operations,Supplies and Services,"2,436.27",Jul-22
Slough Borough Council,536,Ability Housing Association,M42E,Adult Social Care Operations,Supplies and Services,"1,192.38",Jul-22
Slough Borough Council,536,Ability Housing Association,M42E,Adult Social Care Operations,Supplies and Services,"2,941.59",Jul-22
Slough Borough Council,536,Ability Housing Association,M42E,Adult Social Care Operations,Supplies and Services,"2,611.19",Jul-22
Slough Borough Council,536,Ability Housing Association,M42E,Adult Social Care Operations,Supplies and Services,"2,588.84",Jul-22
Slough Borough Council,536,Ability Housing Association,M42E,Adult Social Care Operations,Supplies and Services,"1,795.86",Jul-22
Slough Borough Council,536,Ability Housing Association,M42E,Adult Social Care Operations,Supplies and Services,"2,977.54",Jul-22
Slough Borough Council,536,Ability Housing Association,M44E,Adult Social Care Operations,Supplies and Services,"1,756.99",Jul-22
Slough Borough Council,536,Ability Housing Association,M44E,Adult Social Care Operations,Supplies and Services,"1,823.07",Jul-22
Slough Borough Council,536,Ability Housing Association,M44E,Adult Social Care Operations,Supplies and Services,"2,149.59",Jul-22
Slough Borough Council,536,Ability Housing Association,M44E,Adult Social Care Operations,Supplies and Services,"2,227.34",Jul-22
Slough Borough Council,3292,Achieving For Children,F416,Education & Inclusion,Supplies and Services,"64,900.00",Jul-22
Slough Borough Council,807554,Acorn Care & Education Ltd,F462,Children & Families,Supplies and Services,"4,671.43",Jul-22
Slough Borough Council,807554,Acorn Care & Education Ltd,F462,Children & Families,Supplies and Services,"-4,671.43",Jul-22
Slough Borough Council,807554,Acorn Care & Education Ltd,F462,Children & Families,Supplies and Services,"14,493.24",Jul-22
Slough Borough Council,807554,Acorn Care & Education Ltd,F462,Children & Families,Supplies and Services,"3,942.86",Jul-22
Slough Borough Council,807554,Acorn Care & Education Ltd,F462,Children & Families,Supplies and Services,"4,671.43",Jul-22
Slough Borough Council,807554,Acorn Care & Education Ltd,F462,Children & Families,Supplies and Services,"4,671.43",Jul-22
Slough Borough Council,807554,Acorn Care & Education Ltd,F558,Children & Families,Supplies and Services,"1,914.00",Jul-22
Slough Borough Council,807554,Acorn Care & Education Ltd,F558,Children & Families,Supplies and Services,"4,028.00",Jul-22
Slough Borough Council,807554,Acorn Care & Education Ltd,F558,Children & Families,Supplies and Services,"1,044.00",Jul-22
Slough Borough Council,807554,Acorn Care & Education Ltd,F558,Children & Families,Supplies and Services,"1,044.00",Jul-22
Slough Borough Council,807554,Acorn Care & Education Ltd,F558,Children & Families,Supplies and Services,"1,392.00",Jul-22
Slough Borough Council,807554,Acorn Care & Education Ltd,F558,Children & Families,Supplies and Services,"1,740.00",Jul-22
Slough Borough Council,807554,Acorn Care & Education Ltd,F558,Children & Families,Supplies and Services,"1,392.00",Jul-22
Slough Borough Council,807554,Acorn Care & Education Ltd,F558,Children & Families,Supplies and Services,"1,044.00",Jul-22
Slough Borough Council,807554,Acorn Care & Education Ltd,F558,Children & Families,Supplies and Services,"3,180.00",Jul-22
Slough Borough Council,807554,Acorn Care & Education Ltd,F558,Children & Families,Supplies and Services,"3,180.00",Jul-22
Slough Borough Council,807554,Acorn Care & Education Ltd,F558,Children & Families,Supplies and Services,"3,180.00",Jul-22
Slough Borough Council,807554,Acorn Care & Education Ltd,F558,Children & Families,Supplies and Services,"3,180.00",Jul-22
Slough Borough Council,807554,Acorn Care & Education Ltd,F558,Children & Families,Supplies and Services,"3,180.00",Jul-22
Slough Borough Council,807554,Acorn Care & Education Ltd,F558,Children & Families,Supplies and Services,"2,610.00",Jul-22
Slough Borough Council,807554,Acorn Care & Education Ltd,F558,Children & Families,Supplies and Services,"2,610.00",Jul-22
Slough Borough Council,807554,Acorn Care & Education Ltd,F558,Children & Families,Supplies and Services,"2,120.00",Jul-22
Slough Borough Council,807554,Acorn Care & Education Ltd,F558,Children & Families,Supplies and Services,"3,180.00",Jul-22
Slough Borough Council,807554,Acorn Care & Education Ltd,F558,Children & Families,Supplies and Services,"1,044.00",Jul-22
Slough Borough Council,807554,Acorn Care & Education Ltd,F558,Children & Families,Supplies and Services,"3,180.00",Jul-22
Slough Borough Council,807554,Acorn Care & Education Ltd,F558,Children & Families,Supplies and Services,"3,180.00",Jul-22
Slough Borough Council,807554,Acorn Care & Education Ltd,F558,Children & Families,Supplies and Services,"3,180.00",Jul-22
Slough Borough Council,807554,Acorn Care & Education Ltd,F558,Children & Families,Supplies and Services,"3,180.00",Jul-22
Slough Borough Council,807554,Acorn Care & Education Ltd,F558,Children & Families,Supplies and Services,"3,180.00",Jul-22
Slough Borough Council,807554,Acorn Care & Education Ltd,F558,Children & Families,Supplies and Services,"3,180.00",Jul-22
Slough Borough Council,807832,Adaptec Mobility Ltd,P006,Capital,Capital Charges,"12,270.65",Jul-22
Slough Borough Council,2855,Advance Housing & Support Ltd,M42F,Adult Social Care Operations,Supplies and Services,"1,097.40",Jul-22
Slough Borough Council,2855,Advance Housing & Support Ltd,M42F,Adult Social Care Operations,Supplies and Services,731.60,Jul-22
Slough Borough Council,2855,Advance Housing & Support Ltd,M42F,Adult Social Care Operations,Supplies and Services,"1,170.56",Jul-22
Slough Borough Council,2855,Advance Housing & Support Ltd,M42F,Adult Social Care Operations,Supplies and Services,"1,609.52",Jul-22
Slough Borough Council,2135,Adventure Learning Childcare Limited,F909,Children & Families,Supplies and Services,540.00,Jul-22
Slough Borough Council,2135,Adventure Learning Childcare Limited,F909,Children & Families,Supplies and Services,"11,268.87",Jul-22
Slough Borough Council,805178,AFM Transport Limited,D880,Place Operations,Supplies and Services,"2,541.50",Jul-22
Slough Borough Council,2486,Agriculture And Estate Services Limited,P235,Capital,Capital Charges,"2,650.00",Jul-22
Slough Borough Council,2197,Altwood Housing Ltd,H205,Housing (People) Services,Supplies and Services,"1,650.00",Jul-22
Slough Borough Council,2197,Altwood Housing Ltd,H205,Housing (People) Services,Supplies and Services,900.00,Jul-22
Slough Borough Council,2197,Altwood Housing Ltd,H205,Housing (People) Services,Supplies and Services,900.00,Jul-22
Slough Borough Council,2197,Altwood Housing Ltd,H205,Housing (People) Services,Supplies and Services,"2,250.00",Jul-22
Slough Borough Council,2197,Altwood Housing Ltd,H205,Housing (People) Services,Supplies and Services,900.00,Jul-22
Slough Borough Council,2197,Altwood Housing Ltd,H205,Housing (People) Services,Supplies and Services,630.00,Jul-22
Slough Borough Council,2197,Altwood Housing Ltd,H205,Housing (People) Services,Supplies and Services,900.00,Jul-22
Slough Borough Council,2197,Altwood Housing Ltd,H205,Housing (People) Services,Supplies and Services,900.00,Jul-22
Slough Borough Council,2197,Altwood Housing Ltd,H205,Housing (People) Services,Supplies and Services,"1,200.00",Jul-22
Slough Borough Council,2197,Altwood Housing Ltd,H205,Housing (People) Services,Supplies and Services,"1,200.00",Jul-22
Slough Borough Council,2197,Altwood Housing Ltd,H205,Housing (People) Services,Supplies and Services,720.00,Jul-22
Slough Borough Council,2197,Altwood Housing Ltd,H205,Housing (People) Services,Supplies and Services,"1,650.00",Jul-22
Slough Borough Council,2197,Altwood Housing Ltd,H205,Housing (People) Services,Supplies and Services,900.00,Jul-22
Slough Borough Council,2197,Altwood Housing Ltd,H205,Housing (People) Services,Supplies and Services,"1,650.00",Jul-22
Slough Borough Council,2197,Altwood Housing Ltd,H205,Housing (People) Services,Supplies and Services,900.00,Jul-22
Slough Borough Council,2197,Altwood Housing Ltd,H205,Housing (People) Services,Supplies and Services,"1,650.00",Jul-22
Slough Borough Council,86,Altwood Properties Ltd,H205,Housing (People) Services,Premises,"55,135.41",Jul-22
Slough Borough Council,807515,Always Growing Together Community Interest Company Limited,F909,Children & Families,Supplies and Services,"1,530.00",Jul-22
Slough Borough Council,807515,Always Growing Together Community Interest Company Limited,F909,Children & Families,Supplies and Services,"9,888.06",Jul-22
Slough Borough Council,808191,Ambrose Adrian Healthcare Ltd,M44E,Adult Social Care Operations,Supplies and Services,"3,895.00",Jul-22
Slough Borough Council,808191,Ambrose Adrian Healthcare Ltd,M44E,Adult Social Care Operations,Supplies and Services,"4,940.00",Jul-22
Slough Borough Council,808368,Anthony Toby Homes Trust,M26E,Adult Social Care Operations,Supplies and Services,"5,413.80",Jul-22
Slough Borough Council,807893,Antz Kidz Activity Centre,F382,Children & Families,Supplies and Services,"4,603.50",Jul-22
Slough Borough Council,3137,Applegarth Care Home Ltd,M25C,Adult Social Care Operations,Supplies and Services,"3,200.00",Jul-22
Slough Borough Council,3137,Applegarth Care Home Ltd,M25C,Adult Social Care Operations,Supplies and Services,"3,400.00",Jul-22
Slough Borough Council,3137,Applegarth Care Home Ltd,M27C,Adult Social Care Operations,Supplies and Services,"3,500.00",Jul-22
Slough Borough Council,808206,Applenet Care & Support,M81D,Adult Social Care Operations,Supplies and Services,"9,858.00",Jul-22
Slough Borough Council,511,Aquaneed Limited,P006,Capital,Capital Charges,"10,267.55",Jul-22
Slough Borough Council,3350,Arbour Vale School,E610,Children & Families,Supplies and Services,"434,363.51",Jul-22
Slough Borough Council,3350,Arbour Vale School,B297,Finance & Commercial,Government Grants,"1,890.00",Jul-22
Slough Borough Council,3350,Arbour Vale School,B297,Finance & Commercial,Government Grants,"5,040.00",Jul-22
Slough Borough Council,2073,Arc Preschool,F909,Children & Families,Supplies and Services,"1,080.00",Jul-22
Slough Borough Council,2073,Arc Preschool,F909,Children & Families,Supplies and Services,"9,522.09",Jul-22
Slough Borough Council,1985,Ascentis,F210,Community,TP-Other Bodies,600.00,Jul-22
Slough Borough Council,1985,Ascentis,F210,Community,TP-Other Bodies,780.00,Jul-22
Slough Borough Council,1985,Ascentis,F210,Community,Supplies and Services,862.00,Jul-22
Slough Borough Council,420,Ashburn Estate Agents,H205,Housing (People) Services,Premises,"111,669.00",Jul-22
Slough Borough Council,805719,Ashley Forms Ltd,F123,Education & Inclusion,Supplies and Services,"1,450.00",Jul-22
Slough Borough Council,1251,Asian Star Community Radio Ltd,B324,Finance,Supplies and Services,"1,540.00",Jul-22
Slough Borough Council,3666,Assisted Living South West,M26E,Adult Social Care Operations,Supplies and Services,"6,102.44",Jul-22
Slough Borough Council,3666,Assisted Living South West,M26E,Adult Social Care Operations,Supplies and Services,"4,816.04",Jul-22
Slough Borough Council,1292,Association Of Electoral Administrators,B240,Business Services,Supplies and Services,"2,448.00",Jul-22
Slough Borough Council,804324,Astoria Healthcare,M27F,Adult Social Care Operations,Supplies and Services,"4,275.00",Jul-22
Slough Borough Council,804324,Astoria Healthcare,M27F,Adult Social Care Operations,Supplies and Services,"4,417.50",Jul-22
Slough Borough Council,3370,Baylis Court School,E610,Children & Families,Supplies and Services,"7,080.03",Jul-22
Slough Borough Council,1681,Bcq,B246,Governance,Supplies and Services,"3,298.00",Jul-22
Slough Borough Council,3208,Be Happy Pre School,F909,Children & Families,Supplies and Services,"1,260.00",Jul-22
Slough Borough Council,3208,Be Happy Pre School,F909,Children & Families,Supplies and Services,540.00,Jul-22
Slough Borough Council,3208,Be Happy Pre School,F909,Children & Families,Supplies and Services,"8,019.49",Jul-22
Slough Borough Council,3208,Be Happy Pre School,F909,Children & Families,Supplies and Services,"4,118.26",Jul-22
Slough Borough Council,805539,Beech Haven Ltd,M27C,Adult Social Care Operations,Supplies and Services,"3,277.14",Jul-22
Slough Borough Council,804471,Beech Lodge School Ltd,F462,Children & Families,Supplies and Services,"16,357.00",Jul-22
Slough Borough Council,804471,Beech Lodge School Ltd,F462,Children & Families,Supplies and Services,"15,542.00",Jul-22
Slough Borough Council,609,Beechwood Secondary School,F253,Children & Families,Premises,"1,000.00",Jul-22
Slough Borough Council,609,Beechwood Secondary School,E610,Children & Families,Supplies and Services,"5,569.53",Jul-22
Slough Borough Council,612,Berkshire Healthcare Nhs Foundation Trust,A01P,Public Health,Supplies and Services,"13,000.00",Jul-22
Slough Borough Council,808116,BeSpoke Cycling Instruction Ltd,D500,Place Strategy & Infrastructure,Supplies and Services,660.00,Jul-22
Slough Borough Council,808148,BEST CHOICE CARE LTD,A07R,Adult Social Care Operations,Supplies and Services,656.36,Jul-22
Slough Borough Council,808148,BEST CHOICE CARE LTD,A07R,Adult Social Care Operations,Supplies and Services,560.11,Jul-22
Slough Borough Council,808148,BEST CHOICE CARE LTD,A07R,Adult Social Care Operations,Supplies and Services,958.26,Jul-22
Slough Borough Council,808148,BEST CHOICE CARE LTD,A07R,Adult Social Care Operations,Supplies and Services,"1,102.64",Jul-22
Slough Borough Council,808148,BEST CHOICE CARE LTD,M44C,Adult Social Care Operations,Supplies and Services,"1,142.02",Jul-22
Slough Borough Council,808148,BEST CHOICE CARE LTD,M44C,Adult Social Care Operations,Supplies and Services,735.00,Jul-22
Slough Borough Council,808148,BEST CHOICE CARE LTD,M44C,Adult Social Care Operations,Supplies and Services,"1,102.64",Jul-22
Slough Borough Council,808148,BEST CHOICE CARE LTD,M44C,Adult Social Care Operations,Supplies and Services,590.76,Jul-22
Slough Borough Council,808148,BEST CHOICE CARE LTD,M44C,Adult Social Care Operations,Supplies and Services,"1,155.00",Jul-22
Slough Borough Council,808148,BEST CHOICE CARE LTD,M44C,Adult Social Care Operations,Supplies and Services,612.64,Jul-22
Slough Borough Council,808148,BEST CHOICE CARE LTD,M44C,Adult Social Care Operations,Supplies and Services,"1,382.64",Jul-22
Slough Borough Council,808148,BEST CHOICE CARE LTD,M44C,Adult Social Care Operations,Supplies and Services,560.08,Jul-22
Slough Borough Council,808148,BEST CHOICE CARE LTD,M44D,Adult Social Care Operations,Supplies and Services,"2,432.50",Jul-22
Slough Borough Council,808148,BEST CHOICE CARE LTD,M44D,Adult Social Care Operations,Supplies and Services,"2,196.53",Jul-22
Slough Borough Council,1736,Bevan Brittan Llp,B086,Place Strategy & Infrastructure,Capital Charges,"2,554.50",Jul-22
Slough Borough Council,808379,BHARANI ENTERPRISES (UK) LTD,B088,Regeneration Development,Supplies and Services,"31,506.84",Jul-22
Slough Borough Council,806780,Big Blue Door Ltd,F200,Education & Inclusion,Supplies and Services,"10,200.00",Jul-22
Slough Borough Council,1224,Big Yellow Self Storage,A07R,Adult Social Care Operations,Supplies and Services,"6,396.66",Jul-22
Slough Borough Council,803828,Blue Willow Day Nursery Ltd,F909,Children & Families,Supplies and Services,"2,790.00",Jul-22
Slough Borough Council,803828,Blue Willow Day Nursery Ltd,F909,Children & Families,Supplies and Services,"21,852.39",Jul-22
Slough Borough Council,1341,Bluesky International Ltd,B660,Finance,Supplies and Services,600.00,Jul-22
Slough Borough Council,803237,BME Imaging,D105,Place Strategy & Infrastructure,Supplies and Services,"2,705.28",Jul-22
Slough Borough Council,803601,Bolinda UK Ltd,C104,Community,Supplies and Services,"3,000.00",Jul-22
Slough Borough Council,805160,Bouygues E&S FM UK Limited,K523,Building Management,Supplies and Services,"81,061.61",Jul-22
Slough Borough Council,805160,Bouygues E&S FM UK Limited,K521,Building Management,Premises,"10,788.74",Jul-22
Slough Borough Council,805160,Bouygues E&S FM UK Limited,K521,Building Management,Premises,"7,669.59",Jul-22
Slough Borough Council,2856,Brain Injury Rehabilitation Trust,M26E,Adult Social Care Operations,Supplies and Services,"5,452.36",Jul-22
Slough Borough Council,2856,Brain Injury Rehabilitation Trust,M26E,Adult Social Care Operations,Supplies and Services,"5,601.43",Jul-22
Slough Borough Council,2856,Brain Injury Rehabilitation Trust,M27C,Adult Social Care Operations,Supplies and Services,"7,481.67",Jul-22
Slough Borough Council,805179,Braywood Tree Surgery Ltd,D880,Place Operations,Supplies and Services,"4,038.02",Jul-22
Slough Borough Council,805179,Braywood Tree Surgery Ltd,D880,Place Operations,Supplies and Services,"4,038.02",Jul-22
Slough Borough Council,805179,Braywood Tree Surgery Ltd,D880,Place Operations,Supplies and Services,"4,038.02",Jul-22
Slough Borough Council,805179,Braywood Tree Surgery Ltd,D880,Place Operations,Supplies and Services,768.36,Jul-22
Slough Borough Council,805179,Braywood Tree Surgery Ltd,P220,Capital,Capital Charges,"12,080.64",Jul-22
Slough Borough Council,805817,Bright World Nurseries,F909,Children & Families,Supplies and Services,"1,170.00",Jul-22
Slough Borough Council,805817,Bright World Nurseries,F909,Children & Families,Supplies and Services,"10,380.54",Jul-22
Slough Borough Council,504,Britwell Baptist Pre School,F909,Children & Families,Supplies and Services,"1,620.00",Jul-22
Slough Borough Council,504,Britwell Baptist Pre School,F909,Children & Families,Supplies and Services,"6,127.32",Jul-22
Slough Borough Council,806919,Buckinghamshire College Group,F558,Children & Families,Supplies and Services,"15,270.23",Jul-22
Slough Borough Council,806892,Bucks & Berks SLT Consultancy,F417,Education & Inclusion,Supplies and Services,"1,137.60",Jul-22
Slough Borough Council,806892,Bucks & Berks SLT Consultancy,F417,Education & Inclusion,Supplies and Services,"1,137.60",Jul-22
Slough Borough Council,2850,Bullseye Awards & Garments Ltd,D333,Regulatory Services,Supplies and Services,"2,800.00",Jul-22
Slough Borough Council,741,Bunnies Pre-School,F909,Children & Families,Supplies and Services,"6,830.89",Jul-22
Slough Borough Council,803553,BUPA CARE HOME (CFH CARE),M25D,Adult Social Care Operations,Supplies and Services,"3,172.00",Jul-22
Slough Borough Council,807597,Bytesize Training ltd,B282,Digital and Strategic IT,Supplies and Services,"1,750.00",Jul-22
Slough Borough Council,629,C.H.O.I.C.E Limited,M26E,Adult Social Care Operations,Supplies and Services,"10,756.82",Jul-22
Slough Borough Council,629,C.H.O.I.C.E Limited,M26E,Adult Social Care Operations,Supplies and Services,"9,228.34",Jul-22
Slough Borough Council,629,C.H.O.I.C.E Limited,M26E,Adult Social Care Operations,Supplies and Services,"10,474.68",Jul-22
Slough Borough Council,629,C.H.O.I.C.E Limited,M26E,Adult Social Care Operations,Supplies and Services,"8,738.50",Jul-22
Slough Borough Council,629,C.H.O.I.C.E Limited,M26E,Adult Social Care Operations,Supplies and Services,"11,045.08",Jul-22
Slough Borough Council,629,C.H.O.I.C.E Limited,M26E,Adult Social Care Operations,Supplies and Services,"10,733.13",Jul-22
Slough Borough Council,629,C.H.O.I.C.E Limited,M26E,Adult Social Care Operations,Supplies and Services,"11,549.32",Jul-22
Slough Borough Council,629,C.H.O.I.C.E Limited,M42E,Adult Social Care Operations,Supplies and Services,"5,947.11",Jul-22
Slough Borough Council,629,C.H.O.I.C.E Limited,M42E,Adult Social Care Operations,Supplies and Services,"5,493.90",Jul-22
Slough Borough Council,629,C.H.O.I.C.E Limited,M42E,Adult Social Care Operations,Supplies and Services,"5,911.76",Jul-22
Slough Borough Council,629,C.H.O.I.C.E Limited,M42E,Adult Social Care Operations,Supplies and Services,"1,107.14",Jul-22
Slough Borough Council,629,C.H.O.I.C.E Limited,M42E,Adult Social Care Operations,Supplies and Services,"1,107.14",Jul-22
Slough Borough Council,629,C.H.O.I.C.E Limited,M42E,Adult Social Care Operations,Supplies and Services,"1,000.00",Jul-22
Slough Borough Council,629,C.H.O.I.C.E Limited,M42E,Adult Social Care Operations,Supplies and Services,"1,107.14",Jul-22
Slough Borough Council,629,C.H.O.I.C.E Limited,M42E,Adult Social Care Operations,Supplies and Services,"1,071.43",Jul-22
Slough Borough Council,629,C.H.O.I.C.E Limited,M42E,Adult Social Care Operations,Supplies and Services,"1,071.43",Jul-22
Slough Borough Council,629,C.H.O.I.C.E Limited,M44D,Adult Social Care Operations,Supplies and Services,"4,288.54",Jul-22
Slough Borough Council,629,C.H.O.I.C.E Limited,M44D,Adult Social Care Operations,Supplies and Services,"4,431.49",Jul-22
Slough Borough Council,629,C.H.O.I.C.E Limited,M44D,Adult Social Care Operations,Supplies and Services,"4,002.64",Jul-22
Slough Borough Council,629,C.H.O.I.C.E Limited,M44D,Adult Social Care Operations,Supplies and Services,"4,431.49",Jul-22
Slough Borough Council,629,C.H.O.I.C.E Limited,M44D,Adult Social Care Operations,Supplies and Services,"4,288.54",Jul-22
Slough Borough Council,629,C.H.O.I.C.E Limited,M44D,Adult Social Care Operations,Supplies and Services,"4,431.49",Jul-22
Slough Borough Council,629,C.H.O.I.C.E Limited,M44D,Adult Social Care Operations,Supplies and Services,"4,431.49",Jul-22
Slough Borough Council,629,C.H.O.I.C.E Limited,M44F,Adult Social Care Operations,Supplies and Services,"2,498.61",Jul-22
Slough Borough Council,629,C.H.O.I.C.E Limited,M44F,Adult Social Care Operations,Supplies and Services,"2,523.94",Jul-22
Slough Borough Council,629,C.H.O.I.C.E Limited,M26E,Adult Social Care Operations,External Receipts,-515.75,Jul-22
Slough Borough Council,629,C.H.O.I.C.E Limited,M26E,Adult Social Care Operations,External Receipts,-515.75,Jul-22
Slough Borough Council,629,C.H.O.I.C.E Limited,M26E,Adult Social Care Operations,External Receipts,-564.47,Jul-22
Slough Borough Council,808007,Cameron & Cooper Limited (The Beech House School),F462,Children & Families,Supplies and Services,"2,315.72",Jul-22
Slough Borough Council,622,Canford Audio Plc,H009,Business Services,Supplies and Services,"1,380.00",Jul-22
Slough Borough Council,623,Canon (Uk) Ltd,K059,Business Services,Supplies and Services,"6,838.99",Jul-22
Slough Borough Council,623,Canon (Uk) Ltd,K059,Business Services,Supplies and Services,"4,023.99",Jul-22
Slough Borough Council,623,Canon (Uk) Ltd,K059,Business Services,Supplies and Services,"2,603.25",Jul-22
Slough Borough Council,737,Capita Business Services Ltd,B282,Digital and Strategic IT,Supplies and Services,"21,495.00",Jul-22
Slough Borough Council,737,Capita Business Services Ltd,B342,Digital and Strategic IT,Supplies and Services,"24,925.00",Jul-22
Slough Borough Council,805621,Care Staff Services,A07R,Adult Social Care Operations,Supplies and Services,507.50,Jul-22
Slough Borough Council,805621,Care Staff Services,A07R,Adult Social Care Operations,Supplies and Services,857.50,Jul-22
Slough Borough Council,805621,Care Staff Services,A07R,Adult Social Care Operations,Supplies and Services,"1,041.25",Jul-22
Slough Borough Council,805621,Care Staff Services,A07R,Adult Social Care Operations,Supplies and Services,"1,216.25",Jul-22
Slough Borough Council,805621,Care Staff Services,A07R,Adult Social Care Operations,Supplies and Services,765.63,Jul-22
Slough Borough Council,805621,Care Staff Services,A07R,Adult Social Care Operations,Supplies and Services,869.05,Jul-22
Slough Borough Council,805621,Care Staff Services,A07R,Adult Social Care Operations,Supplies and Services,980.00,Jul-22
Slough Borough Council,805621,Care Staff Services,A07R,Adult Social Care Operations,Supplies and Services,"1,102.50",Jul-22
Slough Borough Council,805621,Care Staff Services,A07R,Adult Social Care Operations,Supplies and Services,-548.22,Jul-22
Slough Borough Council,805621,Care Staff Services,A07R,Adult Social Care Operations,Supplies and Services,"1,496.25",Jul-22
Slough Borough Council,805621,Care Staff Services,A07R,Adult Social Care Operations,Supplies and Services,"1,050.00",Jul-22
Slough Borough Council,805621,Care Staff Services,A07R,Adult Social Care Operations,Supplies and Services,595.00,Jul-22
Slough Borough Council,805621,Care Staff Services,A07R,Adult Social Care Operations,Supplies and Services,"1,960.00",Jul-22
Slough Borough Council,805621,Care Staff Services,A07R,Adult Social Care Operations,Supplies and Services,"1,058.75",Jul-22
Slough Borough Council,805621,Care Staff Services,A07R,Adult Social Care Operations,Supplies and Services,"2,205.00",Jul-22
Slough Borough Council,805621,Care Staff Services,A07R,Adult Social Care Operations,Supplies and Services,983.47,Jul-22
Slough Borough Council,805621,Care Staff Services,A07R,Adult Social Care Operations,Supplies and Services,"1,165.50",Jul-22
Slough Borough Council,805621,Care Staff Services,A07R,Adult Social Care Operations,Supplies and Services,"1,102.50",Jul-22
Slough Borough Council,805621,Care Staff Services,A07R,Adult Social Care Operations,Supplies and Services,"1,592.50",Jul-22
Slough Borough Council,805621,Care Staff Services,A07R,Adult Social Care Operations,Supplies and Services,"1,575.00",Jul-22
Slough Borough Council,805621,Care Staff Services,A07R,Adult Social Care Operations,Supplies and Services,958.13,Jul-22
Slough Borough Council,805621,Care Staff Services,A07R,Adult Social Care Operations,Supplies and Services,997.50,Jul-22
Slough Borough Council,805621,Care Staff Services,M41D,Adult Social Care Operations,Supplies and Services,"1,102.51",Jul-22
Slough Borough Council,805621,Care Staff Services,M44C,Adult Social Care Operations,Supplies and Services,577.50,Jul-22
Slough Borough Council,805621,Care Staff Services,M44C,Adult Social Care Operations,Supplies and Services,"2,205.00",Jul-22
Slough Borough Council,805621,Care Staff Services,M44C,Adult Social Care Operations,Supplies and Services,647.50,Jul-22
Slough Borough Council,805621,Care Staff Services,M44C,Adult Social Care Operations,Supplies and Services,857.51,Jul-22
Slough Borough Council,805621,Care Staff Services,M44C,Adult Social Care Operations,Supplies and Services,"2,275.00",Jul-22
Slough Borough Council,805621,Care Staff Services,M44C,Adult Social Care Operations,Supplies and Services,"1,102.50",Jul-22
Slough Borough Council,805621,Care Staff Services,M44C,Adult Social Care Operations,Supplies and Services,"1,280.00",Jul-22
Slough Borough Council,805621,Care Staff Services,M44C,Adult Social Care Operations,Supplies and Services,"1,102.50",Jul-22
Slough Borough Council,805621,Care Staff Services,M44C,Adult Social Care Operations,Supplies and Services,857.50,Jul-22
Slough Borough Council,805621,Care Staff Services,M44C,Adult Social Care Operations,Supplies and Services,"1,554.00",Jul-22
Slough Borough Council,805621,Care Staff Services,M44C,Adult Social Care Operations,Supplies and Services,906.50,Jul-22
Slough Borough Council,805621,Care Staff Services,M44C,Adult Social Care Operations,Supplies and Services,647.50,Jul-22
Slough Borough Council,805621,Care Staff Services,M44C,Adult Social Care Operations,Supplies and Services,"1,295.00",Jul-22
Slough Borough Council,805621,Care Staff Services,M44C,Adult Social Care Operations,Supplies and Services,708.75,Jul-22
Slough Borough Council,805621,Care Staff Services,M44C,Adult Social Care Operations,Supplies and Services,"1,960.00",Jul-22
Slough Borough Council,805621,Care Staff Services,M44C,Adult Social Care Operations,Supplies and Services,925.00,Jul-22
Slough Borough Council,805621,Care Staff Services,M44C,Adult Social Care Operations,Supplies and Services,"1,715.00",Jul-22
Slough Borough Council,805621,Care Staff Services,M44C,Adult Social Care Operations,Supplies and Services,"1,072.00",Jul-22
Slough Borough Council,805621,Care Staff Services,M44C,Adult Social Care Operations,Supplies and Services,"1,406.00",Jul-22
Slough Borough Council,805621,Care Staff Services,M44C,Adult Social Care Operations,Supplies and Services,"2,331.00",Jul-22
Slough Borough Council,805621,Care Staff Services,M44C,Adult Social Care Operations,Supplies and Services,666.00,Jul-22
Slough Borough Council,805621,Care Staff Services,M44C,Adult Social Care Operations,Supplies and Services,857.50,Jul-22
Slough Borough Council,805621,Care Staff Services,M44C,Adult Social Care Operations,Supplies and Services,752.50,Jul-22
Slough Borough Council,805621,Care Staff Services,M44C,Adult Social Care Operations,Supplies and Services,"1,813.00",Jul-22
Slough Borough Council,805621,Care Staff Services,M44C,Adult Social Care Operations,Supplies and Services,518.00,Jul-22
Slough Borough Council,805621,Care Staff Services,M44C,Adult Social Care Operations,Supplies and Services,"1,165.50",Jul-22
Slough Borough Council,805621,Care Staff Services,M44C,Adult Social Care Operations,Supplies and Services,805.00,Jul-22
Slough Borough Council,805621,Care Staff Services,M44C,Adult Social Care Operations,Supplies and Services,"1,202.50",Jul-22
Slough Borough Council,805621,Care Staff Services,M44C,Adult Social Care Operations,Supplies and Services,717.50,Jul-22
Slough Borough Council,805621,Care Staff Services,M44C,Adult Social Care Operations,Supplies and Services,906.50,Jul-22
Slough Borough Council,805621,Care Staff Services,M44C,Adult Social Care Operations,Supplies and Services,"1,102.51",Jul-22
Slough Borough Council,805621,Care Staff Services,M44C,Adult Social Care Operations,Supplies and Services,612.50,Jul-22
Slough Borough Council,805621,Care Staff Services,M44C,Adult Social Care Operations,Supplies and Services,"1,813.00",Jul-22
Slough Borough Council,805621,Care Staff Services,M44C,Adult Social Care Operations,Supplies and Services,"2,146.00",Jul-22
Slough Borough Council,805621,Care Staff Services,M44C,Adult Social Care Operations,Supplies and Services,612.50,Jul-22
Slough Borough Council,805621,Care Staff Services,M44C,Adult Social Care Operations,Supplies and Services,"1,036.00",Jul-22
Slough Borough Council,805621,Care Staff Services,M44C,Adult Social Care Operations,Supplies and Services,"1,331.00",Jul-22
Slough Borough Council,805621,Care Staff Services,M44C,Adult Social Care Operations,Supplies and Services,647.50,Jul-22
Slough Borough Council,805621,Care Staff Services,M44C,Adult Social Care Operations,Supplies and Services,"1,715.00",Jul-22
Slough Borough Council,805621,Care Staff Services,M44C,Adult Social Care Operations,Supplies and Services,"1,239.50",Jul-22
Slough Borough Council,805621,Care Staff Services,M44C,Adult Social Care Operations,Supplies and Services,590.62,Jul-22
Slough Borough Council,805621,Care Staff Services,M44C,Adult Social Care Operations,Supplies and Services,"1,470.00",Jul-22
Slough Borough Council,805621,Care Staff Services,M44C,Adult Social Care Operations,Supplies and Services,906.50,Jul-22
Slough Borough Council,805621,Care Staff Services,M44C,Adult Social Care Operations,Supplies and Services,"1,664.00",Jul-22
Slough Borough Council,805621,Care Staff Services,M44C,Adult Social Care Operations,Supplies and Services,906.50,Jul-22
Slough Borough Council,805621,Care Staff Services,M44C,Adult Social Care Operations,Supplies and Services,721.50,Jul-22
Slough Borough Council,805621,Care Staff Services,M44C,Adult Social Care Operations,Supplies and Services,"1,225.00",Jul-22
Slough Borough Council,805621,Care Staff Services,M44C,Adult Social Care Operations,Supplies and Services,906.50,Jul-22
Slough Borough Council,805621,Care Staff Services,M44C,Adult Social Care Operations,Supplies and Services,551.25,Jul-22
Slough Borough Council,805621,Care Staff Services,M44C,Adult Social Care Operations,Supplies and Services,"1,205.00",Jul-22
Slough Borough Council,805621,Care Staff Services,M44C,Adult Social Care Operations,Supplies and Services,"1,331.00",Jul-22
Slough Borough Council,805621,Care Staff Services,M44C,Adult Social Care Operations,Supplies and Services,"1,165.50",Jul-22
Slough Borough Council,805621,Care Staff Services,M44C,Adult Social Care Operations,Supplies and Services,752.50,Jul-22
Slough Borough Council,805621,Care Staff Services,M44C,Adult Social Care Operations,Supplies and Services,906.50,Jul-22
Slough Borough Council,805621,Care Staff Services,M44C,Adult Social Care Operations,Supplies and Services,"1,205.00",Jul-22
Slough Borough Council,805621,Care Staff Services,M44D,Adult Social Care Operations,Supplies and Services,669.38,Jul-22
Slough Borough Council,805621,Care Staff Services,M44D,Adult Social Care Operations,Supplies and Services,"1,102.50",Jul-22
Slough Borough Council,805621,Care Staff Services,M44D,Adult Social Care Operations,Supplies and Services,"1,102.50",Jul-22
Slough Borough Council,805621,Care Staff Services,M44D,Adult Social Care Operations,Supplies and Services,735.00,Jul-22
Slough Borough Council,805621,Care Staff Services,M44D,Adult Social Care Operations,Supplies and Services,536.50,Jul-22
Slough Borough Council,805621,Care Staff Services,M44D,Adult Social Care Operations,Supplies and Services,629.00,Jul-22
Slough Borough Council,805621,Care Staff Services,M44D,Adult Social Care Operations,Supplies and Services,857.50,Jul-22
Slough Borough Council,805621,Care Staff Services,M44D,Adult Social Care Operations,Supplies and Services,"1,295.00",Jul-22
Slough Borough Council,805621,Care Staff Services,M44D,Adult Social Care Operations,Supplies and Services,518.00,Jul-22
Slough Borough Council,805621,Care Staff Services,M44D,Adult Social Care Operations,Supplies and Services,"1,331.00",Jul-22
Slough Borough Council,805621,Care Staff Services,M44D,Adult Social Care Operations,Supplies and Services,647.50,Jul-22
Slough Borough Council,805621,Care Staff Services,M44D,Adult Social Care Operations,Supplies and Services,"1,785.00",Jul-22
Slough Borough Council,805621,Care Staff Services,M44D,Adult Social Care Operations,Supplies and Services,"1,592.50",Jul-22
Slough Borough Council,805621,Care Staff Services,M44D,Adult Social Care Operations,Supplies and Services,832.50,Jul-22
Slough Borough Council,805621,Care Staff Services,M44D,Adult Social Care Operations,Supplies and Services,"1,295.00",Jul-22
Slough Borough Council,805621,Care Staff Services,M44D,Adult Social Care Operations,Supplies and Services,"1,239.50",Jul-22
Slough Borough Council,805621,Care Staff Services,M44D,Adult Social Care Operations,Supplies and Services,"1,165.50",Jul-22
Slough Borough Council,805621,Care Staff Services,M44E,Adult Social Care Operations,Supplies and Services,518.00,Jul-22
Slough Borough Council,805621,Care Staff Services,M44F,Adult Social Care Operations,Supplies and Services,"1,036.00",Jul-22
Slough Borough Council,805621,Care Staff Services,M44F,Adult Social Care Operations,Supplies and Services,740.00,Jul-22
Slough Borough Council,805621,Care Staff Services,M44F,Adult Social Care Operations,Supplies and Services,"1,313.50",Jul-22
Slough Borough Council,805621,Care Staff Services,M44F,Adult Social Care Operations,Supplies and Services,666.00,Jul-22
Slough Borough Council,805621,Care Staff Services,M44F,Adult Social Care Operations,Supplies and Services,888.00,Jul-22
Slough Borough Council,805621,Care Staff Services,M44F,Adult Social Care Operations,Supplies and Services,999.00,Jul-22
Slough Borough Council,805621,Care Staff Services,M44F,Adult Social Care Operations,Supplies and Services,"2,590.00",Jul-22
Slough Borough Council,805621,Care Staff Services,M45C,Adult Social Care Operations,Supplies and Services,"2,205.00",Jul-22
Slough Borough Council,805621,Care Staff Services,M45C,Adult Social Care Operations,Supplies and Services,"1,470.00",Jul-22
Slough Borough Council,805621,Care Staff Services,M45C,Adult Social Care Operations,Supplies and Services,866.25,Jul-22
Slough Borough Council,805621,Care Staff Services,M45C,Adult Social Care Operations,Supplies and Services,"1,400.00",Jul-22
Slough Borough Council,805621,Care Staff Services,M48C,Adult Social Care Operations,Supplies and Services,"2,331.00",Jul-22
Slough Borough Council,805621,Care Staff Services,M48C,Adult Social Care Operations,Supplies and Services,560.00,Jul-22
Slough Borough Council,808149,Care Staff Services Support,M44F,Adult Social Care Operations,Supplies and Services,"1,937.66",Jul-22
Slough Borough Council,808149,Care Staff Services Support,M44F,Adult Social Care Operations,Supplies and Services,"5,240.49",Jul-22
Slough Borough Council,1162,Care Uk Community Partnership Ltd,A03E,Adult Social Care Operations,Supplies and Services,"3,842.56",Jul-22
Slough Borough Council,1162,Care Uk Community Partnership Ltd,M15D,Adult Social Care Operations,Supplies and Services,"2,827.20",Jul-22
Slough Borough Council,1162,Care Uk Community Partnership Ltd,M15D,Adult Social Care Operations,Supplies and Services,"3,803.00",Jul-22
Slough Borough Council,1162,Care Uk Community Partnership Ltd,M15D,Adult Social Care Operations,Supplies and Services,"3,803.00",Jul-22
Slough Borough Council,1162,Care Uk Community Partnership Ltd,M15D,Adult Social Care Operations,Supplies and Services,"3,803.00",Jul-22
Slough Borough Council,1162,Care Uk Community Partnership Ltd,M15D,Adult Social Care Operations,Supplies and Services,"3,969.72",Jul-22
Slough Borough Council,1162,Care Uk Community Partnership Ltd,M15D,Adult Social Care Operations,Supplies and Services,"3,803.00",Jul-22
Slough Borough Council,1162,Care Uk Community Partnership Ltd,M15F,Adult Social Care Operations,Supplies and Services,"2,837.14",Jul-22
Slough Borough Council,1162,Care Uk Community Partnership Ltd,M15F,Adult Social Care Operations,Supplies and Services,"2,931.71",Jul-22
Slough Borough Council,1162,Care Uk Community Partnership Ltd,M15F,Adult Social Care Operations,Supplies and Services,"3,803.00",Jul-22
Slough Borough Council,1162,Care Uk Community Partnership Ltd,M17C,Adult Social Care Operations,Supplies and Services,"5,200.00",Jul-22
Slough Borough Council,1162,Care Uk Community Partnership Ltd,M17C,Adult Social Care Operations,Supplies and Services,557.14,Jul-22
Slough Borough Council,1162,Care Uk Community Partnership Ltd,M17C,Adult Social Care Operations,Supplies and Services,"3,969.72",Jul-22
Slough Borough Council,1162,Care Uk Community Partnership Ltd,M17C,Adult Social Care Operations,Supplies and Services,"5,757.14",Jul-22
Slough Borough Council,1162,Care Uk Community Partnership Ltd,M17C,Adult Social Care Operations,Supplies and Services,"5,778.36",Jul-22
Slough Borough Council,1162,Care Uk Community Partnership Ltd,M17C,Adult Social Care Operations,Supplies and Services,"3,969.72",Jul-22
Slough Borough Council,1162,Care Uk Community Partnership Ltd,M17C,Adult Social Care Operations,Supplies and Services,"3,969.72",Jul-22
Slough Borough Council,1162,Care Uk Community Partnership Ltd,M17C,Adult Social Care Operations,Supplies and Services,"3,969.72",Jul-22
Slough Borough Council,1162,Care Uk Community Partnership Ltd,M17C,Adult Social Care Operations,Supplies and Services,"3,969.72",Jul-22
Slough Borough Council,1162,Care Uk Community Partnership Ltd,M18C,Adult Social Care Operations,Supplies and Services,"3,969.72",Jul-22
Slough Borough Council,1162,Care Uk Community Partnership Ltd,M18C,Adult Social Care Operations,Supplies and Services,"3,969.72",Jul-22
Slough Borough Council,1162,Care Uk Community Partnership Ltd,M18C,Adult Social Care Operations,Supplies and Services,"3,803.00",Jul-22
Slough Borough Council,1162,Care Uk Community Partnership Ltd,M18C,Adult Social Care Operations,Supplies and Services,"3,803.00",Jul-22
Slough Borough Council,1162,Care Uk Community Partnership Ltd,M18C,Adult Social Care Operations,Supplies and Services,"64,651.00",Jul-22
Slough Borough Council,1162,Care Uk Community Partnership Ltd,M18C,Adult Social Care Operations,Supplies and Services,"3,803.00",Jul-22
Slough Borough Council,1162,Care Uk Community Partnership Ltd,M18C,Adult Social Care Operations,Supplies and Services,"3,803.00",Jul-22
Slough Borough Council,1162,Care Uk Community Partnership Ltd,M18C,Adult Social Care Operations,Supplies and Services,"3,803.00",Jul-22
Slough Borough Council,1162,Care Uk Community Partnership Ltd,M18C,Adult Social Care Operations,Supplies and Services,"-13,594.60",Jul-22
Slough Borough Council,1162,Care Uk Community Partnership Ltd,M18C,Adult Social Care Operations,Supplies and Services,"-34,769.97",Jul-22
Slough Borough Council,1162,Care Uk Community Partnership Ltd,M18C,Adult Social Care Operations,Supplies and Services,"3,969.72",Jul-22
Slough Borough Council,1162,Care Uk Community Partnership Ltd,M18C,Adult Social Care Operations,Supplies and Services,"3,969.72",Jul-22
Slough Borough Council,1162,Care Uk Community Partnership Ltd,M18C,Adult Social Care Operations,Supplies and Services,"3,803.00",Jul-22
Slough Borough Council,1162,Care Uk Community Partnership Ltd,M18C,Adult Social Care Operations,Supplies and Services,"3,803.00",Jul-22
Slough Borough Council,1162,Care Uk Community Partnership Ltd,M18C,Adult Social Care Operations,Supplies and Services,"3,803.00",Jul-22
Slough Borough Council,1162,Care Uk Community Partnership Ltd,M18C,Adult Social Care Operations,Supplies and Services,"3,969.72",Jul-22
Slough Borough Council,1162,Care Uk Community Partnership Ltd,M18C,Adult Social Care Operations,Supplies and Services,"3,803.00",Jul-22
Slough Borough Council,1162,Care Uk Community Partnership Ltd,M18C,Adult Social Care Operations,Supplies and Services,"3,803.00",Jul-22
Slough Borough Council,1162,Care Uk Community Partnership Ltd,M18C,Adult Social Care Operations,Supplies and Services,"3,803.00",Jul-22
Slough Borough Council,1162,Care Uk Community Partnership Ltd,M18C,Adult Social Care Operations,Supplies and Services,"3,803.00",Jul-22
Slough Borough Council,1162,Care Uk Community Partnership Ltd,M18C,Adult Social Care Operations,Supplies and Services,"3,803.00",Jul-22
Slough Borough Council,1162,Care Uk Community Partnership Ltd,M18C,Adult Social Care Operations,Supplies and Services,"3,803.00",Jul-22
Slough Borough Council,1162,Care Uk Community Partnership Ltd,M18C,Adult Social Care Operations,Supplies and Services,"3,969.72",Jul-22
Slough Borough Council,1162,Care Uk Community Partnership Ltd,M18C,Adult Social Care Operations,Supplies and Services,"3,969.72",Jul-22
Slough Borough Council,1162,Care Uk Community Partnership Ltd,M18C,Adult Social Care Operations,Supplies and Services,"3,969.72",Jul-22
Slough Borough Council,1162,Care Uk Community Partnership Ltd,M18C,Adult Social Care Operations,Supplies and Services,"3,803.00",Jul-22
Slough Borough Council,1162,Care Uk Community Partnership Ltd,M18C,Adult Social Care Operations,Supplies and Services,"3,969.72",Jul-22
Slough Borough Council,1162,Care Uk Community Partnership Ltd,M18C,Adult Social Care Operations,Supplies and Services,543.29,Jul-22
Slough Borough Council,1162,Care Uk Community Partnership Ltd,M18C,Adult Social Care Operations,Supplies and Services,"3,969.72",Jul-22
Slough Borough Council,1162,Care Uk Community Partnership Ltd,M25C,Adult Social Care Operations,Supplies and Services,"73,174.92",Jul-22
Slough Borough Council,1162,Care Uk Community Partnership Ltd,M25C,Adult Social Care Operations,Supplies and Services,"-27,875.60",Jul-22
Slough Borough Council,1162,Care Uk Community Partnership Ltd,M25C,Adult Social Care Operations,Supplies and Services,"3,484.52",Jul-22
Slough Borough Council,1162,Care Uk Community Partnership Ltd,M25C,Adult Social Care Operations,Supplies and Services,"3,484.52",Jul-22
Slough Borough Council,1162,Care Uk Community Partnership Ltd,M25C,Adult Social Care Operations,Supplies and Services,"3,484.52",Jul-22
Slough Borough Council,1162,Care Uk Community Partnership Ltd,M25C,Adult Social Care Operations,Supplies and Services,"3,484.52",Jul-22
Slough Borough Council,1162,Care Uk Community Partnership Ltd,M26E,Adult Social Care Operations,Supplies and Services,"3,803.00",Jul-22
Slough Borough Council,1162,Care Uk Community Partnership Ltd,M26E,Adult Social Care Operations,Supplies and Services,"3,803.00",Jul-22
Slough Borough Council,1162,Care Uk Community Partnership Ltd,M27C,Adult Social Care Operations,Supplies and Services,"34,995.40",Jul-22
Slough Borough Council,1162,Care Uk Community Partnership Ltd,M27C,Adult Social Care Operations,Supplies and Services,"3,484.52",Jul-22
Slough Borough Council,1162,Care Uk Community Partnership Ltd,M27C,Adult Social Care Operations,Supplies and Services,"3,181.40",Jul-22
Slough Borough Council,1162,Care Uk Community Partnership Ltd,M27C,Adult Social Care Operations,Supplies and Services,"3,484.52",Jul-22
Slough Borough Council,1162,Care Uk Community Partnership Ltd,M27C,Adult Social Care Operations,Supplies and Services,"3,484.52",Jul-22
Slough Borough Council,1162,Care Uk Community Partnership Ltd,M27C,Adult Social Care Operations,Supplies and Services,"3,484.52",Jul-22
Slough Borough Council,1162,Care Uk Community Partnership Ltd,M27C,Adult Social Care Operations,Supplies and Services,"5,142.86",Jul-22
Slough Borough Council,1162,Care Uk Community Partnership Ltd,M27C,Adult Social Care Operations,Supplies and Services,"5,314.29",Jul-22
Slough Borough Council,1162,Care Uk Community Partnership Ltd,M27C,Adult Social Care Operations,Supplies and Services,"3,484.52",Jul-22
Slough Borough Council,1162,Care Uk Community Partnership Ltd,M27C,Adult Social Care Operations,Supplies and Services,"3,181.40",Jul-22
Slough Borough Council,1162,Care Uk Community Partnership Ltd,M27C,Adult Social Care Operations,Supplies and Services,"3,484.52",Jul-22
Slough Borough Council,1162,Care Uk Community Partnership Ltd,M27C,Adult Social Care Operations,Supplies and Services,"3,484.52",Jul-22
Slough Borough Council,1162,Care Uk Community Partnership Ltd,M27C,Adult Social Care Operations,Supplies and Services,"3,484.52",Jul-22
Slough Borough Council,1162,Care Uk Community Partnership Ltd,M27C,Adult Social Care Operations,Supplies and Services,"3,181.40",Jul-22
Slough Borough Council,1162,Care Uk Community Partnership Ltd,M27C,Adult Social Care Operations,Supplies and Services,"3,484.52",Jul-22
Slough Borough Council,1162,Care Uk Community Partnership Ltd,M27C,Adult Social Care Operations,Supplies and Services,"3,181.40",Jul-22
Slough Borough Council,1162,Care Uk Community Partnership Ltd,M27C,Adult Social Care Operations,Supplies and Services,"3,181.40",Jul-22
Slough Borough Council,1162,Care Uk Community Partnership Ltd,M27C,Adult Social Care Operations,Supplies and Services,"3,484.52",Jul-22
Slough Borough Council,1162,Care Uk Community Partnership Ltd,M27C,Adult Social Care Operations,Supplies and Services,"3,484.52",Jul-22
Slough Borough Council,1162,Care Uk Community Partnership Ltd,M27C,Adult Social Care Operations,Supplies and Services,"3,484.52",Jul-22
Slough Borough Council,1162,Care Uk Community Partnership Ltd,M27C,Adult Social Care Operations,Supplies and Services,"3,484.52",Jul-22
Slough Borough Council,1162,Care Uk Community Partnership Ltd,M27F,Adult Social Care Operations,Supplies and Services,"-3,181.40",Jul-22
Slough Borough Council,1162,Care Uk Community Partnership Ltd,M28C,Adult Social Care Operations,Supplies and Services,"5,142.86",Jul-22
Slough Borough Council,1162,Care Uk Community Partnership Ltd,M28C,Adult Social Care Operations,Supplies and Services,"5,314.29",Jul-22
Slough Borough Council,1162,Care Uk Community Partnership Ltd,M28C,Adult Social Care Operations,Supplies and Services,"5,314.29",Jul-22
Slough Borough Council,804413,Castle Water,B064,Business Services,Premises,"11,560.47",Jul-22
Slough Borough Council,804413,Castle Water,B068,Business Services,Premises,500.94,Jul-22
Slough Borough Council,804413,Castle Water,B068,Business Services,Premises,559.24,Jul-22
Slough Borough Council,804413,Castle Water,B068,Business Services,Premises,532.20,Jul-22
Slough Borough Council,804413,Castle Water,B184,Building Management,Premises,"25,268.64",Jul-22
Slough Borough Council,804413,Castle Water,D900,Place Operations,Premises,551.23,Jul-22
Slough Borough Council,804413,Castle Water,D900,Place Operations,Premises,685.00,Jul-22
Slough Borough Council,418,Castleview School,E620,Children & Families,Supplies and Services,"106,981.65",Jul-22
Slough Borough Council,803560,Centennial Property Limited T/A Rent Connect,H205,Housing (People) Services,Premises,"41,060.00",Jul-22
Slough Borough Council,805619,Centennial Property Limited T/A The Housing Network,H205,Housing (People) Services,Premises,"32,800.00",Jul-22
Slough Borough Council,3609,Centurion Healthcare Ltd,M26E,Adult Social Care Operations,Supplies and Services,"6,031.67",Jul-22
Slough Borough Council,805174,Certas Energy,D900,Place Operations,Supplies and Services,"20,333.42",Jul-22
Slough Borough Council,805174,Certas Energy,D900,Place Operations,Supplies and Services,"27,461.80",Jul-22
Slough Borough Council,805174,Certas Energy,D900,Place Operations,Supplies and Services,872.10,Jul-22
Slough Borough Council,805174,Certas Energy,D750,Place Operations,Supplies and Services,"3,437.26",Jul-22
Slough Borough Council,805174,Certas Energy,D750,Place Operations,Supplies and Services,"2,906.93",Jul-22
Slough Borough Council,2892,Chalfont Lodge,M15D,Adult Social Care Operations,Supplies and Services,"5,978.57",Jul-22
Slough Borough Council,2892,Chalfont Lodge,M15D,Adult Social Care Operations,Supplies and Services,"3,321.43",Jul-22
Slough Borough Council,2892,Chalfont Lodge,M15F,Adult Social Care Operations,Supplies and Services,"8,857.14",Jul-22
Slough Borough Council,2892,Chalfont Lodge,M26E,Adult Social Care Operations,Supplies and Services,"5,978.57",Jul-22
Slough Borough Council,2608,Chandos Lodge Nursing Home,M18C,Adult Social Care Operations,Supplies and Services,"3,600.00",Jul-22
Slough Borough Council,808500,Chartwell Care Services,M26E,Adult Social Care Operations,Supplies and Services,"12,601.84",Jul-22
Slough Borough Council,808500,Chartwell Care Services,M26E,Adult Social Care Operations,Supplies and Services,"13,021.90",Jul-22
Slough Borough Council,808500,Chartwell Care Services,M26E,Adult Social Care Operations,Supplies and Services,"12,601.84",Jul-22
Slough Borough Council,808500,Chartwell Care Services,M26E,Adult Social Care Operations,Supplies and Services,"13,021.90",Jul-22
Slough Borough Council,1877,Chelsie Innes,C322,Community,Supplies and Services,"2,362.65",Jul-22
Slough Borough Council,3114,Cherry Trees Day Nursery,F909,Children & Families,Supplies and Services,"2,970.00",Jul-22
Slough Borough Council,3114,Cherry Trees Day Nursery,F909,Children & Families,Supplies and Services,"26,273.52",Jul-22
Slough Borough Council,2871,Cherry Trees Residential Care,M42F,Adult Social Care Operations,Supplies and Services,"1,660.71",Jul-22
Slough Borough Council,2871,Cherry Trees Residential Care,M42F,Adult Social Care Operations,Supplies and Services,"3,321.43",Jul-22
Slough Borough Council,2871,Cherry Trees Residential Care,M42F,Adult Social Care Operations,Supplies and Services,"3,321.43",Jul-22
Slough Borough Council,807225,Chiltern Way Academy,F551,Children & Families,Supplies and Services,"9,280.00",Jul-22
Slough Borough Council,807225,Chiltern Way Academy,F551,Children & Families,Supplies and Services,"9,280.00",Jul-22
Slough Borough Council,807225,Chiltern Way Academy,F551,Children & Families,Supplies and Services,"1,995.42",Jul-22
Slough Borough Council,807225,Chiltern Way Academy,F551,Children & Families,Supplies and Services,"9,280.00",Jul-22
Slough Borough Council,803495,Christchurch Court Ltd,M15D,Adult Social Care Operations,Supplies and Services,"8,859.80",Jul-22
Slough Borough Council,768,Cippenham Nursery School,F550,Children & Families,Supplies and Services,"4,620.00",Jul-22
Slough Borough Council,807491,Cippenham School,E620,Children & Families,Supplies and Services,"18,541.66",Jul-22
Slough Borough Council,806550,City Homecare Ltd,A07R,Adult Social Care Operations,Supplies and Services,915.60,Jul-22
Slough Borough Council,806550,City Homecare Ltd,M44C,Adult Social Care Operations,Supplies and Services,756.00,Jul-22
Slough Borough Council,806550,City Homecare Ltd,M44C,Adult Social Care Operations,Supplies and Services,"1,881.60",Jul-22
Slough Borough Council,806550,City Homecare Ltd,M44C,Adult Social Care Operations,Supplies and Services,"1,411.20",Jul-22
Slough Borough Council,806550,City Homecare Ltd,M44C,Adult Social Care Operations,Supplies and Services,751.80,Jul-22
Slough Borough Council,806550,City Homecare Ltd,M44C,Adult Social Care Operations,Supplies and Services,890.40,Jul-22
Slough Borough Council,806550,City Homecare Ltd,M44C,Adult Social Care Operations,Supplies and Services,"1,243.20",Jul-22
Slough Borough Council,806550,City Homecare Ltd,M44C,Adult Social Care Operations,Supplies and Services,"1,722.00",Jul-22
Slough Borough Council,806550,City Homecare Ltd,M44C,Adult Social Care Operations,Supplies and Services,663.60,Jul-22
Slough Borough Council,806550,City Homecare Ltd,M44C,Adult Social Care Operations,Supplies and Services,831.60,Jul-22
Slough Borough Council,806550,City Homecare Ltd,M44D,Adult Social Care Operations,Supplies and Services,705.60,Jul-22
Slough Borough Council,806550,City Homecare Ltd,M45C,Adult Social Care Operations,Supplies and Services,823.20,Jul-22
Slough Borough Council,806550,City Homecare Ltd,M48C,Adult Social Care Operations,Supplies and Services,588.00,Jul-22
Slough Borough Council,806550,City Homecare Ltd,M48C,Adult Social Care Operations,Supplies and Services,554.40,Jul-22
Slough Borough Council,1083,Civica Uk Limited,B282,Digital and Strategic IT,Supplies and Services,855.00,Jul-22
Slough Borough Council,1151,Claycots Primary School,F549,Children & Families,Supplies and Services,"4,620.00",Jul-22
Slough Borough Council,1151,Claycots Primary School,F549,Children & Families,Supplies and Services,"4,620.00",Jul-22
Slough Borough Council,1151,Claycots Primary School,E200,Children & Families,Supplies and Services,"986,448.59",Jul-22
Slough Borough Council,2865,Cleapss,F200,Education & Inclusion,Supplies and Services,"2,666.47",Jul-22
Slough Borough Council,408,Clear Channel Uk Ltd,B324,Finance,Supplies and Services,850.00,Jul-22
Slough Borough Council,3685,Coghlan Lodges Limited,M44D,Adult Social Care Operations,Supplies and Services,"2,116.04",Jul-22
Slough Borough Council,3685,Coghlan Lodges Limited,M44F,Adult Social Care Operations,Supplies and Services,"1,870.00",Jul-22
Slough Borough Council,805823,Collaborative Care Solutions,M42E,Adult Social Care Operations,Supplies and Services,"8,857.14",Jul-22
Slough Borough Council,805823,Collaborative Care Solutions,M42E,Adult Social Care Operations,Supplies and Services,"9,477.14",Jul-22
Slough Borough Council,805823,Collaborative Care Solutions,M42E,Adult Social Care Operations,Supplies and Services,"9,211.42",Jul-22
Slough Borough Council,805823,Collaborative Care Solutions,M42E,Adult Social Care Operations,Supplies and Services,"8,857.14",Jul-22
Slough Borough Council,805823,Collaborative Care Solutions,M42E,Adult Social Care Operations,Supplies and Services,"9,211.42",Jul-22
Slough Borough Council,805823,Collaborative Care Solutions,M42E,Adult Social Care Operations,Supplies and Services,"9,477.14",Jul-22
Slough Borough Council,805823,Collaborative Care Solutions,M42F,Adult Social Care Operations,Supplies and Services,"2,971.57",Jul-22
Slough Borough Council,805823,Collaborative Care Solutions,M42F,Adult Social Care Operations,Supplies and Services,"2,657.14",Jul-22
Slough Borough Council,805823,Collaborative Care Solutions,M42F,Adult Social Care Operations,Supplies and Services,"2,657.14",Jul-22
Slough Borough Council,805823,Collaborative Care Solutions,M42F,Adult Social Care Operations,Supplies and Services,"2,971.57",Jul-22
Slough Borough Council,805823,Collaborative Care Solutions,M44D,Adult Social Care Operations,Supplies and Services,"9,211.00",Jul-22
Slough Borough Council,805823,Collaborative Care Solutions,M44D,Adult Social Care Operations,Supplies and Services,"9,211.42",Jul-22
Slough Borough Council,805823,Collaborative Care Solutions,M44F,Adult Social Care Operations,Supplies and Services,"4,982.14",Jul-22
Slough Borough Council,805823,Collaborative Care Solutions,M44F,Adult Social Care Operations,Supplies and Services,"4,317.85",Jul-22
Slough Borough Council,805823,Collaborative Care Solutions,M44F,Adult Social Care Operations,Supplies and Services,"3,365.71",Jul-22
Slough Borough Council,805823,Collaborative Care Solutions,M44F,Adult Social Care Operations,Supplies and Services,"4,317.85",Jul-22
Slough Borough Council,805823,Collaborative Care Solutions,M44F,Adult Social Care Operations,Supplies and Services,"4,317.85",Jul-22
Slough Borough Council,805823,Collaborative Care Solutions,M44F,Adult Social Care Operations,Supplies and Services,"4,317.85",Jul-22
Slough Borough Council,805823,Collaborative Care Solutions,M44F,Adult Social Care Operations,Supplies and Services,"4,982.14",Jul-22
Slough Borough Council,805823,Collaborative Care Solutions,M44F,Adult Social Care Operations,Supplies and Services,"4,317.85",Jul-22
Slough Borough Council,805823,Collaborative Care Solutions,M44F,Adult Social Care Operations,Supplies and Services,"3,365.71",Jul-22
Slough Borough Council,459,Colliers Cre,J006,Place Management,Supplies and Services,"1,250.00",Jul-22
Slough Borough Council,286,Colnbrook C Of E Primary School,E620,Children & Families,Supplies and Services,"58,954.35",Jul-22
Slough Borough Council,2535,Comfort Care Services,M42E,Adult Social Care Operations,Supplies and Services,564.20,Jul-22
Slough Borough Council,2535,Comfort Care Services,M42E,Adult Social Care Operations,Supplies and Services,"2,587.09",Jul-22
Slough Borough Council,2535,Comfort Care Services,M42E,Adult Social Care Operations,Supplies and Services,"3,192.03",Jul-22
Slough Borough Council,2535,Comfort Care Services,M42E,Adult Social Care Operations,Supplies and Services,"1,165.82",Jul-22
Slough Borough Council,2535,Comfort Care Services,M42E,Adult Social Care Operations,Supplies and Services,775.00,Jul-22
Slough Borough Council,2535,Comfort Care Services,M42F,Adult Social Care Operations,Supplies and Services,"1,007.06",Jul-22
Slough Borough Council,2535,Comfort Care Services,M42F,Adult Social Care Operations,Supplies and Services,"1,477.99",Jul-22
Slough Borough Council,2535,Comfort Care Services,M42F,Adult Social Care Operations,Supplies and Services,"2,635.00",Jul-22
Slough Borough Council,2535,Comfort Care Services,M42F,Adult Social Care Operations,Supplies and Services,"3,893.82",Jul-22
Slough Borough Council,2535,Comfort Care Services,M42F,Adult Social Care Operations,Supplies and Services,"1,749.29",Jul-22
Slough Borough Council,2535,Comfort Care Services,M42F,Adult Social Care Operations,Supplies and Services,"2,635.00",Jul-22
Slough Borough Council,2535,Comfort Care Services,M42F,Adult Social Care Operations,Supplies and Services,839.21,Jul-22
Slough Borough Council,2535,Comfort Care Services,M42F,Adult Social Care Operations,Supplies and Services,"2,635.00",Jul-22
Slough Borough Council,2535,Comfort Care Services,M42F,Adult Social Care Operations,Supplies and Services,839.21,Jul-22
Slough Borough Council,2535,Comfort Care Services,M44E,Adult Social Care Operations,Supplies and Services,"4,461.56",Jul-22
Slough Borough Council,2535,Comfort Care Services,M44F,Adult Social Care Operations,Supplies and Services,503.53,Jul-22
Slough Borough Council,2535,Comfort Care Services,M44F,Adult Social Care Operations,Supplies and Services,"1,317.50",Jul-22
Slough Borough Council,2535,Comfort Care Services,M44F,Adult Social Care Operations,Supplies and Services,"3,474.21",Jul-22
Slough Borough Council,2535,Comfort Care Services,M44F,Adult Social Care Operations,Supplies and Services,"2,937.87",Jul-22
Slough Borough Council,3840,Community Housing And Therapy,M80F,Adult Social Care Operations,Supplies and Services,"2,531.14",Jul-22
Slough Borough Council,1772,Computershare Voucher Services,B348,People,Supplies and Services,"2,574.00",Jul-22
Slough Borough Council,807468,"Connect Managed Services (UK) Ltd, trading as Conn3ct",A106,Customer,Supplies and Services,"2,387.12",Jul-22
Slough Borough Council,3290,Corporate Collections London Borough Of Hillingdon,M26E,Adult Social Care Operations,Supplies and Services,"1,632.40",Jul-22
Slough Borough Council,3290,Corporate Collections London Borough Of Hillingdon,M26E,Adult Social Care Operations,Supplies and Services,"1,632.40",Jul-22
Slough Borough Council,3290,Corporate Collections London Borough Of Hillingdon,M26E,Adult Social Care Operations,Supplies and Services,"1,632.40",Jul-22
Slough Borough Council,3290,Corporate Collections London Borough Of Hillingdon,M26E,Adult Social Care Operations,Supplies and Services,"1,632.40",Jul-22
Slough Borough Council,3290,Corporate Collections London Borough Of Hillingdon,M26E,Adult Social Care Operations,Supplies and Services,"1,725.90",Jul-22
Slough Borough Council,3290,Corporate Collections London Borough Of Hillingdon,M26E,Adult Social Care Operations,Supplies and Services,"1,632.40",Jul-22
Slough Borough Council,3290,Corporate Collections London Borough Of Hillingdon,M26E,Adult Social Care Operations,Supplies and Services,"1,707.20",Jul-22
Slough Borough Council,3290,Corporate Collections London Borough Of Hillingdon,M26E,Adult Social Care Operations,Supplies and Services,"1,632.40",Jul-22
Slough Borough Council,3290,Corporate Collections London Borough Of Hillingdon,M26E,Adult Social Care Operations,Supplies and Services,"1,632.40",Jul-22
Slough Borough Council,805278,Countrystyle Recycling Ltd,D342,Place Operations,Supplies and Services,"4,660.00",Jul-22
Slough Borough Council,805278,Countrystyle Recycling Ltd,D342,Place Operations,Supplies and Services,"1,695.90",Jul-22
Slough Borough Council,251,Cox Green School,F552,Children & Families,Supplies and Services,"1,239.00",Jul-22
Slough Borough Council,3670,Craegmoor Birches Grove Priory,M27F,Adult Social Care Operations,Supplies and Services,"1,984.04",Jul-22
Slough Borough Council,3670,Craegmoor Birches Grove Priory,M27F,Adult Social Care Operations,Supplies and Services,"3,823.00",Jul-22
Slough Borough Council,1638,Creative Support Ltd,A02L,Adult Social Care Operations,Supplies and Services,"1,348.65",Jul-22
Slough Borough Council,1638,Creative Support Ltd,A02L,Adult Social Care Operations,Supplies and Services,"1,048.95",Jul-22
Slough Borough Council,1638,Creative Support Ltd,A02L,Adult Social Care Operations,Supplies and Services,"1,565.10",Jul-22
Slough Borough Council,1638,Creative Support Ltd,A02L,Adult Social Care Operations,Supplies and Services,"1,431.90",Jul-22
Slough Borough Council,1638,Creative Support Ltd,A02L,Adult Social Care Operations,Supplies and Services,"1,165.50",Jul-22
Slough Borough Council,1638,Creative Support Ltd,M42E,Adult Social Care Operations,Supplies and Services,"3,013.65",Jul-22
Slough Borough Council,1638,Creative Support Ltd,M42E,Adult Social Care Operations,Supplies and Services,"2,214.45",Jul-22
Slough Borough Council,1638,Creative Support Ltd,M44E,Adult Social Care Operations,Supplies and Services,982.35,Jul-22
Slough Borough Council,1638,Creative Support Ltd,M44E,Adult Social Care Operations,Supplies and Services,999.00,Jul-22
Slough Borough Council,1638,Creative Support Ltd,M44E,Adult Social Care Operations,Supplies and Services,932.40,Jul-22
Slough Borough Council,806542,Cripps LLP t/a Cripps Pemberton Greenish,B480,Regeneration Development,Supplies and Services,598.00,Jul-22
Slough Borough Council,806542,Cripps LLP t/a Cripps Pemberton Greenish,B480,Regeneration Development,Supplies and Services,"1,950.00",Jul-22
Slough Borough Council,806542,Cripps LLP t/a Cripps Pemberton Greenish,B480,Regeneration Development,Supplies and Services,"2,838.00",Jul-22
Slough Borough Council,806983,Critiqom,H015,Finance & Commercial,Supplies and Services,"1,029.61",Jul-22
Slough Borough Council,806983,Critiqom,H015,Finance & Commercial,Supplies and Services,504.44,Jul-22
Slough Borough Council,806900,CYXTERA TECHNOLOGY UK LIMITED,B282,Digital and Strategic IT,Supplies and Services,"12,489.18",Jul-22
Slough Borough Council,1897,Datchet St.Marys C Of E Academy,F552,Children & Families,Supplies and Services,"1,859.00",Jul-22
Slough Borough Council,1897,Datchet St.Marys C Of E Academy,F552,Children & Families,Supplies and Services,"1,918.00",Jul-22
Slough Borough Council,807288,David Allwood,C322,Community,Supplies and Services,"2,313.00",Jul-22
Slough Borough Council,807440,David Peplow,A04A,Adult Social Care Operations,Supplies and Services,680.00,Jul-22
Slough Borough Council,804903,Dennis Eagle Limited,D610,Place Operations,Supplies and Services,663.62,Jul-22
Slough Borough Council,804903,Dennis Eagle Limited,D630,Place Operations,Supplies and Services,783.88,Jul-22
Slough Borough Council,805483,Direct Tyre Managenent Ltd,D610,Place Operations,Transport,714.06,Jul-22
Slough Borough Council,805483,Direct Tyre Managenent Ltd,D630,Place Operations,Transport,555.68,Jul-22
Slough Borough Council,803306,Ditton Park Academy,E620,Children & Families,Supplies and Services,"161,431.61",Jul-22
Slough Borough Council,803306,Ditton Park Academy,B297,Finance & Commercial,Government Grants,"2,850.00",Jul-22
Slough Borough Council,807793,Dorney School,F551,Children & Families,Supplies and Services,"2,833.33",Jul-22
Slough Borough Council,1457,Dr Norman Gordon,D320,Place Operations,Premises,"2,060.00",Jul-22
Slough Borough Council,1517,Dr Patrick Purcell,A02A,Adult Social Care Operations,Supplies and Services,"2,428.93",Jul-22
Slough Borough Council,803177,Early Steps Preschool,F909,Children & Families,Supplies and Services,810.00,Jul-22
Slough Borough Council,803177,Early Steps Preschool,F909,Children & Families,Supplies and Services,"6,270.20",Jul-22
Slough Borough Council,780,East Sussex County Council,F123,Education & Inclusion,Supplies and Services,"5,449.92",Jul-22
Slough Borough Council,2575,Easy Care Systems Ltd,P006,Capital,Capital Charges,"1,884.00",Jul-22
Slough Borough Council,803301,Eden Girls School,E610,Children & Families,Supplies and Services,"4,874.31",Jul-22
Slough Borough Council,807001,Elegant Care Services Ltd,M42E,Adult Social Care Operations,Supplies and Services,"5,757.14",Jul-22
Slough Borough Council,807001,Elegant Care Services Ltd,M42E,Adult Social Care Operations,Supplies and Services,"10,185.71",Jul-22
Slough Borough Council,807001,Elegant Care Services Ltd,M42E,Adult Social Care Operations,Supplies and Services,"5,978.57",Jul-22
Slough Borough Council,807001,Elegant Care Services Ltd,M44C,Adult Social Care Operations,Supplies and Services,"6,753.57",Jul-22
Slough Borough Council,806355,Elysium Healthcare,M26E,Adult Social Care Operations,Supplies and Services,"10,688.40",Jul-22
Slough Borough Council,806355,Elysium Healthcare,M26E,Adult Social Care Operations,Supplies and Services,"9,267.60",Jul-22
Slough Borough Council,3752,Endurance Health,A07R,Adult Social Care Operations,Supplies and Services,"2,013.80",Jul-22
Slough Borough Council,3752,Endurance Health,A07R,Adult Social Care Operations,Supplies and Services,"2,052.78",Jul-22
Slough Borough Council,3752,Endurance Health,M44C,Adult Social Care Operations,Supplies and Services,"1,124.55",Jul-22
Slough Borough Council,3752,Endurance Health,M44C,Adult Social Care Operations,Supplies and Services,"1,367.31",Jul-22
Slough Borough Council,3752,Endurance Health,M44C,Adult Social Care Operations,Supplies and Services,874.65,Jul-22
Slough Borough Council,3752,Endurance Health,M44C,Adult Social Care Operations,Supplies and Services,"2,249.10",Jul-22
Slough Borough Council,3752,Endurance Health,M44C,Adult Social Care Operations,Supplies and Services,562.29,Jul-22
Slough Borough Council,3752,Endurance Health,M44C,Adult Social Care Operations,Supplies and Services,"1,570.80",Jul-22
Slough Borough Council,3752,Endurance Health,M44C,Adult Social Care Operations,Supplies and Services,"1,111.18",Jul-22
Slough Borough Council,3752,Endurance Health,M44C,Adult Social Care Operations,Supplies and Services,"1,124.55",Jul-22
Slough Borough Council,3752,Endurance Health,M44C,Adult Social Care Operations,Supplies and Services,"1,124.55",Jul-22
Slough Borough Council,3752,Endurance Health,M44C,Adult Social Care Operations,Supplies and Services,999.60,Jul-22
Slough Borough Council,3752,Endurance Health,M44C,Adult Social Care Operations,Supplies and Services,"1,096.60",Jul-22
Slough Borough Council,3752,Endurance Health,M44C,Adult Social Care Operations,Supplies and Services,"1,124.55",Jul-22
Slough Borough Council,3752,Endurance Health,M44C,Adult Social Care Operations,Supplies and Services,"1,124.55",Jul-22
Slough Borough Council,3752,Endurance Health,M44C,Adult Social Care Operations,Supplies and Services,"1,124.55",Jul-22
Slough Borough Council,3752,Endurance Health,M44C,Adult Social Care Operations,Supplies and Services,696.15,Jul-22
Slough Borough Council,3752,Endurance Health,M44C,Adult Social Care Operations,Supplies and Services,"1,187.89",Jul-22
Slough Borough Council,3752,Endurance Health,M44C,Adult Social Care Operations,Supplies and Services,"2,249.10",Jul-22
Slough Borough Council,3752,Endurance Health,M44C,Adult Social Care Operations,Supplies and Services,606.90,Jul-22
Slough Borough Council,3752,Endurance Health,M44C,Adult Social Care Operations,Supplies and Services,"2,152.85",Jul-22
Slough Borough Council,3752,Endurance Health,M44C,Adult Social Care Operations,Supplies and Services,"1,999.20",Jul-22
Slough Borough Council,3752,Endurance Health,M44C,Adult Social Care Operations,Supplies and Services,571.20,Jul-22
Slough Borough Council,3752,Endurance Health,M44C,Adult Social Care Operations,Supplies and Services,"1,249.50",Jul-22
Slough Borough Council,3752,Endurance Health,M44C,Adult Social Care Operations,Supplies and Services,946.05,Jul-22
Slough Borough Council,3752,Endurance Health,M44C,Adult Social Care Operations,Supplies and Services,"1,124.55",Jul-22
Slough Borough Council,3752,Endurance Health,M44C,Adult Social Care Operations,Supplies and Services,565.15,Jul-22
Slough Borough Council,3752,Endurance Health,M44C,Adult Social Care Operations,Supplies and Services,"1,374.45",Jul-22
Slough Borough Council,3752,Endurance Health,M44C,Adult Social Care Operations,Supplies and Services,838.07,Jul-22
Slough Borough Council,3752,Endurance Health,M44C,Adult Social Care Operations,Supplies and Services,734.24,Jul-22
Slough Borough Council,3752,Endurance Health,M44D,Adult Social Care Operations,Supplies and Services,875.26,Jul-22
Slough Borough Council,3752,Endurance Health,M44D,Adult Social Care Operations,Supplies and Services,874.65,Jul-22
Slough Borough Council,3752,Endurance Health,M44D,Adult Social Care Operations,Supplies and Services,624.75,Jul-22
Slough Borough Council,3752,Endurance Health,M44D,Adult Social Care Operations,Supplies and Services,"1,124.55",Jul-22
Slough Borough Council,3752,Endurance Health,M44D,Adult Social Care Operations,Supplies and Services,"1,178.10",Jul-22
Slough Borough Council,3752,Endurance Health,M44D,Adult Social Care Operations,Supplies and Services,"2,499.00",Jul-22
Slough Borough Council,3752,Endurance Health,M44F,Adult Social Care Operations,Supplies and Services,606.90,Jul-22
Slough Borough Council,3752,Endurance Health,M45C,Adult Social Care Operations,Supplies and Services,874.65,Jul-22
Slough Borough Council,3752,Endurance Health,M48C,Adult Social Care Operations,Supplies and Services,763.40,Jul-22
Slough Borough Council,3752,Endurance Health,M48C,Adult Social Care Operations,Supplies and Services,"2,998.80",Jul-22
Slough Borough Council,3752,Endurance Health,M48C,Adult Social Care Operations,Supplies and Services,874.65,Jul-22
Slough Borough Council,808417,Enerveo Limited,D413,Place Strategy & Infrastructure,Supplies and Services,"6,995.00",Jul-22
Slough Borough Council,808450,Enhance EHC Limited,F500,Education & Inclusion,Supplies and Services,"3,823.00",Jul-22
Slough Borough Council,805423,Enriched Care,M44D,Adult Social Care Operations,Supplies and Services,"3,741.70",Jul-22
Slough Borough Council,805423,Enriched Care,M44F,Adult Social Care Operations,Supplies and Services,"2,613.30",Jul-22
Slough Borough Council,805423,Enriched Care,M44F,Adult Social Care Operations,Supplies and Services,"2,879.90",Jul-22
Slough Borough Council,805423,Enriched Care,M44F,Adult Social Care Operations,Supplies and Services,"4,417.50",Jul-22
Slough Borough Council,805423,Enriched Care,M44F,Adult Social Care Operations,Supplies and Services,"2,768.30",Jul-22
Slough Borough Council,805423,Enriched Care,M44F,Adult Social Care Operations,Supplies and Services,"2,879.90",Jul-22
Slough Borough Council,805423,Enriched Care,M80F,Adult Social Care Operations,Supplies and Services,"1,758.01",Jul-22
Slough Borough Council,807310,Enterprise Rent-A-Car UK Limited trading as Enterprise Flex-E-Rent,D900,Place Operations,Transport,"27,639.10",Jul-22
Slough Borough Council,807310,Enterprise Rent-A-Car UK Limited trading as Enterprise Flex-E-Rent,D900,Place Operations,Transport,"27,639.10",Jul-22
Slough Borough Council,807310,Enterprise Rent-A-Car UK Limited trading as Enterprise Flex-E-Rent,D900,Place Operations,Transport,"27,639.10",Jul-22
Slough Borough Council,4035,Ernst & Young Llp,B015,Finance,Supplies and Services,"28,122.55",Jul-22
Slough Borough Council,4035,Ernst & Young Llp,B015,Finance,Supplies and Services,"54,000.00",Jul-22
Slough Borough Council,803645,Esotec,K089,Place Regulation,Supplies and Services,"115,215.10",Jul-22
Slough Borough Council,2677,Eton House Residential Home,M25C,Adult Social Care Operations,Supplies and Services,"3,534.00",Jul-22
Slough Borough Council,2677,Eton House Residential Home,M25C,Adult Social Care Operations,Supplies and Services,"3,534.00",Jul-22
Slough Borough Council,2677,Eton House Residential Home,M25C,Adult Social Care Operations,Supplies and Services,"3,534.00",Jul-22
Slough Borough Council,2677,Eton House Residential Home,M25C,Adult Social Care Operations,Supplies and Services,"3,534.00",Jul-22
Slough Borough Council,2677,Eton House Residential Home,M25D,Adult Social Care Operations,Supplies and Services,"3,199.64",Jul-22
Slough Borough Council,2677,Eton House Residential Home,M25D,Adult Social Care Operations,Supplies and Services,"3,199.64",Jul-22
Slough Borough Council,2677,Eton House Residential Home,M27C,Adult Social Care Operations,Supplies and Services,"2,657.14",Jul-22
Slough Borough Council,2677,Eton House Residential Home,M27C,Adult Social Care Operations,Supplies and Services,"2,657.14",Jul-22
Slough Borough Council,2677,Eton House Residential Home,M27C,Adult Social Care Operations,Supplies and Services,"2,657.14",Jul-22
Slough Borough Council,2677,Eton House Residential Home,M27C,Adult Social Care Operations,Supplies and Services,"2,657.14",Jul-22
Slough Borough Council,807198,everyLIFE. Technologies Ltd,A07R,Adult Social Care Operations,Supplies and Services,"1,445.85",Jul-22
Slough Borough Council,806501,Excellent Healthcare Services Ltd,A07R,Adult Social Care Operations,Supplies and Services,"1,421.17",Jul-22
Slough Borough Council,806501,Excellent Healthcare Services Ltd,M44C,Adult Social Care Operations,Supplies and Services,"2,144.52",Jul-22
Slough Borough Council,806501,Excellent Healthcare Services Ltd,M44C,Adult Social Care Operations,Supplies and Services,595.70,Jul-22
Slough Borough Council,806501,Excellent Healthcare Services Ltd,M44C,Adult Social Care Operations,Supplies and Services,595.70,Jul-22
Slough Borough Council,806501,Excellent Healthcare Services Ltd,M44C,Adult Social Care Operations,Supplies and Services,833.98,Jul-22
Slough Borough Council,806501,Excellent Healthcare Services Ltd,M44C,Adult Social Care Operations,Supplies and Services,"1,072.26",Jul-22
Slough Borough Council,806501,Excellent Healthcare Services Ltd,M44C,Adult Social Care Operations,Supplies and Services,"1,659.45",Jul-22
Slough Borough Council,806501,Excellent Healthcare Services Ltd,M44C,Adult Social Care Operations,Supplies and Services,"2,144.52",Jul-22
Slough Borough Council,806501,Excellent Healthcare Services Ltd,M44C,Adult Social Care Operations,Supplies and Services,714.84,Jul-22
Slough Borough Council,806501,Excellent Healthcare Services Ltd,M44C,Adult Social Care Operations,Supplies and Services,510.60,Jul-22
Slough Borough Council,806501,Excellent Healthcare Services Ltd,M44D,Adult Social Care Operations,Supplies and Services,"1,072.26",Jul-22
Slough Borough Council,806501,Excellent Healthcare Services Ltd,M44F,Adult Social Care Operations,Supplies and Services,714.84,Jul-22
Slough Borough Council,806501,Excellent Healthcare Services Ltd,M44F,Adult Social Care Operations,Supplies and Services,"2,382.80",Jul-22
Slough Borough Council,806501,Excellent Healthcare Services Ltd,M44F,Adult Social Care Operations,Supplies and Services,953.12,Jul-22
Slough Borough Council,427,Experian Ltd,H015,Finance & Commercial,Supplies and Services,"4,312.00",Jul-22
Slough Borough Council,808079,Fairley House School,F462,Children & Families,Supplies and Services,"11,368.00",Jul-22
Slough Borough Council,805225,Falcon Surfacing Ltd,D880,Place Operations,Supplies and Services,"7,345.74",Jul-22
Slough Borough Council,805225,Falcon Surfacing Ltd,D880,Place Operations,Supplies and Services,"3,065.00",Jul-22
Slough Borough Council,805225,Falcon Surfacing Ltd,D880,Place Operations,Supplies and Services,"1,528.34",Jul-22
Slough Borough Council,805225,Falcon Surfacing Ltd,D880,Place Operations,Supplies and Services,"4,575.00",Jul-22
Slough Borough Council,805225,Falcon Surfacing Ltd,D880,Place Operations,Supplies and Services,"12,135.16",Jul-22
Slough Borough Council,805225,Falcon Surfacing Ltd,D880,Place Operations,Supplies and Services,800.00,Jul-22
Slough Borough Council,805225,Falcon Surfacing Ltd,D880,Place Operations,Supplies and Services,"2,622.20",Jul-22
Slough Borough Council,805225,Falcon Surfacing Ltd,D880,Place Operations,Supplies and Services,"1,779.22",Jul-22
Slough Borough Council,805225,Falcon Surfacing Ltd,D880,Place Operations,Supplies and Services,"6,982.18",Jul-22
Slough Borough Council,805225,Falcon Surfacing Ltd,D880,Place Operations,Supplies and Services,"1,260.00",Jul-22
Slough Borough Council,805225,Falcon Surfacing Ltd,D880,Place Operations,Supplies and Services,"1,110.00",Jul-22
Slough Borough Council,805225,Falcon Surfacing Ltd,D880,Place Operations,Supplies and Services,"2,137.50",Jul-22
Slough Borough Council,805225,Falcon Surfacing Ltd,D880,Place Operations,Supplies and Services,"1,193.50",Jul-22
Slough Borough Council,805225,Falcon Surfacing Ltd,D880,Place Operations,Supplies and Services,"8,625.50",Jul-22
Slough Borough Council,805225,Falcon Surfacing Ltd,D880,Place Operations,Supplies and Services,"1,450.00",Jul-22
Slough Borough Council,805225,Falcon Surfacing Ltd,D880,Place Operations,Supplies and Services,"1,955.80",Jul-22
Slough Borough Council,805225,Falcon Surfacing Ltd,D880,Place Operations,Supplies and Services,"1,186.48",Jul-22
Slough Borough Council,805225,Falcon Surfacing Ltd,D880,Place Operations,Supplies and Services,"4,575.00",Jul-22
Slough Borough Council,805225,Falcon Surfacing Ltd,D880,Place Operations,Supplies and Services,"2,465.00",Jul-22
Slough Borough Council,805225,Falcon Surfacing Ltd,D880,Place Operations,Supplies and Services,840.00,Jul-22
Slough Borough Council,805225,Falcon Surfacing Ltd,D880,Place Operations,Supplies and Services,"1,541.82",Jul-22
Slough Borough Council,4031,Family Support Practise Limited,A03D,Adult Social Care Operations,Supplies and Services,"2,189.25",Jul-22
Slough Borough Council,4031,Family Support Practise Limited,B277,Digital and Strategic IT,Supplies and Services,"1,800.00",Jul-22
Slough Borough Council,4031,Family Support Practise Limited,B277,Digital and Strategic IT,Supplies and Services,"1,800.00",Jul-22
Slough Borough Council,4031,Family Support Practise Limited,B277,Digital and Strategic IT,Supplies and Services,"1,800.00",Jul-22
Slough Borough Council,4031,Family Support Practise Limited,B277,Digital and Strategic IT,Supplies and Services,"1,800.00",Jul-22
Slough Borough Council,4031,Family Support Practise Limited,B277,Digital and Strategic IT,Supplies and Services,"1,800.00",Jul-22
Slough Borough Council,475,Farnham Road Surgery,A04C,Adult Social Care Operations,Supplies and Services,673.29,Jul-22
Slough Borough Council,475,Farnham Road Surgery,A04C,Adult Social Care Operations,Supplies and Services,"13,953.66",Jul-22
Slough Borough Council,807620,FERN CONSULTING SERVICES LTD,D012,Place Strategy & Infrastructure,Supplies and Services,"1,360.00",Jul-22
Slough Borough Council,1413,First Greater Western Ltd,F123,Education & Inclusion,Supplies and Services,897.40,Jul-22
Slough Borough Council,754,First Steps Day Nursery,F909,Children & Families,Supplies and Services,"10,168.53",Jul-22
Slough Borough Council,1626,Five Star Radio Cars Limited,F123,Education & Inclusion,Supplies and Services,"1,805.00",Jul-22
Slough Borough Council,1626,Five Star Radio Cars Limited,F123,Education & Inclusion,Supplies and Services,"1,353.75",Jul-22
Slough Borough Council,1626,Five Star Radio Cars Limited,F123,Education & Inclusion,Supplies and Services,"1,895.25",Jul-22
Slough Borough Council,1626,Five Star Radio Cars Limited,F123,Education & Inclusion,Supplies and Services,"1,805.00",Jul-22
Slough Borough Council,1626,Five Star Radio Cars Limited,F123,Education & Inclusion,Supplies and Services,"1,282.50",Jul-22
Slough Borough Council,1626,Five Star Radio Cars Limited,F123,Education & Inclusion,Supplies and Services,"1,795.50",Jul-22
Slough Borough Council,1626,Five Star Radio Cars Limited,F123,Education & Inclusion,Supplies and Services,"3,060.00",Jul-22
Slough Borough Council,1626,Five Star Radio Cars Limited,F123,Education & Inclusion,Supplies and Services,"2,520.00",Jul-22
Slough Borough Council,647,Foxborough Primary School,F200,Education & Inclusion,Salaries and Wages-Employees Expenses,"1,534.72",Jul-22
Slough Borough Council,647,Foxborough Primary School,E620,Children & Families,Supplies and Services,"11,769.04",Jul-22
Slough Borough Council,806480,Frontier NX Limited,A04C,Adult Social Care Operations,Supplies and Services,"3,766.50",Jul-22
Slough Borough Council,806480,Frontier NX Limited,A04C,Adult Social Care Operations,Supplies and Services,"1,090.50",Jul-22
Slough Borough Council,803540,Furze Platt Senior School,F553,Children & Families,Supplies and Services,"7,888.00",Jul-22
Slough Borough Council,803540,Furze Platt Senior School,F553,Children & Families,Supplies and Services,"3,563.00",Jul-22
Slough Borough Council,1555,Gallagher Bassett,B018,Finance & Commercial,Supplies and Services,"27,656.75",Jul-22
Slough Borough Council,1758,Gas Advisory Services Limited,J606,Place Management,Supplies and Services,"1,677.00",Jul-22
Slough Borough Council,1758,Gas Advisory Services Limited,J606,Place Management,Supplies and Services,"4,170.00",Jul-22
Slough Borough Council,1758,Gas Advisory Services Limited,J606,Place Management,Supplies and Services,840.00,Jul-22
Slough Borough Council,1758,Gas Advisory Services Limited,J606,Place Management,Supplies and Services,840.00,Jul-22
Slough Borough Council,807626,Global Radio Services Ltd,B283,Finance & Commercial,Supplies and Services,"3,565.00",Jul-22
Slough Borough Council,1682,Gpex,D750,Place Operations,Supplies and Services,536.00,Jul-22
Slough Borough Council,1682,Gpex,D750,Place Operations,Supplies and Services,638.00,Jul-22
Slough Borough Council,2830,GR Response Healthcare Ltd,A07R,Adult Social Care Operations,Supplies and Services,"1,254.00",Jul-22
Slough Borough Council,2830,GR Response Healthcare Ltd,M44C,Adult Social Care Operations,Supplies and Services,"2,499.92",Jul-22
Slough Borough Council,2830,GR Response Healthcare Ltd,M44C,Adult Social Care Operations,Supplies and Services,"2,394.00",Jul-22
Slough Borough Council,2830,GR Response Healthcare Ltd,M44C,Adult Social Care Operations,Supplies and Services,"1,482.00",Jul-22
Slough Borough Council,2830,GR Response Healthcare Ltd,M44C,Adult Social Care Operations,Supplies and Services,"2,394.00",Jul-22
Slough Borough Council,2830,GR Response Healthcare Ltd,M44C,Adult Social Care Operations,Supplies and Services,950.00,Jul-22
Slough Borough Council,2830,GR Response Healthcare Ltd,M44C,Adult Social Care Operations,Supplies and Services,"2,394.00",Jul-22
Slough Borough Council,2830,GR Response Healthcare Ltd,M44C,Adult Social Care Operations,Supplies and Services,"2,394.00",Jul-22
Slough Borough Council,2830,GR Response Healthcare Ltd,M44C,Adult Social Care Operations,Supplies and Services,"2,546.00",Jul-22
Slough Borough Council,2830,GR Response Healthcare Ltd,M44C,Adult Social Care Operations,Supplies and Services,"2,125.08",Jul-22
Slough Borough Council,2830,GR Response Healthcare Ltd,M44C,Adult Social Care Operations,Supplies and Services,"2,000.32",Jul-22
Slough Borough Council,2830,GR Response Healthcare Ltd,M44C,Adult Social Care Operations,Supplies and Services,"2,178.44",Jul-22
Slough Borough Council,2830,GR Response Healthcare Ltd,M44C,Adult Social Care Operations,Supplies and Services,"1,433.27",Jul-22
Slough Borough Council,2830,GR Response Healthcare Ltd,M44C,Adult Social Care Operations,Supplies and Services,"2,499.92",Jul-22
Slough Borough Council,2830,GR Response Healthcare Ltd,M44C,Adult Social Care Operations,Supplies and Services,"1,482.38",Jul-22
Slough Borough Council,2830,GR Response Healthcare Ltd,M44C,Adult Social Care Operations,Supplies and Services,"1,330.00",Jul-22
Slough Borough Council,2830,GR Response Healthcare Ltd,M44C,Adult Social Care Operations,Supplies and Services,"2,394.00",Jul-22
Slough Borough Council,2830,GR Response Healthcare Ltd,M44C,Adult Social Care Operations,Supplies and Services,"2,660.40",Jul-22
Slough Borough Council,2830,GR Response Healthcare Ltd,M44C,Adult Social Care Operations,Supplies and Services,"1,750.28",Jul-22
Slough Borough Council,2830,GR Response Healthcare Ltd,M44C,Adult Social Care Operations,Supplies and Services,"1,691.00",Jul-22
Slough Borough Council,2830,GR Response Healthcare Ltd,M44C,Adult Social Care Operations,Supplies and Services,"2,205.44",Jul-22
Slough Borough Council,2830,GR Response Healthcare Ltd,M44C,Adult Social Care Operations,Supplies and Services,"2,546.00",Jul-22
Slough Borough Council,2830,GR Response Healthcare Ltd,M44C,Adult Social Care Operations,Supplies and Services,"1,529.50",Jul-22
Slough Borough Council,2830,GR Response Healthcare Ltd,M44C,Adult Social Care Operations,Supplies and Services,"1,795.50",Jul-22
Slough Borough Council,2830,GR Response Healthcare Ltd,M44C,Adult Social Care Operations,Supplies and Services,"2,394.00",Jul-22
Slough Borough Council,2830,GR Response Healthcare Ltd,M44C,Adult Social Care Operations,Supplies and Services,"1,357.36",Jul-22
Slough Borough Council,2830,GR Response Healthcare Ltd,M44D,Adult Social Care Operations,Supplies and Services,"2,698.00",Jul-22
Slough Borough Council,2830,GR Response Healthcare Ltd,M44D,Adult Social Care Operations,Supplies and Services,"2,250.08",Jul-22
Slough Borough Council,2830,GR Response Healthcare Ltd,M44D,Adult Social Care Operations,Supplies and Services,"1,596.00",Jul-22
Slough Borough Council,2830,GR Response Healthcare Ltd,M44D,Adult Social Care Operations,Supplies and Services,"2,394.00",Jul-22
Slough Borough Council,2830,GR Response Healthcare Ltd,M44D,Adult Social Care Operations,Supplies and Services,693.50,Jul-22
Slough Borough Council,2830,GR Response Healthcare Ltd,M44D,Adult Social Care Operations,Supplies and Services,"2,394.00",Jul-22
Slough Borough Council,2830,GR Response Healthcare Ltd,M44D,Adult Social Care Operations,Supplies and Services,"2,044.72",Jul-22
Slough Borough Council,2830,GR Response Healthcare Ltd,M44D,Adult Social Care Operations,Supplies and Services,931.00,Jul-22
Slough Borough Council,2830,GR Response Healthcare Ltd,M44D,Adult Social Care Operations,Supplies and Services,"1,596.00",Jul-22
Slough Borough Council,2830,GR Response Healthcare Ltd,M44D,Adult Social Care Operations,Supplies and Services,"2,603.00",Jul-22
Slough Borough Council,2830,GR Response Healthcare Ltd,M44D,Adult Social Care Operations,Supplies and Services,"1,491.12",Jul-22
Slough Borough Council,2830,GR Response Healthcare Ltd,M44F,Adult Social Care Operations,Supplies and Services,570.92,Jul-22
Slough Borough Council,2830,GR Response Healthcare Ltd,M44F,Adult Social Care Operations,Supplies and Services,"2,128.00",Jul-22
Slough Borough Council,2830,GR Response Healthcare Ltd,M44F,Adult Social Care Operations,Supplies and Services,570.92,Jul-22
Slough Borough Council,2830,GR Response Healthcare Ltd,M44F,Adult Social Care Operations,Supplies and Services,"2,128.00",Jul-22
Slough Borough Council,2830,GR Response Healthcare Ltd,M45C,Adult Social Care Operations,Supplies and Services,570.00,Jul-22
Slough Borough Council,2830,GR Response Healthcare Ltd,M45C,Adult Social Care Operations,Supplies and Services,"2,394.00",Jul-22
Slough Borough Council,2830,GR Response Healthcare Ltd,M45C,Adult Social Care Operations,Supplies and Services,"1,927.80",Jul-22
Slough Borough Council,2830,GR Response Healthcare Ltd,M45C,Adult Social Care Operations,Supplies and Services,"2,249.52",Jul-22
Slough Borough Council,2830,GR Response Healthcare Ltd,M45C,Adult Social Care Operations,Supplies and Services,"2,394.00",Jul-22
Slough Borough Council,2830,GR Response Healthcare Ltd,M48C,Adult Social Care Operations,Supplies and Services,"3,002.00",Jul-22
Slough Borough Council,2830,GR Response Healthcare Ltd,M48C,Adult Social Care Operations,Supplies and Services,"3,002.00",Jul-22
Slough Borough Council,2830,GR Response Healthcare Ltd,A06C,Adult Social Care Commissioning,Supplies and Services,"10,250.00",Jul-22
Slough Borough Council,805186,Grafton Merchanting GB Ltd,D880,Place Operations,Supplies and Services,"2,187.80",Jul-22
Slough Borough Council,807255,Green Corridor,F558,Children & Families,Supplies and Services,"17,020.33",Jul-22
Slough Borough Council,807255,Green Corridor,F558,Children & Families,Supplies and Services,"17,020.33",Jul-22
Slough Borough Council,807255,Green Corridor,F558,Children & Families,Supplies and Services,"17,296.58",Jul-22
Slough Borough Council,808378,Greensleeves Care,M17C,Adult Social Care Operations,Supplies and Services,"3,614.07",Jul-22
Slough Borough Council,808464,Greenstone Care,M51C,Adult Social Care Operations,Supplies and Services,"1,800.00",Jul-22
Slough Borough Council,808464,Greenstone Care,M51C,Adult Social Care Operations,Supplies and Services,"1,620.00",Jul-22
Slough Borough Council,808464,Greenstone Care,M51C,Adult Social Care Operations,Supplies and Services,"1,860.00",Jul-22
Slough Borough Council,808464,Greenstone Care,M51C,Adult Social Care Operations,Supplies and Services,"1,504.00",Jul-22
Slough Borough Council,805069,Grove Academy,F253,Children & Families,Agency Staff,"1,000.00",Jul-22
Slough Borough Council,805069,Grove Academy,E610,Children & Families,Supplies and Services,"5,175.57",Jul-22
Slough Borough Council,804447,Grundon Waste Management Limited,D342,Place Operations,Supplies and Services,"495,524.47",Jul-22
Slough Borough Council,3228,H Plus Care Ltd,M17C,Adult Social Care Operations,Supplies and Services,"5,314.29",Jul-22
Slough Borough Council,3228,H Plus Care Ltd,M17C,Adult Social Care Operations,Supplies and Services,"5,142.86",Jul-22
Slough Borough Council,3228,H Plus Care Ltd,M17C,Adult Social Care Operations,Supplies and Services,"5,314.29",Jul-22
Slough Borough Council,3228,H Plus Care Ltd,M18C,Adult Social Care Operations,Supplies and Services,"5,314.29",Jul-22
Slough Borough Council,3228,H Plus Care Ltd,M18C,Adult Social Care Operations,Supplies and Services,"5,142.86",Jul-22
Slough Borough Council,3228,H Plus Care Ltd,M18C,Adult Social Care Operations,Supplies and Services,"5,314.29",Jul-22
Slough Borough Council,3228,H Plus Care Ltd,M25C,Adult Social Care Operations,Supplies and Services,"5,535.71",Jul-22
Slough Borough Council,3228,H Plus Care Ltd,M26E,Adult Social Care Operations,Supplies and Services,"5,314.29",Jul-22
Slough Borough Council,806681,Hako Machines Ltd,D620,Place Operations,Supplies and Services,597.42,Jul-22
Slough Borough Council,744,Hampshire County Council,D015,Place Strategy & Infrastructure,Supplies and Services,"12,982.77",Jul-22
Slough Borough Council,837,Hands Free Computing Ltd,M99C,Children & Families,Supplies and Services,948.00,Jul-22
Slough Borough Council,804986,Havencare Ltd,M26E,Adult Social Care Operations,Supplies and Services,"1,279.50",Jul-22
Slough Borough Council,804986,Havencare Ltd,M26E,Adult Social Care Operations,Supplies and Services,"1,279.50",Jul-22
Slough Borough Council,804986,Havencare Ltd,M26E,Adult Social Care Operations,Supplies and Services,"1,279.50",Jul-22
Slough Borough Council,804986,Havencare Ltd,M26E,Adult Social Care Operations,Supplies and Services,"1,279.50",Jul-22
Slough Borough Council,1381,Haybrook College,E610,Children & Families,Supplies and Services,"27,978.57",Jul-22
Slough Borough Council,3784,Haybrook College Pru,E610,Children & Families,Supplies and Services,"54,200.00",Jul-22
Slough Borough Council,803248,Haybrook College Trust,F166,Education & Inclusion,Supplies and Services,"3,000.00",Jul-22
Slough Borough Council,803248,Haybrook College Trust,F166,Education & Inclusion,Supplies and Services,"2,100.00",Jul-22
Slough Borough Council,803248,Haybrook College Trust,B297,Finance & Commercial,Government Grants,"7,650.00",Jul-22
Slough Borough Council,808074,HD Teamwear LTD,C424,Community,Supplies and Services,"1,096.30",Jul-22
Slough Borough Council,805368,Heathermount School,F462,Children & Families,Supplies and Services,"17,445.79",Jul-22
Slough Borough Council,805368,Heathermount School,F462,Children & Families,Supplies and Services,"17,445.79",Jul-22
Slough Borough Council,807682,Help and Care,A02C,Adult Social Care Commissioning,Supplies and Services,"16,109.74",Jul-22
Slough Borough Council,807682,Help and Care,A02C,Adult Social Care Commissioning,Supplies and Services,"16,109.74",Jul-22
Slough Borough Council,3387,Herschel Grammar School,B297,Finance & Commercial,Government Grants,"6,750.00",Jul-22
Slough Borough Council,807998,Heywood's Catering,F382,Children & Families,Supplies and Services,"2,316.00",Jul-22
Slough Borough Council,807998,Heywood's Catering,F382,Children & Families,Supplies and Services,"10,561.98",Jul-22
Slough Borough Council,806731,High Hurlands Homes,M26E,Adult Social Care Operations,Supplies and Services,"2,578.41",Jul-22
Slough Borough Council,806731,High Hurlands Homes,M26E,Adult Social Care Operations,Supplies and Services,-825.77,Jul-22
Slough Borough Council,659,Hilton Cabinet Co Ltd,D320,Place Operations,Supplies and Services,656.27,Jul-22
Slough Borough Council,850,Holy Family Catholic Primary School,E250,Children & Families,Supplies and Services,"329,467.14",Jul-22
Slough Borough Council,806778,IBB Solicitors,H009,Business Services,Supplies and Services,"1,832.00",Jul-22
Slough Borough Council,803037,Idox Software Ltd,B015,Finance,Supplies and Services,"6,414.00",Jul-22
Slough Borough Council,2917,Imperial Coaches Ltd,F123,Education & Inclusion,Supplies and Services,"4,465.00",Jul-22
Slough Borough Council,351,Imperial Polythene Products Ltd,D620,Place Operations,Supplies and Services,"2,900.00",Jul-22
Slough Borough Council,351,Imperial Polythene Products Ltd,D620,Place Operations,Supplies and Services,"1,575.00",Jul-22
Slough Borough Council,351,Imperial Polythene Products Ltd,D620,Place Operations,Supplies and Services,"1,050.00",Jul-22
Slough Borough Council,807666,Independence Home and Domicilary Care,M44F,Adult Social Care Operations,Supplies and Services,"3,272.10",Jul-22
Slough Borough Council,807666,Independence Home and Domicilary Care,M44F,Adult Social Care Operations,Supplies and Services,"2,845.80",Jul-22
Slough Borough Council,807666,Independence Home and Domicilary Care,M44F,Adult Social Care Operations,Supplies and Services,"3,240.00",Jul-22
Slough Borough Council,807666,Independence Home and Domicilary Care,M44F,Adult Social Care Operations,Supplies and Services,"1,494.75",Jul-22
Slough Borough Council,3570,Independent Supported Living And Disabilities Ltd,M42E,Adult Social Care Operations,Supplies and Services,"3,000.00",Jul-22
Slough Borough Council,3570,Independent Supported Living And Disabilities Ltd,M44D,Adult Social Care Operations,Supplies and Services,"3,044.16",Jul-22
Slough Borough Council,3570,Independent Supported Living And Disabilities Ltd,M44E,Adult Social Care Operations,Supplies and Services,"4,212.00",Jul-22
Slough Borough Council,3570,Independent Supported Living And Disabilities Ltd,M44E,Adult Social Care Operations,Supplies and Services,"1,050.00",Jul-22
Slough Borough Council,3570,Independent Supported Living And Disabilities Ltd,M44E,Adult Social Care Operations,Supplies and Services,"3,570.00",Jul-22
Slough Borough Council,803651,Insight Direct (UK) Ltd,B240,Business Services,Supplies and Services,"2,686.65",Jul-22
Slough Borough Council,806710,Intercity Managed Services Limited,B282,Digital and Strategic IT,Supplies and Services,"11,925.00",Jul-22
Slough Borough Council,3500,Iqra Slough Islamic Primary School,E480,Children & Families,Supplies and Services,"193,895.57",Jul-22
Slough Borough Council,998,Iron Mountain Uk Ltd,B282,Digital and Strategic IT,Supplies and Services,999.52,Jul-22
Slough Borough Council,2919,Islamic Shakhsiyah Foundation,F909,Children & Families,Supplies and Services,"9,007.09",Jul-22
Slough Borough Council,807346,Jacaranda,M44F,Adult Social Care Operations,Supplies and Services,"4,222.00",Jul-22
Slough Borough Council,753,Jack In The Box Day Nursery,F909,Children & Families,Supplies and Services,"11,997.83",Jul-22
Slough Borough Council,733,James Elliman  School,E620,Children & Families,Supplies and Services,"24,793.33",Jul-22
Slough Borough Council,1970,James Elliman Academy,B297,Finance & Commercial,Government Grants,"11,880.00",Jul-22
Slough Borough Council,805666,James Rosental,C322,Community,Supplies and Services,"1,890.00",Jul-22
Slough Borough Council,805226,JD Surfacing & Civil Engineering Limited,D880,Place Operations,Supplies and Services,"7,560.00",Jul-22
Slough Borough Council,805226,JD Surfacing & Civil Engineering Limited,D880,Place Operations,Supplies and Services,"7,560.00",Jul-22
Slough Borough Council,805226,JD Surfacing & Civil Engineering Limited,D880,Place Operations,Supplies and Services,"1,630.00",Jul-22
Slough Borough Council,805226,JD Surfacing & Civil Engineering Limited,D880,Place Operations,Supplies and Services,"5,565.02",Jul-22
Slough Borough Council,805226,JD Surfacing & Civil Engineering Limited,D880,Place Operations,Supplies and Services,"6,676.63",Jul-22
Slough Borough Council,1592,Jmw Systems Limited,D512,Place Strategy & Infrastructure,Premises,"30,000.00",Jul-22
Slough Borough Council,805332,Joseph Njenga,A02A,Adult Social Care Operations,Supplies and Services,500.00,Jul-22
Slough Borough Council,805332,Joseph Njenga,A02A,Adult Social Care Operations,Supplies and Services,500.00,Jul-22
Slough Borough Council,805332,Joseph Njenga,A02A,Adult Social Care Operations,Supplies and Services,500.00,Jul-22
Slough Borough Council,805332,Joseph Njenga,A02A,Adult Social Care Operations,Supplies and Services,500.00,Jul-22
Slough Borough Council,805332,Joseph Njenga,A02A,Adult Social Care Operations,Supplies and Services,500.00,Jul-22
Slough Borough Council,2200,Joshua Pilmore,C322,Community,Supplies and Services,"2,719.50",Jul-22
Slough Borough Council,807674,Kainos Software Ltd,D501,Place Strategy & Infrastructure,Supplies and Services,"15,000.00",Jul-22
Slough Borough Council,807674,Kainos Software Ltd,D501,Place Strategy & Infrastructure,Supplies and Services,"2,500.00",Jul-22
Slough Borough Council,201,Kamal Enterprises Ltd,A04C,Adult Social Care Operations,Supplies and Services,674.00,Jul-22
Slough Borough Council,803815,Kathys Childcare,F909,Children & Families,Supplies and Services,"1,315.32",Jul-22
Slough Borough Council,2620,Kcare Nursing Agency Ltd,M44C,Adult Social Care Operations,Supplies and Services,"1,352.10",Jul-22
Slough Borough Council,2620,Kcare Nursing Agency Ltd,M44C,Adult Social Care Operations,Supplies and Services,895.63,Jul-22
Slough Borough Council,2620,Kcare Nursing Agency Ltd,M44C,Adult Social Care Operations,Supplies and Services,"2,395.90",Jul-22
Slough Borough Council,2620,Kcare Nursing Agency Ltd,M44C,Adult Social Care Operations,Supplies and Services,"1,379.85",Jul-22
Slough Borough Council,2620,Kcare Nursing Agency Ltd,M44C,Adult Social Care Operations,Supplies and Services,892.00,Jul-22
Slough Borough Council,2620,Kcare Nursing Agency Ltd,M44C,Adult Social Care Operations,Supplies and Services,"2,360.24",Jul-22
Slough Borough Council,2620,Kcare Nursing Agency Ltd,M44C,Adult Social Care Operations,Supplies and Services,"2,329.71",Jul-22
Slough Borough Council,2620,Kcare Nursing Agency Ltd,M44C,Adult Social Care Operations,Supplies and Services,"1,268.19",Jul-22
Slough Borough Council,2620,Kcare Nursing Agency Ltd,M44C,Adult Social Care Operations,Supplies and Services,880.26,Jul-22
Slough Borough Council,2620,Kcare Nursing Agency Ltd,M44D,Adult Social Care Operations,Supplies and Services,"1,327.97",Jul-22
Slough Borough Council,2620,Kcare Nursing Agency Ltd,M44D,Adult Social Care Operations,Supplies and Services,989.15,Jul-22
Slough Borough Council,2620,Kcare Nursing Agency Ltd,M48C,Adult Social Care Operations,Supplies and Services,"4,000.00",Jul-22
Slough Borough Council,2620,Kcare Nursing Agency Ltd,M48C,Adult Social Care Operations,Supplies and Services,"1,021.17",Jul-22
Slough Borough Council,2620,Kcare Nursing Agency Ltd,M48C,Adult Social Care Operations,Supplies and Services,"1,001.74",Jul-22
Slough Borough Council,2620,Kcare Nursing Agency Ltd,M48C,Adult Social Care Operations,Supplies and Services,967.16,Jul-22
Slough Borough Council,804887,KCare Nursing Agency Ltd Supported House Living,M42F,Adult Social Care Operations,Supplies and Services,"2,926.00",Jul-22
Slough Borough Council,804887,KCare Nursing Agency Ltd Supported House Living,M42F,Adult Social Care Operations,Supplies and Services,"2,926.00",Jul-22
Slough Borough Council,804887,KCare Nursing Agency Ltd Supported House Living,M44F,Adult Social Care Operations,Supplies and Services,"2,493.50",Jul-22
Slough Borough Council,804887,KCare Nursing Agency Ltd Supported House Living,M44F,Adult Social Care Operations,Supplies and Services,"2,493.50",Jul-22
Slough Borough Council,807742,Khalsa Primary School,E620,Children & Families,Supplies and Services,"8,669.99",Jul-22
Slough Borough Council,803916,Kharis Solutions,M44C,Adult Social Care Operations,Supplies and Services,"2,278.00",Jul-22
Slough Borough Council,803916,Kharis Solutions,M44C,Adult Social Care Operations,Supplies and Services,"1,428.00",Jul-22
Slough Borough Council,803916,Kharis Solutions,M44C,Adult Social Care Operations,Supplies and Services,"1,904.00",Jul-22
Slough Borough Council,803916,Kharis Solutions,M44C,Adult Social Care Operations,Supplies and Services,"2,275.52",Jul-22
Slough Borough Council,803916,Kharis Solutions,M44C,Adult Social Care Operations,Supplies and Services,"1,904.00",Jul-22
Slough Borough Council,803916,Kharis Solutions,M44D,Adult Social Care Operations,Supplies and Services,"2,142.00",Jul-22
Slough Borough Council,803916,Kharis Solutions,M44E,Adult Social Care Operations,Supplies and Services,"7,188.00",Jul-22
Slough Borough Council,803916,Kharis Solutions,M44E,Adult Social Care Operations,Supplies and Services,600.00,Jul-22
Slough Borough Council,803916,Kharis Solutions,M44E,Adult Social Care Operations,Supplies and Services,"1,200.00",Jul-22
Slough Borough Council,803916,Kharis Solutions,M44E,Adult Social Care Operations,Supplies and Services,"2,700.00",Jul-22
Slough Borough Council,803916,Kharis Solutions,M44E,Adult Social Care Operations,Supplies and Services,"2,400.00",Jul-22
Slough Borough Council,803916,Kharis Solutions,M44E,Adult Social Care Operations,Supplies and Services,"7,188.00",Jul-22
Slough Borough Council,803916,Kharis Solutions,M44E,Adult Social Care Operations,Supplies and Services,600.00,Jul-22
Slough Borough Council,803916,Kharis Solutions,M44E,Adult Social Care Operations,Supplies and Services,"7,188.00",Jul-22
Slough Borough Council,803916,Kharis Solutions,M44E,Adult Social Care Operations,Supplies and Services,"1,800.00",Jul-22
Slough Borough Council,803916,Kharis Solutions,M44E,Adult Social Care Operations,Supplies and Services,900.00,Jul-22
Slough Borough Council,803916,Kharis Solutions,M44E,Adult Social Care Operations,Supplies and Services,900.00,Jul-22
Slough Borough Council,803916,Kharis Solutions,M44E,Adult Social Care Operations,Supplies and Services,"1,200.00",Jul-22
Slough Borough Council,803916,Kharis Solutions,M44E,Adult Social Care Operations,Supplies and Services,900.00,Jul-22
Slough Borough Council,803916,Kharis Solutions,M44E,Adult Social Care Operations,Supplies and Services,"1,800.00",Jul-22
Slough Borough Council,803916,Kharis Solutions,M44E,Adult Social Care Operations,Supplies and Services,"1,200.00",Jul-22
Slough Borough Council,803916,Kharis Solutions,M44E,Adult Social Care Operations,Supplies and Services,"1,800.00",Jul-22
Slough Borough Council,803916,Kharis Solutions,M44E,Adult Social Care Operations,Supplies and Services,900.00,Jul-22
Slough Borough Council,803916,Kharis Solutions,M44E,Adult Social Care Operations,Supplies and Services,900.00,Jul-22
Slough Borough Council,803916,Kharis Solutions,M44E,Adult Social Care Operations,Supplies and Services,"7,188.00",Jul-22
Slough Borough Council,803916,Kharis Solutions,M45C,Adult Social Care Operations,Supplies and Services,765.00,Jul-22
Slough Borough Council,803916,Kharis Solutions,M48C,Adult Social Care Operations,Supplies and Services,"2,210.00",Jul-22
Slough Borough Council,804546,Korn Ferry,H219,Neighbourhood Services,Supplies and Services,616.00,Jul-22
Slough Borough Council,664,Langley Grammar School,B297,Finance & Commercial,Government Grants,"5,130.00",Jul-22
Slough Borough Council,3001,Langley Haven Care Homes Ltd,M25C,Adult Social Care Operations,Supplies and Services,"3,604.68",Jul-22
Slough Borough Council,3001,Langley Haven Care Homes Ltd,M25C,Adult Social Care Operations,Supplies and Services,"3,604.68",Jul-22
Slough Borough Council,3001,Langley Haven Care Homes Ltd,M26D,Adult Social Care Operations,Supplies and Services,"1,744.20",Jul-22
Slough Borough Council,3001,Langley Haven Care Homes Ltd,M26D,Adult Social Care Operations,Supplies and Services,"3,604.68",Jul-22
Slough Borough Council,3001,Langley Haven Care Homes Ltd,M26D,Adult Social Care Operations,Supplies and Services,"3,488.40",Jul-22
Slough Borough Council,3001,Langley Haven Care Homes Ltd,M26D,Adult Social Care Operations,Supplies and Services,813.96,Jul-22
Slough Borough Council,3001,Langley Haven Care Homes Ltd,M26E,Adult Social Care Operations,Supplies and Services,"4,007.24",Jul-22
Slough Borough Council,3001,Langley Haven Care Homes Ltd,M26E,Adult Social Care Operations,Supplies and Services,"3,720.00",Jul-22
Slough Borough Council,3001,Langley Haven Care Homes Ltd,M27C,Adult Social Care Operations,Supplies and Services,"3,604.68",Jul-22
Slough Borough Council,3001,Langley Haven Care Homes Ltd,M27C,Adult Social Care Operations,Supplies and Services,"3,604.68",Jul-22
Slough Borough Council,3001,Langley Haven Care Homes Ltd,M27C,Adult Social Care Operations,Supplies and Services,"3,604.68",Jul-22
Slough Borough Council,3001,Langley Haven Care Homes Ltd,M27C,Adult Social Care Operations,Supplies and Services,"3,604.68",Jul-22
Slough Borough Council,3001,Langley Haven Care Homes Ltd,M27F,Adult Social Care Operations,Supplies and Services,"3,365.71",Jul-22
Slough Borough Council,3001,Langley Haven Care Homes Ltd,M27F,Adult Social Care Operations,Supplies and Services,"3,604.68",Jul-22
Slough Borough Council,3001,Langley Haven Care Homes Ltd,M27F,Adult Social Care Operations,Supplies and Services,"3,604.68",Jul-22
Slough Borough Council,3001,Langley Haven Care Homes Ltd,M27F,Adult Social Care Operations,Supplies and Services,"3,604.68",Jul-22
Slough Borough Council,3001,Langley Haven Care Homes Ltd,M27F,Adult Social Care Operations,Supplies and Services,"1,882.14",Jul-22
Slough Borough Council,3001,Langley Haven Care Homes Ltd,M27F,Adult Social Care Operations,Supplies and Services,"1,162.80",Jul-22
Slough Borough Council,3001,Langley Haven Care Homes Ltd,M27F,Adult Social Care Operations,Supplies and Services,"1,279.08",Jul-22
Slough Borough Council,3001,Langley Haven Care Homes Ltd,M27F,Adult Social Care Operations,Supplies and Services,"3,604.68",Jul-22
Slough Borough Council,3001,Langley Haven Care Homes Ltd,M29C,Adult Social Care Operations,Supplies and Services,"3,604.68",Jul-22
Slough Borough Council,803686,Lascelles Park Nursery,F909,Children & Families,Supplies and Services,"2,070.00",Jul-22
Slough Borough Council,803686,Lascelles Park Nursery,F909,Children & Families,Supplies and Services,"17,552.68",Jul-22
Slough Borough Council,3482,Leonard Cheshire Disability,M26E,Adult Social Care Operations,Supplies and Services,"6,007.24",Jul-22
Slough Borough Council,301,Liberata Uk Limited,B048,Finance & Commercial,Supplies and Services,"9,999.07",Jul-22
Slough Borough Council,301,Liberata Uk Limited,B048,Finance & Commercial,Supplies and Services,"9,557.81",Jul-22
Slough Borough Council,301,Liberata Uk Limited,H057,Finance & Commercial,Supplies and Services,"55,303.50",Jul-22
Slough Borough Council,806958,Lime Academy Ravensbourne,F552,Children & Families,Supplies and Services,"12,000.00",Jul-22
Slough Borough Council,397,Liquidlogic,A03D,Adult Social Care Operations,Supplies and Services,"4,742.68",Jul-22
Slough Borough Council,804692,Little Diamonds Pre School,F909,Children & Families,Supplies and Services,"1,710.00",Jul-22
Slough Borough Council,804692,Little Diamonds Pre School,F909,Children & Families,Supplies and Services,"15,000.00",Jul-22
Slough Borough Council,3791,Littledown Pru,E610,Children & Families,Supplies and Services,"17,100.00",Jul-22
Slough Borough Council,667,Littledown School,E610,Children & Families,Supplies and Services,"61,884.96",Jul-22
Slough Borough Council,1328,London & Quadrant Housing Trust,H205,Housing (People) Services,Premises,"57,554.16",Jul-22
Slough Borough Council,804544,London Borough of Harrow,B096,Governance,Indirect Employee Expenses,"92,609.78",Jul-22
Slough Borough Council,1282,Long Close School,F909,Children & Families,Supplies and Services,"6,859.24",Jul-22
Slough Borough Council,804585,Longlea Ltd,M18C,Adult Social Care Operations,Supplies and Services,"3,985.71",Jul-22
Slough Borough Council,2302,Look Ahead Care And Support,H211,Adult Social Care Operations,Supplies and Services,"13,961.64",Jul-22
Slough Borough Council,2302,Look Ahead Care And Support,H211,Adult Social Care Operations,Supplies and Services,"13,961.64",Jul-22
Slough Borough Council,3910,Lookahead Care & Support,H216,Housing (People) Services,Supplies and Services,"2,239.17",Jul-22
Slough Borough Council,807840,Lumen,B282,Digital and Strategic IT,Supplies and Services,"4,109.90",Jul-22
Slough Borough Council,807840,Lumen,B282,Digital and Strategic IT,Supplies and Services,"4,109.90",Jul-22
Slough Borough Council,1195,Lynch Hill (Foundation Primary) School,E620,Children & Families,Supplies and Services,"34,806.29",Jul-22
Slough Borough Council,807217,Macadamia Support Limited,M42E,Adult Social Care Operations,Supplies and Services,"6,931.20",Jul-22
Slough Borough Council,807217,Macadamia Support Limited,M42E,Adult Social Care Operations,Supplies and Services,"6,713.00",Jul-22
Slough Borough Council,807217,Macadamia Support Limited,M42E,Adult Social Care Operations,Supplies and Services,"3,973.20",Jul-22
Slough Borough Council,807217,Macadamia Support Limited,M42E,Adult Social Care Operations,Supplies and Services,"7,308.00",Jul-22
Slough Borough Council,807217,Macadamia Support Limited,M42E,Adult Social Care Operations,Supplies and Services,"3,589.12",Jul-22
Slough Borough Council,807217,Macadamia Support Limited,M44C,Adult Social Care Operations,Supplies and Services,"3,591.56",Jul-22
Slough Borough Council,807217,Macadamia Support Limited,M44D,Adult Social Care Operations,Supplies and Services,"5,523.00",Jul-22
Slough Borough Council,1874,Maccabee Pets Hotel,H253,Neighbourhood Services,Supplies and Services,"2,480.00",Jul-22
Slough Borough Council,1874,Maccabee Pets Hotel,H253,Neighbourhood Services,Supplies and Services,"1,440.00",Jul-22
Slough Borough Council,1874,Maccabee Pets Hotel,H253,Neighbourhood Services,Supplies and Services,"2,140.00",Jul-22
Slough Borough Council,1874,Maccabee Pets Hotel,H253,Neighbourhood Services,Supplies and Services,"2,400.00",Jul-22
Slough Borough Council,3768,Marish Academy Trust,F549,Children & Families,Supplies and Services,"4,620.00",Jul-22
Slough Borough Council,529,Marish Primary School,E620,Children & Families,Supplies and Services,"248,137.83",Jul-22
Slough Borough Council,1886,Matrix Scm,B023,Finance & Commercial,Agency Staff,"419,986.39",Jul-22
Slough Borough Council,1886,Matrix Scm,B023,Finance & Commercial,Agency Staff,"378,885.54",Jul-22
Slough Borough Council,1886,Matrix Scm,B023,Finance & Commercial,Agency Staff,"358,019.78",Jul-22
Slough Borough Council,1886,Matrix Scm,B023,Finance & Commercial,Agency Staff,"345,960.81",Jul-22
Slough Borough Council,807009,Medigold Health Consultancy Ltd,B349,People,Salaries and Wages-Employees Expenses,"5,211.25",Jul-22
Slough Borough Council,2237,Metts Ltd,M50A,Major Infrastructure Projects,Transport,789.01,Jul-22
Slough Borough Council,2237,Metts Ltd,M50A,Major Infrastructure Projects,Transport,796.73,Jul-22
Slough Borough Council,2237,Metts Ltd,M50A,Major Infrastructure Projects,Transport,877.50,Jul-22
Slough Borough Council,2237,Metts Ltd,M50A,Major Infrastructure Projects,Transport,564.58,Jul-22
Slough Borough Council,1496,Mighty Acorns Day Nursery Ltd,F909,Children & Families,Supplies and Services,"1,530.00",Jul-22
Slough Borough Council,1496,Mighty Acorns Day Nursery Ltd,F909,Children & Families,Supplies and Services,"16,235.90",Jul-22
Slough Borough Council,2106,Mj Events Support Ltd,B064,Business Services,Premises,"3,960.00",Jul-22
Slough Borough Council,805121,MMCG (2) Limited,B324,Finance,Supplies and Services,"3,208.53",Jul-22
Slough Borough Council,805121,MMCG (2) Limited,A03E,Adult Social Care Operations,Supplies and Services,-918.00,Jul-22
Slough Borough Council,805121,MMCG (2) Limited,A03E,Adult Social Care Operations,Supplies and Services,"4,387.30",Jul-22
Slough Borough Council,805121,MMCG (2) Limited,M15D,Adult Social Care Operations,Supplies and Services,"3,442.50",Jul-22
Slough Borough Council,805121,MMCG (2) Limited,M15D,Adult Social Care Operations,Supplies and Services,"3,442.50",Jul-22
Slough Borough Council,805121,MMCG (2) Limited,M15D,Adult Social Care Operations,Supplies and Services,-707.75,Jul-22
Slough Borough Council,805121,MMCG (2) Limited,M15D,Adult Social Care Operations,Supplies and Services,"-1,157.23",Jul-22
Slough Borough Council,805121,MMCG (2) Limited,M15F,Adult Social Care Operations,Supplies and Services,"3,442.50",Jul-22
Slough Borough Council,805121,MMCG (2) Limited,M17C,Adult Social Care Operations,Supplies and Services,"3,442.50",Jul-22
Slough Borough Council,805121,MMCG (2) Limited,M17C,Adult Social Care Operations,Supplies and Services,"4,245.77",Jul-22
Slough Borough Council,805121,MMCG (2) Limited,M17C,Adult Social Care Operations,Supplies and Services,"3,442.50",Jul-22
Slough Borough Council,805121,MMCG (2) Limited,M17C,Adult Social Care Operations,Supplies and Services,"3,901.50",Jul-22
Slough Borough Council,805121,MMCG (2) Limited,M17C,Adult Social Care Operations,Supplies and Services,"1,965.85",Jul-22
Slough Borough Council,805121,MMCG (2) Limited,M18C,Adult Social Care Operations,Supplies and Services,"3,442.50",Jul-22
Slough Borough Council,805121,MMCG (2) Limited,M18C,Adult Social Care Operations,Supplies and Services,"4,245.77",Jul-22
Slough Borough Council,805121,MMCG (2) Limited,M18C,Adult Social Care Operations,Supplies and Services,"3,442.50",Jul-22
Slough Borough Council,805121,MMCG (2) Limited,M18C,Adult Social Care Operations,Supplies and Services,"3,442.50",Jul-22
Slough Borough Council,805121,MMCG (2) Limited,M18C,Adult Social Care Operations,Supplies and Services,"4,245.77",Jul-22
Slough Borough Council,805121,MMCG (2) Limited,M18C,Adult Social Care Operations,Supplies and Services,"3,442.50",Jul-22
Slough Borough Council,805121,MMCG (2) Limited,M18C,Adult Social Care Operations,Supplies and Services,"4,387.30",Jul-22
Slough Borough Council,805121,MMCG (2) Limited,M18C,Adult Social Care Operations,Supplies and Services,"3,962.72",Jul-22
Slough Borough Council,805121,MMCG (2) Limited,M18C,Adult Social Care Operations,Supplies and Services,"4,387.30",Jul-22
Slough Borough Council,805121,MMCG (2) Limited,M18C,Adult Social Care Operations,Supplies and Services,"3,962.72",Jul-22
Slough Borough Council,805121,MMCG (2) Limited,M25C,Adult Social Care Operations,Supplies and Services,"3,442.50",Jul-22
Slough Borough Council,805121,MMCG (2) Limited,M25C,Adult Social Care Operations,Supplies and Services,"3,442.50",Jul-22
Slough Borough Council,805121,MMCG (2) Limited,M25C,Adult Social Care Operations,Supplies and Services,"3,442.50",Jul-22
Slough Borough Council,805121,MMCG (2) Limited,M25C,Adult Social Care Operations,Supplies and Services,"3,557.25",Jul-22
Slough Borough Council,805121,MMCG (2) Limited,M25C,Adult Social Care Operations,Supplies and Services,"3,557.25",Jul-22
Slough Borough Council,805121,MMCG (2) Limited,M26D,Adult Social Care Operations,Supplies and Services,"1,836.00",Jul-22
Slough Borough Council,805121,MMCG (2) Limited,M27C,Adult Social Care Operations,Supplies and Services,"3,442.50",Jul-22
Slough Borough Council,805121,MMCG (2) Limited,M27C,Adult Social Care Operations,Supplies and Services,"3,442.50",Jul-22
Slough Borough Council,805121,MMCG (2) Limited,M27C,Adult Social Care Operations,Supplies and Services,"3,442.50",Jul-22
Slough Borough Council,805121,MMCG (2) Limited,M27C,Adult Social Care Operations,Supplies and Services,"3,442.50",Jul-22
Slough Borough Council,805121,MMCG (2) Limited,M27C,Adult Social Care Operations,Supplies and Services,"3,442.50",Jul-22
Slough Borough Council,805121,MMCG (2) Limited,M27C,Adult Social Care Operations,Supplies and Services,"3,213.00",Jul-22
Slough Borough Council,805121,MMCG (2) Limited,M27C,Adult Social Care Operations,Supplies and Services,"3,557.25",Jul-22
Slough Borough Council,805121,MMCG (2) Limited,M27C,Adult Social Care Operations,Supplies and Services,"3,442.50",Jul-22
Slough Borough Council,805121,MMCG (2) Limited,M27C,Adult Social Care Operations,Supplies and Services,"1,721.25",Jul-22
Slough Borough Council,805121,MMCG (2) Limited,M27F,Adult Social Care Operations,Supplies and Services,"2,524.50",Jul-22
Slough Borough Council,805121,MMCG (2) Limited,M28C,Adult Social Care Operations,Supplies and Services,"1,556.78",Jul-22
Slough Borough Council,805121,MMCG (2) Limited,M28C,Adult Social Care Operations,Supplies and Services,"2,050.40",Jul-22
Slough Borough Council,805121,MMCG (2) Limited,M28C,Adult Social Care Operations,Supplies and Services,"4,245.77",Jul-22
Slough Borough Council,805121,MMCG (2) Limited,M28C,Adult Social Care Operations,Supplies and Services,"1,950.75",Jul-22
Slough Borough Council,805121,MMCG (2) Limited,M28C,Adult Social Care Operations,Supplies and Services,688.50,Jul-22
Slough Borough Council,805121,MMCG (2) Limited,M28C,Adult Social Care Operations,Supplies and Services,"3,557.25",Jul-22
Slough Borough Council,805121,MMCG (2) Limited,M29C,Adult Social Care Operations,Supplies and Services,"5,545.28",Jul-22
Slough Borough Council,805121,MMCG (2) Limited,M29C,Adult Social Care Operations,Supplies and Services,"3,442.50",Jul-22
Slough Borough Council,805121,MMCG (2) Limited,A05M,Mental Health Services,Supplies and Services,"3,557.25",Jul-22
Slough Borough Council,805121,MMCG (2) Limited,B324,Finance,Government Grants,"4,442.59",Jul-22
Slough Borough Council,805121,MMCG (2) Limited,A06C,Adult Social Care Commissioning,Supplies and Services,"4,388.05",Jul-22
Slough Borough Council,805121,MMCG (2) Limited,A06C,Adult Social Care Commissioning,Supplies and Services,688.50,Jul-22
Slough Borough Council,805121,MMCG (2) Limited,A06C,Adult Social Care Commissioning,Supplies and Services,"4,388.05",Jul-22
Slough Borough Council,805121,MMCG (2) Limited,A06C,Adult Social Care Commissioning,Supplies and Services,"3,642.86",Jul-22
Slough Borough Council,805121,MMCG (2) Limited,A06C,Adult Social Care Commissioning,Supplies and Services,"3,327.75",Jul-22
Slough Borough Council,1786,Mobius Networks Ltd,D500,Place Strategy & Infrastructure,Premises,636.20,Jul-22
Slough Borough Council,2645,Modus Care Ltd,M26E,Adult Social Care Operations,Supplies and Services,"10,804.40",Jul-22
Slough Borough Council,2645,Modus Care Ltd,M26E,Adult Social Care Operations,Supplies and Services,"10,455.85",Jul-22
Slough Borough Council,804815,Molly Southall,C322,Community,Supplies and Services,525.00,Jul-22
Slough Borough Council,2115,Montagu Evans Llp,B086,Place Strategy & Infrastructure,Capital Charges,"14,706.00",Jul-22
Slough Borough Council,2166,Montague Swift Recruitment Ltd,F640,Children & Families,Agency Staff,"5,250.00",Jul-22
Slough Borough Council,2166,Montague Swift Recruitment Ltd,F640,Children & Families,Agency Staff,"1,250.00",Jul-22
Slough Borough Council,2100,Montem Accademy,B297,Finance & Commercial,Government Grants,"22,050.00",Jul-22
Slough Borough Council,1140,Montem Guesthouse,H205,Housing (People) Services,Supplies and Services,"1,350.00",Jul-22
Slough Borough Council,1140,Montem Guesthouse,H205,Housing (People) Services,Supplies and Services,"1,500.00",Jul-22
Slough Borough Council,1140,Montem Guesthouse,H205,Housing (People) Services,Supplies and Services,"1,650.00",Jul-22
Slough Borough Council,1140,Montem Guesthouse,H205,Housing (People) Services,Supplies and Services,"1,650.00",Jul-22
Slough Borough Council,1140,Montem Guesthouse,H205,Housing (People) Services,Supplies and Services,"1,800.00",Jul-22
Slough Borough Council,1140,Montem Guesthouse,H205,Housing (People) Services,Supplies and Services,"1,350.00",Jul-22
Slough Borough Council,1140,Montem Guesthouse,H205,Housing (People) Services,Supplies and Services,"1,350.00",Jul-22
Slough Borough Council,1140,Montem Guesthouse,H205,Housing (People) Services,Supplies and Services,"1,350.00",Jul-22
Slough Borough Council,1140,Montem Guesthouse,H205,Housing (People) Services,Supplies and Services,"1,000.00",Jul-22
Slough Borough Council,1140,Montem Guesthouse,H205,Housing (People) Services,Supplies and Services,"1,500.00",Jul-22
Slough Borough Council,1140,Montem Guesthouse,H205,Housing (People) Services,Supplies and Services,"1,050.00",Jul-22
Slough Borough Council,1140,Montem Guesthouse,H205,Housing (People) Services,Supplies and Services,"1,350.00",Jul-22
Slough Borough Council,1140,Montem Guesthouse,H205,Housing (People) Services,Supplies and Services,"1,650.00",Jul-22
Slough Borough Council,1140,Montem Guesthouse,H205,Housing (People) Services,Supplies and Services,550.00,Jul-22
Slough Borough Council,1140,Montem Guesthouse,H205,Housing (People) Services,Supplies and Services,"1,500.00",Jul-22
Slough Borough Council,1140,Montem Guesthouse,H205,Housing (People) Services,Supplies and Services,987.00,Jul-22
Slough Borough Council,1140,Montem Guesthouse,H205,Housing (People) Services,Supplies and Services,900.00,Jul-22
Slough Borough Council,1140,Montem Guesthouse,H205,Housing (People) Services,Supplies and Services,705.00,Jul-22
Slough Borough Council,1140,Montem Guesthouse,H205,Housing (People) Services,Supplies and Services,"1,500.00",Jul-22
Slough Borough Council,1140,Montem Guesthouse,H205,Housing (People) Services,Supplies and Services,"1,650.00",Jul-22
Slough Borough Council,1140,Montem Guesthouse,H205,Housing (People) Services,Supplies and Services,"1,650.00",Jul-22
Slough Borough Council,1140,Montem Guesthouse,H205,Housing (People) Services,Supplies and Services,935.00,Jul-22
Slough Borough Council,1140,Montem Guesthouse,H205,Housing (People) Services,Supplies and Services,"1,350.00",Jul-22
Slough Borough Council,1140,Montem Guesthouse,H205,Housing (People) Services,Supplies and Services,"1,200.00",Jul-22
Slough Borough Council,1140,Montem Guesthouse,H205,Housing (People) Services,Supplies and Services,-600.00,Jul-22
Slough Borough Council,1140,Montem Guesthouse,H205,Housing (People) Services,Supplies and Services,"1,100.00",Jul-22
Slough Borough Council,1140,Montem Guesthouse,H205,Housing (People) Services,Supplies and Services,"1,650.00",Jul-22
Slough Borough Council,1140,Montem Guesthouse,H205,Housing (People) Services,Supplies and Services,"1,500.00",Jul-22
Slough Borough Council,1140,Montem Guesthouse,H205,Housing (People) Services,Supplies and Services,585.00,Jul-22
Slough Borough Council,1140,Montem Guesthouse,H205,Housing (People) Services,Supplies and Services,"1,500.00",Jul-22
Slough Borough Council,1140,Montem Guesthouse,H205,Housing (People) Services,Supplies and Services,"1,350.00",Jul-22
Slough Borough Council,1140,Montem Guesthouse,H205,Housing (People) Services,Supplies and Services,"1,050.00",Jul-22
Slough Borough Council,1140,Montem Guesthouse,H205,Housing (People) Services,Supplies and Services,"1,500.00",Jul-22
Slough Borough Council,1140,Montem Guesthouse,H205,Housing (People) Services,Supplies and Services,"1,350.00",Jul-22
Slough Borough Council,1140,Montem Guesthouse,H205,Housing (People) Services,Supplies and Services,"1,500.00",Jul-22
Slough Borough Council,1140,Montem Guesthouse,H205,Housing (People) Services,Supplies and Services,750.00,Jul-22
Slough Borough Council,1140,Montem Guesthouse,H205,Housing (People) Services,Supplies and Services,"1,200.00",Jul-22
Slough Borough Council,1140,Montem Guesthouse,H205,Housing (People) Services,Supplies and Services,"1,265.00",Jul-22
Slough Borough Council,3302,Montem Primary School,E620,Children & Families,Supplies and Services,"27,859.32",Jul-22
Slough Borough Council,807432,MPD FM Limited,A07M,Mental Health Services,Agency Staff,"6,913.26",Jul-22
Slough Borough Council,806484,Mrs Parwinder Kaur Bhandal,H205,Housing (People) Services,Supplies and Services,"7,680.00",Jul-22
Slough Borough Council,804936,Ms. Marinela Caldarus,F382,Children & Families,Supplies and Services,"3,300.00",Jul-22
Slough Borough Council,806858,MUDDY BOOTS DAY NURSERY LTD,F909,Children & Families,Supplies and Services,"6,081.95",Jul-22
Slough Borough Council,805369,NAS Services Limited,M42E,Adult Social Care Operations,Supplies and Services,"8,442.50",Jul-22
Slough Borough Council,1074,Ncfe,F210,Community,Supplies and Services,"1,004.00",Jul-22
Slough Borough Council,1945,Neem Tree Care Ltd,M17C,Adult Social Care Operations,Supplies and Services,"3,604.68",Jul-22
Slough Borough Council,808159,New College Worcester,F462,Children & Families,Supplies and Services,"53,294.00",Jul-22
Slough Borough Council,2684,Newman & Son,H253,Neighbourhood Services,Supplies and Services,"1,835.00",Jul-22
Slough Borough Council,1949,Nhs Supply Chain,A01P,Public Health,Supplies and Services,619.20,Jul-22
Slough Borough Council,1864,Noahs Ark Environmental Services Ltd,H253,Neighbourhood Services,Supplies and Services,"1,650.00",Jul-22
Slough Borough Council,1864,Noahs Ark Environmental Services Ltd,H253,Neighbourhood Services,Supplies and Services,"2,584.66",Jul-22
Slough Borough Council,1864,Noahs Ark Environmental Services Ltd,H253,Neighbourhood Services,Supplies and Services,"-1,228.30",Jul-22
Slough Borough Council,1864,Noahs Ark Environmental Services Ltd,H253,Neighbourhood Services,Supplies and Services,"2,770.66",Jul-22
Slough Borough Council,1864,Noahs Ark Environmental Services Ltd,H253,Neighbourhood Services,Supplies and Services,-573.30,Jul-22
Slough Borough Council,805330,Norden Farm Centre Trust Limited,B175,Building Management,External Receipts,598.00,Jul-22
Slough Borough Council,805330,Norden Farm Centre Trust Limited,B175,Building Management,External Receipts,"1,395.00",Jul-22
Slough Borough Council,803238,Oasis Care and Training Agency,M44C,Adult Social Care Operations,Supplies and Services,842.32,Jul-22
Slough Borough Council,803238,Oasis Care and Training Agency,M44C,Adult Social Care Operations,Supplies and Services,"2,784.80",Jul-22
Slough Borough Council,803238,Oasis Care and Training Agency,M44C,Adult Social Care Operations,Supplies and Services,"1,443.96",Jul-22
Slough Borough Council,803238,Oasis Care and Training Agency,M44C,Adult Social Care Operations,Supplies and Services,962.64,Jul-22
Slough Borough Council,803238,Oasis Care and Training Agency,M44C,Adult Social Care Operations,Supplies and Services,601.64,Jul-22
Slough Borough Council,803238,Oasis Care and Training Agency,M44C,Adult Social Care Operations,Supplies and Services,722.00,Jul-22
Slough Borough Council,803238,Oasis Care and Training Agency,M44C,Adult Social Care Operations,Supplies and Services,"1,151.72",Jul-22
Slough Borough Council,803238,Oasis Care and Training Agency,M44C,Adult Social Care Operations,Supplies and Services,"1,082.96",Jul-22
Slough Borough Council,803238,Oasis Care and Training Agency,M44C,Adult Social Care Operations,Supplies and Services,"2,681.64",Jul-22
Slough Borough Council,803238,Oasis Care and Training Agency,M44C,Adult Social Care Operations,Supplies and Services,962.64,Jul-22
Slough Borough Council,803238,Oasis Care and Training Agency,M44C,Adult Social Care Operations,Supplies and Services,"2,045.60",Jul-22
Slough Borough Council,803238,Oasis Care and Training Agency,M44C,Adult Social Care Operations,Supplies and Services,739.16,Jul-22
Slough Borough Council,803238,Oasis Care and Training Agency,M44C,Adult Social Care Operations,Supplies and Services,"1,082.96",Jul-22
Slough Borough Council,803238,Oasis Care and Training Agency,M44C,Adult Social Care Operations,Supplies and Services,842.32,Jul-22
Slough Borough Council,803238,Oasis Care and Training Agency,M44D,Adult Social Care Operations,Supplies and Services,670.40,Jul-22
Slough Borough Council,803238,Oasis Care and Training Agency,M44D,Adult Social Care Operations,Supplies and Services,"2,165.96",Jul-22
Slough Borough Council,803238,Oasis Care and Training Agency,M44D,Adult Social Care Operations,Supplies and Services,"2,165.96",Jul-22
Slough Borough Council,803238,Oasis Care and Training Agency,M44D,Adult Social Care Operations,Supplies and Services,842.32,Jul-22
Slough Borough Council,803238,Oasis Care and Training Agency,M44D,Adult Social Care Operations,Supplies and Services,979.84,Jul-22
Slough Borough Council,803238,Oasis Care and Training Agency,M44D,Adult Social Care Operations,Supplies and Services,"1,323.64",Jul-22
Slough Borough Council,803238,Oasis Care and Training Agency,M44D,Adult Social Care Operations,Supplies and Services,842.32,Jul-22
Slough Borough Council,803238,Oasis Care and Training Agency,M44D,Adult Social Care Operations,Supplies and Services,"1,340.84",Jul-22
Slough Borough Council,803238,Oasis Care and Training Agency,M44D,Adult Social Care Operations,Supplies and Services,979.84,Jul-22
Slough Borough Council,803238,Oasis Care and Training Agency,M44F,Adult Social Care Operations,Supplies and Services,"4,331.88",Jul-22
Slough Borough Council,803238,Oasis Care and Training Agency,M44F,Adult Social Care Operations,Supplies and Services,"1,375.20",Jul-22
Slough Borough Council,803238,Oasis Care and Training Agency,M85F,Adult Social Care Operations,Supplies and Services,507.11,Jul-22
Slough Borough Council,1552,Octink,B283,Finance & Commercial,Supplies and Services,"1,433.00",Jul-22
Slough Borough Council,1767,Olive Tree Montessori Ltd,F909,Children & Families,Supplies and Services,"2,250.00",Jul-22
Slough Borough Council,1767,Olive Tree Montessori Ltd,F909,Children & Families,Supplies and Services,"20,748.05",Jul-22
Slough Borough Council,803490,Optimum Specialised Home Limited,M26E,Adult Social Care Operations,Supplies and Services,"7,180.00",Jul-22
Slough Borough Council,803490,Optimum Specialised Home Limited,M26E,Adult Social Care Operations,Supplies and Services,"8,400.00",Jul-22
Slough Borough Council,803490,Optimum Specialised Home Limited,M26E,Adult Social Care Operations,Supplies and Services,"7,200.00",Jul-22
Slough Borough Council,1629,Opus Energy Limited,K526,Building Management,Premises,"8,350.25",Jul-22
Slough Borough Council,1629,Opus Energy Limited,K526,Building Management,Premises,"5,659.01",Jul-22
Slough Borough Council,1629,Opus Energy Limited,K526,Building Management,Premises,"-9,700.38",Jul-22
Slough Borough Council,1629,Opus Energy Limited,K526,Building Management,Premises,"-2,781.88",Jul-22
Slough Borough Council,1629,Opus Energy Limited,K526,Building Management,Premises,"2,193.81",Jul-22
Slough Borough Council,805011,Osborne Property Services Limited,J607,Place Management,Premises,"119,901.01",Jul-22
Slough Borough Council,805011,Osborne Property Services Limited,J015,Place Management,Premises,"38,886.15",Jul-22
Slough Borough Council,805011,Osborne Property Services Limited,J015,Place Management,Premises,"42,060.63",Jul-22
Slough Borough Council,805011,Osborne Property Services Limited,H206,Housing (People) Services,Premises,"8,396.81",Jul-22
Slough Borough Council,805011,Osborne Property Services Limited,H206,Housing (People) Services,Premises,"3,722.64",Jul-22
Slough Borough Council,805011,Osborne Property Services Limited,H206,Housing (People) Services,Premises,"9,031.76",Jul-22
Slough Borough Council,805011,Osborne Property Services Limited,H206,Housing (People) Services,Premises,"6,156.32",Jul-22
Slough Borough Council,805011,Osborne Property Services Limited,H206,Housing (People) Services,Premises,"2,066.85",Jul-22
Slough Borough Council,805011,Osborne Property Services Limited,H206,Housing (People) Services,Premises,"5,694.89",Jul-22
Slough Borough Council,805011,Osborne Property Services Limited,H206,Housing (People) Services,Premises,"24,517.40",Jul-22
Slough Borough Council,805011,Osborne Property Services Limited,J606,Place Management,Supplies and Services,"102,981.08",Jul-22
Slough Borough Council,805011,Osborne Property Services Limited,P409,Capital,Capital Charges,"20,931.50",Jul-22
Slough Borough Council,805011,Osborne Property Services Limited,P431,Capital,Capital Charges,"389,069.88",Jul-22
Slough Borough Council,805011,Osborne Property Services Limited,P547,Capital,Capital Charges,"6,428.73",Jul-22
Slough Borough Council,805011,Osborne Property Services Limited,J607,Place Management,Supplies and Services,"125,398.37",Jul-22
Slough Borough Council,805011,Osborne Property Services Limited,J606,Place Management,Supplies and Services,"253,814.12",Jul-22
Slough Borough Council,805011,Osborne Property Services Limited,J606,Place Management,Supplies and Services,"253,814.12",Jul-22
Slough Borough Council,805011,Osborne Property Services Limited,J607,Place Management,Supplies and Services,"1,725.55",Jul-22
Slough Borough Council,3371,Our Lady Of Peace Catholic Primary and Nursery School,E340,Children & Families,Supplies and Services,"80,040.41",Jul-22
Slough Borough Council,680,Oxford House Community Care,M44C,Adult Social Care Operations,Supplies and Services,787.60,Jul-22
Slough Borough Council,680,Oxford House Community Care,M44C,Adult Social Care Operations,Supplies and Services,801.80,Jul-22
Slough Borough Council,680,Oxford House Community Care,M44C,Adult Social Care Operations,Supplies and Services,976.51,Jul-22
Slough Borough Council,680,Oxford House Community Care,M44C,Adult Social Care Operations,Supplies and Services,"1,189.40",Jul-22
Slough Borough Council,680,Oxford House Community Care,M44C,Adult Social Care Operations,Supplies and Services,550.66,Jul-22
Slough Borough Council,680,Oxford House Community Care,M44C,Adult Social Care Operations,Supplies and Services,985.60,Jul-22
Slough Borough Council,680,Oxford House Community Care,M44C,Adult Social Care Operations,Supplies and Services,"1,041.99",Jul-22
Slough Borough Council,680,Oxford House Community Care,M44C,Adult Social Care Operations,Supplies and Services,"1,126.40",Jul-22
Slough Borough Council,680,Oxford House Community Care,M44C,Adult Social Care Operations,Supplies and Services,"1,263.43",Jul-22
Slough Borough Council,680,Oxford House Community Care,M44C,Adult Social Care Operations,Supplies and Services,"1,232.00",Jul-22
Slough Borough Council,680,Oxford House Community Care,M44C,Adult Social Care Operations,Supplies and Services,752.71,Jul-22
Slough Borough Council,680,Oxford House Community Care,M44C,Adult Social Care Operations,Supplies and Services,589.89,Jul-22
Slough Borough Council,680,Oxford House Community Care,M44C,Adult Social Care Operations,Supplies and Services,726.30,Jul-22
Slough Borough Council,680,Oxford House Community Care,M44C,Adult Social Care Operations,Supplies and Services,"1,267.52",Jul-22
Slough Borough Council,680,Oxford House Community Care,M44C,Adult Social Care Operations,Supplies and Services,"1,236.11",Jul-22
Slough Borough Council,680,Oxford House Community Care,M44D,Adult Social Care Operations,Supplies and Services,739.20,Jul-22
Slough Borough Council,680,Oxford House Community Care,M44D,Adult Social Care Operations,Supplies and Services,803.55,Jul-22
Slough Borough Council,680,Oxford House Community Care,M44D,Adult Social Care Operations,Supplies and Services,616.00,Jul-22
Slough Borough Council,680,Oxford House Community Care,M44D,Adult Social Care Operations,Supplies and Services,"1,119.95",Jul-22
Slough Borough Council,680,Oxford House Community Care,M44D,Adult Social Care Operations,Supplies and Services,544.72,Jul-22
Slough Borough Council,680,Oxford House Community Care,M44D,Adult Social Care Operations,Supplies and Services,867.38,Jul-22
Slough Borough Council,680,Oxford House Community Care,M47D,Adult Social Care Operations,Supplies and Services,633.60,Jul-22
Slough Borough Council,680,Oxford House Community Care,M48C,Adult Social Care Operations,Supplies and Services,875.24,Jul-22
Slough Borough Council,680,Oxford House Community Care,M48C,Adult Social Care Operations,Supplies and Services,662.41,Jul-22
Slough Borough Council,518,Oxford House Nursing Home,M15D,Adult Social Care Operations,Supplies and Services,"3,052.60",Jul-22
Slough Borough Council,518,Oxford House Nursing Home,M15D,Adult Social Care Operations,Supplies and Services,"3,052.60",Jul-22
Slough Borough Council,518,Oxford House Nursing Home,M18C,Adult Social Care Operations,Supplies and Services,"3,052.60",Jul-22
Slough Borough Council,518,Oxford House Nursing Home,M18C,Adult Social Care Operations,Supplies and Services,"3,052.60",Jul-22
Slough Borough Council,518,Oxford House Nursing Home,M18C,Adult Social Care Operations,Supplies and Services,-763.15,Jul-22
Slough Borough Council,518,Oxford House Nursing Home,M28C,Adult Social Care Operations,Supplies and Services,"3,052.60",Jul-22
Slough Borough Council,808421,Paramjit Saib,F253,Children & Families,Agency Staff,600.00,Jul-22
Slough Borough Council,808421,Paramjit Saib,F253,Children & Families,Agency Staff,900.00,Jul-22
Slough Borough Council,2509,Parvaaz Project,M44E,Adult Social Care Operations,Supplies and Services,597.00,Jul-22
Slough Borough Council,2509,Parvaaz Project,M44E,Adult Social Care Operations,Supplies and Services,597.00,Jul-22
Slough Borough Council,2509,Parvaaz Project,M44E,Adult Social Care Operations,Supplies and Services,597.00,Jul-22
Slough Borough Council,2509,Parvaaz Project,M44E,Adult Social Care Operations,Supplies and Services,549.00,Jul-22
Slough Borough Council,2509,Parvaaz Project,M50E,Adult Social Care Operations,Supplies and Services,736.00,Jul-22
Slough Borough Council,2509,Parvaaz Project,M50E,Adult Social Care Operations,Supplies and Services,736.00,Jul-22
Slough Borough Council,2509,Parvaaz Project,M50E,Adult Social Care Operations,Supplies and Services,736.00,Jul-22
Slough Borough Council,2509,Parvaaz Project,M50E,Adult Social Care Operations,Supplies and Services,736.00,Jul-22
Slough Borough Council,1468,Patrol,D123,Place Strategy & Infrastructure,Supplies and Services,"1,859.10",Jul-22
Slough Borough Council,1468,Patrol,D123,Place Strategy & Infrastructure,Supplies and Services,"1,792.20",Jul-22
Slough Borough Council,1468,Patrol,D123,Place Strategy & Infrastructure,Supplies and Services,"1,859.10",Jul-22
Slough Borough Council,1468,Patrol,D010,Place Strategy & Infrastructure,Supplies and Services,"1,356.90",Jul-22
Slough Borough Council,824,Penn Wood Primary and Nursery School,E450,Children & Families,Supplies and Services,"382,630.47",Jul-22
Slough Borough Council,807611,Peopletoo Ltd,A01D,Adult Social Care Operations,Supplies and Services,"96,612.56",Jul-22
Slough Borough Council,4007,Per4Mance Solutions Ltd,F210,Community,Supplies and Services,"2,000.00",Jul-22
Slough Borough Council,1504,Permanent Futures Limited,F640,Children & Families,Agency Staff,"1,500.00",Jul-22
Slough Borough Council,803786,Phillipa Holliday,C322,Community,Supplies and Services,"1,092.75",Jul-22
Slough Borough Council,807727,Phoenix Infant Academy c/o Thames Learning Trust,E620,Children & Families,Supplies and Services,"66,111.09",Jul-22
Slough Borough Council,807727,Phoenix Infant Academy c/o Thames Learning Trust,B297,Finance & Commercial,Government Grants,"7,560.00",Jul-22
Slough Borough Council,803498,Phoenix Software,P084,Capital,Capital Charges,"3,900.00",Jul-22
Slough Borough Council,803498,Phoenix Software,P084,Capital,Capital Charges,"9,100.00",Jul-22
Slough Borough Council,805351,Pield Heath House School,F462,Children & Families,Supplies and Services,"47,420.58",Jul-22
Slough Borough Council,3359,Pippins School,E370,Children & Families,Supplies and Services,"52,274.08",Jul-22
Slough Borough Council,807854,Pixel Financial Management Limited,B015,Finance,Supplies and Services,"2,500.00",Jul-22
Slough Borough Council,807120,PJ Care Limited,M15D,Adult Social Care Operations,Supplies and Services,"9,831.65",Jul-22
Slough Borough Council,808477,Polish Association in Slough,F253,Children & Families,Premises,633.33,Jul-22
Slough Borough Council,2537,Pre School Stars,F909,Children & Families,Supplies and Services,990.00,Jul-22
Slough Borough Council,2537,Pre School Stars,F909,Children & Families,Supplies and Services,"6,682.55",Jul-22
Slough Borough Council,805398,PRIORITEYES LTD,A06E,Adult Social Care Operations,Supplies and Services,"6,360.00",Jul-22
Slough Borough Council,805398,PRIORITEYES LTD,A06E,Adult Social Care Operations,Supplies and Services,"2,520.00",Jul-22
Slough Borough Council,805398,PRIORITEYES LTD,A06E,Adult Social Care Operations,Supplies and Services,"6,840.00",Jul-22
Slough Borough Council,849,Priory Primary School,E380,Children & Families,Supplies and Services,"493,398.14",Jul-22
Slough Borough Council,1138,Qed Slough Ltd,F868,Children & Families,Supplies and Services,"600,380.01",Jul-22
Slough Borough Council,1138,Qed Slough Ltd,F868,Children & Families,Supplies and Services,"4,332.48",Jul-22
Slough Borough Council,805746,Qfree (Bristol) UK Ltd,D500,Place Strategy & Infrastructure,Premises,"3,184.00",Jul-22
Slough Borough Council,2376,Quality Care Homes Uk Ltd,F123,Education & Inclusion,Supplies and Services,"1,480.00",Jul-22
Slough Borough Council,808200,Quest Recovery Services Ltd,M44C,Adult Social Care Operations,Supplies and Services,"5,182.00",Jul-22
Slough Borough Council,808200,Quest Recovery Services Ltd,M44C,Adult Social Care Operations,Supplies and Services,"5,376.00",Jul-22
Slough Borough Council,808200,Quest Recovery Services Ltd,M44C,Adult Social Care Operations,Supplies and Services,"1,456.00",Jul-22
Slough Borough Council,808200,Quest Recovery Services Ltd,M44C,Adult Social Care Operations,Supplies and Services,"1,008.00",Jul-22
Slough Borough Council,808200,Quest Recovery Services Ltd,M44C,Adult Social Care Operations,Supplies and Services,"2,016.00",Jul-22
Slough Borough Council,808200,Quest Recovery Services Ltd,M44E,Adult Social Care Operations,Supplies and Services,"1,792.00",Jul-22
Slough Borough Council,808200,Quest Recovery Services Ltd,M48C,Adult Social Care Operations,Supplies and Services,"2,016.00",Jul-22
Slough Borough Council,808200,Quest Recovery Services Ltd,M48C,Adult Social Care Operations,Supplies and Services,"1,008.00",Jul-22
Slough Borough Council,808200,Quest Recovery Services Ltd,M48C,Adult Social Care Operations,Supplies and Services,"1,008.00",Jul-22
Slough Borough Council,1942,Quickson (South & West) Ltd,P180,Capital,Capital Charges,"91,329.90",Jul-22
Slough Borough Council,2685,R.E.A.C.H,M26E,Adult Social Care Operations,Supplies and Services,"5,928.12",Jul-22
Slough Borough Council,2685,R.E.A.C.H,M26E,Adult Social Care Operations,Supplies and Services,"10,328.44",Jul-22
Slough Borough Council,2685,R.E.A.C.H,M26E,Adult Social Care Operations,Supplies and Services,"6,724.36",Jul-22
Slough Borough Council,2685,R.E.A.C.H,M26E,Adult Social Care Operations,Supplies and Services,"6,880.00",Jul-22
Slough Borough Council,2685,R.E.A.C.H,M26E,Adult Social Care Operations,Supplies and Services,"10,328.44",Jul-22
Slough Borough Council,2685,R.E.A.C.H,M26E,Adult Social Care Operations,Supplies and Services,"5,293.84",Jul-22
Slough Borough Council,2685,R.E.A.C.H,M26E,Adult Social Care Operations,Supplies and Services,"5,293.84",Jul-22
Slough Borough Council,2685,R.E.A.C.H,M26E,Adult Social Care Operations,Supplies and Services,"1,871.43",Jul-22
Slough Borough Council,2685,R.E.A.C.H,M26E,Adult Social Care Operations,External Receipts,-569.84,Jul-22
Slough Borough Council,2685,R.E.A.C.H,M26E,Adult Social Care Operations,External Receipts,-569.84,Jul-22
Slough Borough Council,2685,R.E.A.C.H,M26E,Adult Social Care Operations,External Receipts,-641.20,Jul-22
Slough Borough Council,2685,R.E.A.C.H,M26E,Adult Social Care Operations,External Receipts,-641.20,Jul-22
Slough Borough Council,1305,Rackspace Limited,B282,Digital and Strategic IT,Supplies and Services,"3,808.18",Jul-22
Slough Borough Council,1305,Rackspace Limited,B282,Digital and Strategic IT,Supplies and Services,"2,594.52",Jul-22
Slough Borough Council,1305,Rackspace Limited,B282,Digital and Strategic IT,Supplies and Services,"3,252.50",Jul-22
Slough Borough Council,1305,Rackspace Limited,B282,Digital and Strategic IT,Supplies and Services,"3,252.50",Jul-22
Slough Borough Council,1305,Rackspace Limited,B282,Digital and Strategic IT,Supplies and Services,"3,252.50",Jul-22
Slough Borough Council,1305,Rackspace Limited,B282,Digital and Strategic IT,Supplies and Services,"3,252.50",Jul-22
Slough Borough Council,1305,Rackspace Limited,B282,Digital and Strategic IT,Supplies and Services,555.68,Jul-22
Slough Borough Council,1305,Rackspace Limited,B282,Digital and Strategic IT,Supplies and Services,555.68,Jul-22
Slough Borough Council,1305,Rackspace Limited,B282,Digital and Strategic IT,Supplies and Services,555.68,Jul-22
Slough Borough Council,1305,Rackspace Limited,B282,Digital and Strategic IT,Supplies and Services,"4,067.18",Jul-22
Slough Borough Council,690,Reading Borough Council,D206,Place Strategy & Infrastructure,Supplies and Services,"20,917.00",Jul-22
Slough Borough Council,805444,Reading Transport Ltd,D512,Place Strategy & Infrastructure,Supplies and Services,"7,127.70",Jul-22
Slough Borough Council,805444,Reading Transport Ltd,D512,Place Strategy & Infrastructure,Supplies and Services,-791.97,Jul-22
Slough Borough Council,805444,Reading Transport Ltd,D512,Place Strategy & Infrastructure,Supplies and Services,"6,731.22",Jul-22
Slough Borough Council,806766,Red Brick Care Ltd,M44C,Adult Social Care Operations,Supplies and Services,"2,057.00",Jul-22
Slough Borough Council,806766,Red Brick Care Ltd,M44C,Adult Social Care Operations,Supplies and Services,"1,071.00",Jul-22
Slough Borough Council,804359,Redacted,F123,Education & Inclusion,Supplies and Services,"1,080.18",Jul-22
Slough Borough Council,804359,Redacted,F123,Education & Inclusion,Supplies and Services,"1,207.26",Jul-22
Slough Borough Council,808246,Redacted,F123,Education & Inclusion,Supplies and Services,760.00,Jul-22
Slough Borough Council,808246,Redacted,F123,Education & Inclusion,Supplies and Services,720.00,Jul-22
Slough Borough Council,806541,Redacted,F909,Children & Families,Supplies and Services,"3,150.00",Jul-22
Slough Borough Council,806541,Redacted,F909,Children & Families,Supplies and Services,"20,229.02",Jul-22
Slough Borough Council,3553,Redacted,F909,Children & Families,Supplies and Services,736.35,Jul-22
Slough Borough Council,3903,Redacted,F909,Children & Families,Supplies and Services,"1,596.95",Jul-22
Slough Borough Council,805307,Redacted,F909,Children & Families,Supplies and Services,559.86,Jul-22
Slough Borough Council,804932,Redacted,F909,Children & Families,Supplies and Services,"1,557.71",Jul-22
Slough Borough Council,808143,Redacted,F909,Children & Families,Supplies and Services,546.92,Jul-22
Slough Borough Council,804705,Redacted,F909,Children & Families,Supplies and Services,"1,028.30",Jul-22
Slough Borough Council,803824,Redacted,F909,Children & Families,Supplies and Services,"2,666.82",Jul-22
Slough Borough Council,807475,Redacted,F909,Children & Families,Supplies and Services,810.00,Jul-22
Slough Borough Council,807475,Redacted,F909,Children & Families,Supplies and Services,"4,983.50",Jul-22
Slough Borough Council,3251,Redacted,F909,Children & Families,Supplies and Services,536.75,Jul-22
Slough Borough Council,803853,Redacted,F909,Children & Families,Supplies and Services,536.75,Jul-22
Slough Borough Council,807836,Redacted,F909,Children & Families,Supplies and Services,"1,438.15",Jul-22
Slough Borough Council,803819,Redacted,F909,Children & Families,Supplies and Services,656.10,Jul-22
Slough Borough Council,805806,Redacted,F909,Children & Families,Supplies and Services,"1,052.59",Jul-22
Slough Borough Council,804597,Redline Buses Ltd,D512,Place Strategy & Infrastructure,Supplies and Services,"4,079.69",Jul-22
Slough Borough Council,804597,Redline Buses Ltd,D512,Place Strategy & Infrastructure,Supplies and Services,"4,279.79",Jul-22
Slough Borough Council,806854,Reed Specialist Recruitment,B033,People,Salaries and Wages,757.26,Jul-22
Slough Borough Council,806854,Reed Specialist Recruitment,B033,People,Salaries and Wages,793.82,Jul-22
Slough Borough Council,806854,Reed Specialist Recruitment,B033,People,Salaries and Wages,647.59,Jul-22
Slough Borough Council,808302,Reliant Care Limited,M44C,Adult Social Care Operations,Supplies and Services,"3,023.91",Jul-22
Slough Borough Council,807562,Renovo Farnborough Limited,M25D,Adult Social Care Operations,Supplies and Services,"8,714.76",Jul-22
Slough Borough Council,781,Resource Productions CIC,B283,Finance & Commercial,Supplies and Services,"3,666.67",Jul-22
Slough Borough Council,805200,RJ Morgan Fencing Ltd,D880,Place Operations,Supplies and Services,"6,917.00",Jul-22
Slough Borough Council,1553,Robyn Baker,C322,Community,Supplies and Services,"2,227.50",Jul-22
Slough Borough Council,806930,Roselight Healthcare Service Limited,M42F,Adult Social Care Operations,Supplies and Services,"3,340.00",Jul-22
Slough Borough Council,806930,Roselight Healthcare Service Limited,M42F,Adult Social Care Operations,Supplies and Services,"2,360.00",Jul-22
Slough Borough Council,806930,Roselight Healthcare Service Limited,M44F,Adult Social Care Operations,Supplies and Services,"1,592.52",Jul-22
Slough Borough Council,806930,Roselight Healthcare Service Limited,M44F,Adult Social Care Operations,Supplies and Services,"2,600.00",Jul-22
Slough Borough Council,806930,Roselight Healthcare Service Limited,M44F,Adult Social Care Operations,Supplies and Services,"3,340.00",Jul-22
Slough Borough Council,806930,Roselight Healthcare Service Limited,M44F,Adult Social Care Operations,Supplies and Services,"1,506.00",Jul-22
Slough Borough Council,806930,Roselight Healthcare Service Limited,M44F,Adult Social Care Operations,Supplies and Services,"1,592.52",Jul-22
Slough Borough Council,806930,Roselight Healthcare Service Limited,M44F,Adult Social Care Operations,Supplies and Services,"1,930.00",Jul-22
Slough Borough Council,806930,Roselight Healthcare Service Limited,M44F,Adult Social Care Operations,Supplies and Services,"1,722.00",Jul-22
Slough Borough Council,806930,Roselight Healthcare Service Limited,M44F,Adult Social Care Operations,Supplies and Services,"1,765.16",Jul-22
Slough Borough Council,806930,Roselight Healthcare Service Limited,M44F,Adult Social Care Operations,Supplies and Services,"1,592.52",Jul-22
Slough Borough Council,806930,Roselight Healthcare Service Limited,M44F,Adult Social Care Operations,Supplies and Services,"1,762.96",Jul-22
Slough Borough Council,805580,Rouge Media,A07M,Mental Health Services,Supplies and Services,"1,950.00",Jul-22
Slough Borough Council,696,Royal Borough Of Windsor And Maidenhead,M44E,Adult Social Care Operations,Supplies and Services,748.00,Jul-22
Slough Borough Council,696,Royal Borough Of Windsor And Maidenhead,M44E,Adult Social Care Operations,Supplies and Services,860.20,Jul-22
Slough Borough Council,696,Royal Borough Of Windsor And Maidenhead,M44E,Adult Social Care Operations,Supplies and Services,946.56,Jul-22
Slough Borough Council,696,Royal Borough Of Windsor And Maidenhead,F553,Children & Families,Supplies and Services,"3,277.00",Jul-22
Slough Borough Council,804860,Royal Masonic Benevolent Institution,M18C,Adult Social Care Operations,Supplies and Services,"4,207.14",Jul-22
Slough Borough Council,2168,RSM UK Risk Assurance Services LLP,B132,Finance,Supplies and Services,"7,500.00",Jul-22
Slough Borough Council,842,Ryvers Primary School,F200,Education & Inclusion,Salaries and Wages-Employees Expenses,"1,200.00",Jul-22
Slough Borough Council,842,Ryvers Primary School,E620,Children & Families,Supplies and Services,"52,946.01",Jul-22
Slough Borough Council,806398,Saba Park UK Services Limited,D122,Place Strategy & Infrastructure,Premises,"14,271.78",Jul-22
Slough Borough Council,806398,Saba Park UK Services Limited,D122,Place Strategy & Infrastructure,Premises,"12,792.47",Jul-22
Slough Borough Council,806398,Saba Park UK Services Limited,D122,Place Strategy & Infrastructure,Premises,"14,271.78",Jul-22
Slough Borough Council,806398,Saba Park UK Services Limited,D122,Place Strategy & Infrastructure,Premises,"13,008.88",Jul-22
Slough Borough Council,806398,Saba Park UK Services Limited,D123,Place Strategy & Infrastructure,Supplies and Services,"5,686.72",Jul-22
Slough Borough Council,806398,Saba Park UK Services Limited,D123,Place Strategy & Infrastructure,Supplies and Services,"2,317.32",Jul-22
Slough Borough Council,806398,Saba Park UK Services Limited,D123,Place Strategy & Infrastructure,Supplies and Services,"2,369.52",Jul-22
Slough Borough Council,806398,Saba Park UK Services Limited,D123,Place Strategy & Infrastructure,Supplies and Services,998.42,Jul-22
Slough Borough Council,806398,Saba Park UK Services Limited,D122,Place Strategy & Infrastructure,Supplies and Services,"10,226.21",Jul-22
Slough Borough Council,806398,Saba Park UK Services Limited,D123,Place Strategy & Infrastructure,Supplies and Services,"1,755.00",Jul-22
Slough Borough Council,806398,Saba Park UK Services Limited,D123,Place Strategy & Infrastructure,Supplies and Services,"101,519.93",Jul-22
Slough Borough Council,806398,Saba Park UK Services Limited,D123,Place Strategy & Infrastructure,Supplies and Services,"92,035.90",Jul-22
Slough Borough Council,806398,Saba Park UK Services Limited,D123,Place Strategy & Infrastructure,Supplies and Services,"3,150.00",Jul-22
Slough Borough Council,806398,Saba Park UK Services Limited,D123,Place Strategy & Infrastructure,Supplies and Services,"101,363.30",Jul-22
Slough Borough Council,806398,Saba Park UK Services Limited,D123,Place Strategy & Infrastructure,Supplies and Services,"100,300.21",Jul-22
Slough Borough Council,806398,Saba Park UK Services Limited,D122,Place Strategy & Infrastructure,Supplies and Services,"11,279.99",Jul-22
Slough Borough Council,806398,Saba Park UK Services Limited,D122,Place Strategy & Infrastructure,Supplies and Services,"11,262.59",Jul-22
Slough Borough Council,806398,Saba Park UK Services Limited,D122,Place Strategy & Infrastructure,Supplies and Services,"11,144.47",Jul-22
Slough Borough Council,806398,Saba Park UK Services Limited,D123,Place Strategy & Infrastructure,Supplies and Services,"1,792.73",Jul-22
Slough Borough Council,806398,Saba Park UK Services Limited,D123,Place Strategy & Infrastructure,Supplies and Services,"1,613.62",Jul-22
Slough Borough Council,806398,Saba Park UK Services Limited,D123,Place Strategy & Infrastructure,Supplies and Services,788.11,Jul-22
Slough Borough Council,806398,Saba Park UK Services Limited,D123,Place Strategy & Infrastructure,Supplies and Services,"1,792.73",Jul-22
Slough Borough Council,806398,Saba Park UK Services Limited,D123,Place Strategy & Infrastructure,Supplies and Services,"1,613.62",Jul-22
Slough Borough Council,806398,Saba Park UK Services Limited,D010,Place Strategy & Infrastructure,Supplies and Services,"18,792.82",Jul-22
Slough Borough Council,806398,Saba Park UK Services Limited,D010,Place Strategy & Infrastructure,Supplies and Services,"44,480.00",Jul-22
Slough Borough Council,806398,Saba Park UK Services Limited,D010,Place Strategy & Infrastructure,Supplies and Services,"15,420.61",Jul-22
Slough Borough Council,806398,Saba Park UK Services Limited,D010,Place Strategy & Infrastructure,Supplies and Services,"18,198.94",Jul-22
Slough Borough Council,806398,Saba Park UK Services Limited,D010,Place Strategy & Infrastructure,Supplies and Services,"18,573.45",Jul-22
Slough Borough Council,804350,Sandra's Childcare,F909,Children & Families,Supplies and Services,"1,475.78",Jul-22
Slough Borough Council,1580,Savills (UK) Ltd,P437,Capital,Capital Charges,"26,000.00",Jul-22
Slough Borough Council,1580,Savills (UK) Ltd,P437,Capital,Capital Charges,"4,500.00",Jul-22
Slough Borough Council,3169,Seeability,M26E,Adult Social Care Operations,Supplies and Services,"11,010.00",Jul-22
Slough Borough Council,759,Segro Plc,B082,Place Strategy & Infrastructure,Supplies and Services,"62,375.00",Jul-22
Slough Borough Council,803999,Sequence Care Group,M26E,Adult Social Care Operations,Supplies and Services,"12,228.79",Jul-22
Slough Borough Council,808140,Service to the Aged Ltd,M15D,Adult Social Care Operations,Supplies and Services,"3,642.90",Jul-22
Slough Borough Council,805203,Shorts Agricultural Services Ltd,D342,Place Operations,Supplies and Services,"11,597.02",Jul-22
Slough Borough Council,805203,Shorts Agricultural Services Ltd,D342,Place Operations,Supplies and Services,"16,409.92",Jul-22
Slough Borough Council,57,Signis Limited,B277,Digital and Strategic IT,Supplies and Services,"8,820.00",Jul-22
Slough Borough Council,804922,SIMPSON ENVIRONMENTAL SERVICE LTD,B082,Place Strategy & Infrastructure,Premises,"16,554.57",Jul-22
Slough Borough Council,808216,SJG Consultancy Ltd,F123,Education & Inclusion,Supplies and Services,"8,100.00",Jul-22
Slough Borough Council,472,Slough & Eton C.E.School,B297,Finance & Commercial,Government Grants,"29,160.00",Jul-22
Slough Borough Council,1459,Slough And Eton C E School,E610,Children & Families,Supplies and Services,"118,478.14",Jul-22
Slough Borough Council,807834,Slough Children First,M99C,Children & Families,Supplies and Services,"2,619,512.80",Jul-22
Slough Borough Council,2466,Slough Childrens Services Trust Limited,F388,Children & Families,Indirect Employee Expenses,675.00,Jul-22
Slough Borough Council,2466,Slough Childrens Services Trust Limited,B297,Finance & Commercial,Government Grants,"35,209.41",Jul-22
Slough Borough Council,276,Slough Community Transport & Shopmobility,F123,Education & Inclusion,Supplies and Services,"26,318.32",Jul-22
Slough Borough Council,1913,Slough Crossroads Caring For Carers,M44C,Adult Social Care Operations,Supplies and Services,744.00,Jul-22
Slough Borough Council,1913,Slough Crossroads Caring For Carers,M44C,Adult Social Care Operations,Supplies and Services,"1,020.00",Jul-22
Slough Borough Council,1913,Slough Crossroads Caring For Carers,M44E,Adult Social Care Operations,Supplies and Services,"1,200.00",Jul-22
Slough Borough Council,1913,Slough Crossroads Caring For Carers,M44E,Adult Social Care Operations,Supplies and Services,800.00,Jul-22
Slough Borough Council,1913,Slough Crossroads Caring For Carers,M44E,Adult Social Care Operations,Supplies and Services,910.00,Jul-22
Slough Borough Council,1119,Slough Cvs,A01P,Public Health,Supplies and Services,"5,000.00",Jul-22
Slough Borough Council,1119,Slough Cvs,A02C,Adult Social Care Commissioning,Supplies and Services,"118,312.75",Jul-22
Slough Borough Council,3011,Slough Urban Renewal Community Projects LLP,P575,Capital,Capital Charges,"3,013.75",Jul-22
Slough Borough Council,3011,Slough Urban Renewal Community Projects LLP,P575,Capital,Capital Charges,"9,002.03",Jul-22
Slough Borough Council,3011,Slough Urban Renewal Community Projects LLP,P575,Capital,Capital Charges,"5,727.27",Jul-22
Slough Borough Council,114,Solutions 4 Health Ltd,A01P,Public Health,Supplies and Services,"229,057.81",Jul-22
Slough Borough Council,114,Solutions 4 Health Ltd,A01P,Public Health,Supplies and Services,"60,000.00",Jul-22
Slough Borough Council,808407,SOS Electricals & Services Ltd,P093,Capital,Capital Charges,"147,112.41",Jul-22
Slough Borough Council,1875,Ss & Kk. Hothi,H205,Housing (People) Services,Premises,"15,816.66",Jul-22
Slough Borough Council,1875,Ss & Kk. Hothi,H205,Housing (People) Services,Premises,"11,771.25",Jul-22
Slough Borough Council,1875,Ss & Kk. Hothi,H205,Housing (People) Services,Premises,"5,150.00",Jul-22
Slough Borough Council,304,Sse Power Distribution Limited (S+S),D413,Place Strategy & Infrastructure,Supplies and Services,780.30,Jul-22
Slough Borough Council,803165,St Anthony's Catholic Primary School & Nursery,E620,Children & Families,Supplies and Services,"24,637.51",Jul-22
Slough Borough Council,3383,St Bernards Catholic Grammar School,E550,Children & Families,Supplies and Services,"478,746.64",Jul-22
Slough Borough Council,2918,St Bernard'S Rc Preparatory School,F909,Children & Families,Supplies and Services,"14,635.90",Jul-22
Slough Borough Council,3547,St Ethelberts School,E620,Children & Families,Supplies and Services,"70,386.25",Jul-22
Slough Borough Council,713,St John Ambulance,C322,Community,Indirect Employee Expenses,"1,255.00",Jul-22
Slough Borough Council,1378,St Josephs Catholic High School,E610,Children & Families,Supplies and Services,"12,222.06",Jul-22
Slough Borough Council,806584,St Mattews Ltd,M15F,Adult Social Care Operations,Supplies and Services,"4,096.43",Jul-22
Slough Borough Council,806584,St Mattews Ltd,M15F,Adult Social Care Operations,Supplies and Services,"3,964.29",Jul-22
Slough Borough Council,468,Stannah Lift Services Ltd,P006,Capital,Capital Charges,"2,902.00",Jul-22
Slough Borough Council,468,Stannah Lift Services Ltd,P006,Capital,Capital Charges,"3,115.00",Jul-22
Slough Borough Council,808142,Step Together Ltd,M28E,Adult Social Care Operations,Supplies and Services,"1,120.00",Jul-22
Slough Borough Council,2687,Stepping Stones,M26E,Adult Social Care Operations,Supplies and Services,"5,133.24",Jul-22
Slough Borough Council,805181,Street Furnishings Ltd,D880,Place Operations,Supplies and Services,"1,300.00",Jul-22
Slough Borough Council,2688,Sunnyside Nursing Home,M15D,Adult Social Care Operations,Supplies and Services,"2,991.76",Jul-22
Slough Borough Council,807889,Sunrise Transport Ltd,F123,Education & Inclusion,Supplies and Services,"2,377.80",Jul-22
Slough Borough Council,807889,Sunrise Transport Ltd,F123,Education & Inclusion,Supplies and Services,"6,675.00",Jul-22
Slough Borough Council,293,Surecare Slough,A07R,Adult Social Care Operations,Supplies and Services,785.83,Jul-22
Slough Borough Council,293,Surecare Slough,M44C,Adult Social Care Operations,Supplies and Services,802.20,Jul-22
Slough Borough Council,293,Surecare Slough,M44C,Adult Social Care Operations,Supplies and Services,"1,200.25",Jul-22
Slough Borough Council,293,Surecare Slough,M44C,Adult Social Care Operations,Supplies and Services,"2,406.60",Jul-22
Slough Borough Council,293,Surecare Slough,M44C,Adult Social Care Operations,Supplies and Services,"2,941.68",Jul-22
Slough Borough Council,293,Surecare Slough,M44C,Adult Social Care Operations,Supplies and Services,802.20,Jul-22
Slough Borough Council,293,Surecare Slough,M44C,Adult Social Care Operations,Supplies and Services,802.20,Jul-22
Slough Borough Council,293,Surecare Slough,M44C,Adult Social Care Operations,Supplies and Services,935.40,Jul-22
Slough Borough Council,293,Surecare Slough,M44C,Adult Social Care Operations,Supplies and Services,"1,260.60",Jul-22
Slough Borough Council,293,Surecare Slough,M44C,Adult Social Care Operations,Supplies and Services,"1,871.80",Jul-22
Slough Borough Council,293,Surecare Slough,M44C,Adult Social Care Operations,Supplies and Services,"2,674.00",Jul-22
Slough Borough Council,293,Surecare Slough,M44C,Adult Social Care Operations,Supplies and Services,"2,483.00",Jul-22
Slough Borough Council,293,Surecare Slough,M44C,Adult Social Care Operations,Supplies and Services,"1,604.40",Jul-22
Slough Borough Council,293,Surecare Slough,M44C,Adult Social Care Operations,Supplies and Services,"1,150.31",Jul-22
Slough Borough Council,293,Surecare Slough,M44C,Adult Social Care Operations,Supplies and Services,"1,361.61",Jul-22
Slough Borough Council,293,Surecare Slough,M44C,Adult Social Care Operations,Supplies and Services,802.20,Jul-22
Slough Borough Council,293,Surecare Slough,M44C,Adult Social Care Operations,Supplies and Services,-802.20,Jul-22
Slough Borough Council,293,Surecare Slough,M44C,Adult Social Care Operations,Supplies and Services,529.90,Jul-22
Slough Borough Council,293,Surecare Slough,M44C,Adult Social Care Operations,Supplies and Services,"1,203.30",Jul-22
Slough Borough Council,293,Surecare Slough,M44C,Adult Social Care Operations,Supplies and Services,"2,406.60",Jul-22
Slough Borough Council,293,Surecare Slough,M44C,Adult Social Care Operations,Supplies and Services,"2,941.40",Jul-22
Slough Borough Council,293,Surecare Slough,M44C,Adult Social Care Operations,Supplies and Services,"2,674.00",Jul-22
Slough Borough Council,293,Surecare Slough,M44C,Adult Social Care Operations,Supplies and Services,940.99,Jul-22
Slough Borough Council,293,Surecare Slough,M44C,Adult Social Care Operations,Supplies and Services,"2,394.14",Jul-22
Slough Borough Council,293,Surecare Slough,M44C,Adult Social Care Operations,Supplies and Services,"2,406.60",Jul-22
Slough Borough Council,293,Surecare Slough,M44C,Adult Social Care Operations,Supplies and Services,935.90,Jul-22
Slough Borough Council,293,Surecare Slough,M44C,Adult Social Care Operations,Supplies and Services,"1,036.23",Jul-22
Slough Borough Council,293,Surecare Slough,M44C,Adult Social Care Operations,Supplies and Services,"1,203.30",Jul-22
Slough Borough Council,293,Surecare Slough,M44C,Adult Social Care Operations,Supplies and Services,622.98,Jul-22
Slough Borough Council,293,Surecare Slough,M44C,Adult Social Care Operations,Supplies and Services,783.10,Jul-22
Slough Borough Council,293,Surecare Slough,M44C,Adult Social Care Operations,Supplies and Services,"2,406.60",Jul-22
Slough Borough Council,293,Surecare Slough,M44C,Adult Social Care Operations,Supplies and Services,933.16,Jul-22
Slough Borough Council,293,Surecare Slough,M44C,Adult Social Care Operations,Supplies and Services,"2,502.10",Jul-22
Slough Borough Council,293,Surecare Slough,M44C,Adult Social Care Operations,Supplies and Services,"1,337.00",Jul-22
Slough Borough Council,293,Surecare Slough,M44C,Adult Social Care Operations,Supplies and Services,"2,406.60",Jul-22
Slough Borough Council,293,Surecare Slough,M44D,Adult Social Care Operations,Supplies and Services,668.50,Jul-22
Slough Borough Council,293,Surecare Slough,M44D,Adult Social Care Operations,Supplies and Services,"1,241.50",Jul-22
Slough Borough Council,293,Surecare Slough,M44D,Adult Social Care Operations,Supplies and Services,"1,181.69",Jul-22
Slough Borough Council,293,Surecare Slough,M44D,Adult Social Care Operations,Supplies and Services,"2,518.49",Jul-22
Slough Borough Council,293,Surecare Slough,M44D,Adult Social Care Operations,Supplies and Services,"2,406.60",Jul-22
Slough Borough Council,293,Surecare Slough,M44D,Adult Social Care Operations,Supplies and Services,935.90,Jul-22
Slough Borough Council,293,Surecare Slough,M44D,Adult Social Care Operations,Supplies and Services,"2,406.60",Jul-22
Slough Borough Council,293,Surecare Slough,M44D,Adult Social Care Operations,Supplies and Services,"2,406.60",Jul-22
Slough Borough Council,293,Surecare Slough,M44D,Adult Social Care Operations,Supplies and Services,"1,337.00",Jul-22
Slough Borough Council,293,Surecare Slough,M44D,Adult Social Care Operations,Supplies and Services,"3,222.05",Jul-22
Slough Borough Council,293,Surecare Slough,M44E,Adult Social Care Operations,Supplies and Services,802.20,Jul-22
Slough Borough Council,293,Surecare Slough,M45C,Adult Social Care Operations,Supplies and Services,"1,030.76",Jul-22
Slough Borough Council,293,Surecare Slough,M45C,Adult Social Care Operations,Supplies and Services,603.27,Jul-22
Slough Borough Council,293,Surecare Slough,M48C,Adult Social Care Operations,Supplies and Services,"1,375.48",Jul-22
Slough Borough Council,293,Surecare Slough,M48C,Adult Social Care Operations,Supplies and Services,"2,674.00",Jul-22
Slough Borough Council,293,Surecare Slough,M48C,Adult Social Care Operations,Supplies and Services,"2,610.39",Jul-22
Slough Borough Council,293,Surecare Slough,M48C,Adult Social Care Operations,Supplies and Services,"2,406.60",Jul-22
Slough Borough Council,715,Surrey County Council,F462,Children & Families,Supplies and Services,"2,125.00",Jul-22
Slough Borough Council,715,Surrey County Council,F462,Children & Families,Supplies and Services,"-2,125.00",Jul-22
Slough Borough Council,715,Surrey County Council,F123,Education & Inclusion,Supplies and Services,"1,304.00",Jul-22
Slough Borough Council,805484,Synergy Asset Services Ltd,D342,Place Operations,Supplies and Services,"1,911.00",Jul-22
Slough Borough Council,903,Taylor & Francis,F640,Children & Families,Supplies and Services,787.28,Jul-22
Slough Borough Council,3369,Teeny Boppers Montessori School,F909,Children & Families,Supplies and Services,720.00,Jul-22
Slough Borough Council,3369,Teeny Boppers Montessori School,F909,Children & Families,Supplies and Services,"8,354.28",Jul-22
Slough Borough Council,1596,Teleshore (Uk) Limited,D320,Place Operations,Supplies and Services,"2,026.75",Jul-22
Slough Borough Council,1596,Teleshore (Uk) Limited,D320,Place Operations,Supplies and Services,"1,632.00",Jul-22
Slough Borough Council,1596,Teleshore (Uk) Limited,D320,Place Operations,Supplies and Services,924.00,Jul-22
Slough Borough Council,803382,Telford & Wrekin Council,F552,Children & Families,Supplies and Services,"7,268.03",Jul-22
Slough Borough Council,803382,Telford & Wrekin Council,F552,Children & Families,Supplies and Services,"8,641.00",Jul-22
Slough Borough Council,803382,Telford & Wrekin Council,F123,Education & Inclusion,Supplies and Services,"8,457.30",Jul-22
Slough Borough Council,806836,Telford Cleaners LTD,M80F,Adult Social Care Operations,Supplies and Services,625.00,Jul-22
Slough Borough Council,808171,TESGL Ltd T/A SSE Energy Solutions,P187,Capital,Capital Charges,"24,300.00",Jul-22
Slough Borough Council,807878,Thames Valley Buses,F123,Education & Inclusion,Supplies and Services,757.35,Jul-22
Slough Borough Council,807878,Thames Valley Buses,D512,Place Strategy & Infrastructure,Supplies and Services,"6,911.55",Jul-22
Slough Borough Council,807878,Thames Valley Buses,D512,Place Strategy & Infrastructure,Supplies and Services,"1,458.68",Jul-22
Slough Borough Council,803712,Thames Valley Transport Services LTD,F123,Education & Inclusion,Supplies and Services,"80,765.60",Jul-22
Slough Borough Council,803712,Thames Valley Transport Services LTD,F123,Education & Inclusion,Supplies and Services,"14,033.00",Jul-22
Slough Borough Council,803774,The Abbeyfield Maidenhead Society Ltd,M28C,Adult Social Care Operations,Supplies and Services,"2,613.39",Jul-22
Slough Borough Council,808451,The Address Management,H205,Housing (People) Services,Supplies and Services,"1,650.00",Jul-22
Slough Borough Council,808451,The Address Management,H205,Housing (People) Services,Supplies and Services,"1,650.00",Jul-22
Slough Borough Council,808451,The Address Management,H205,Housing (People) Services,Supplies and Services,"1,395.00",Jul-22
Slough Borough Council,808451,The Address Management,H205,Housing (People) Services,Supplies and Services,"1,650.00",Jul-22
Slough Borough Council,808451,The Address Management,H205,Housing (People) Services,Supplies and Services,"1,800.00",Jul-22
Slough Borough Council,808451,The Address Management,H205,Housing (People) Services,Supplies and Services,"1,350.00",Jul-22
Slough Borough Council,3344,The Caldecott Foundation,F551,Children & Families,Supplies and Services,557.14,Jul-22
Slough Borough Council,3344,The Caldecott Foundation,F551,Children & Families,Supplies and Services,557.14,Jul-22
Slough Borough Council,653,The Godolphin Junior Academy,E620,Children & Families,Supplies and Services,"10,512.16",Jul-22
Slough Borough Council,653,The Godolphin Junior Academy,B297,Finance & Commercial,Government Grants,"14,040.00",Jul-22
Slough Borough Council,1385,The Langley Academy,E610,Children & Families,Supplies and Services,"33,116.67",Jul-22
Slough Borough Council,803300,The Langley Academy Primary,E610,Children & Families,Supplies and Services,"33,844.83",Jul-22
Slough Borough Council,806847,The Langley Heritage Primary Academy,E620,Children & Families,Supplies and Services,"19,207.39",Jul-22
Slough Borough Council,805400,The Leading Care Company,M44C,Adult Social Care Operations,Supplies and Services,"1,073.73",Jul-22
Slough Borough Council,805400,The Leading Care Company,M44C,Adult Social Care Operations,Supplies and Services,"1,827.85",Jul-22
Slough Borough Council,805400,The Leading Care Company,M44C,Adult Social Care Operations,Supplies and Services,739.68,Jul-22
Slough Borough Council,805400,The Leading Care Company,M44C,Adult Social Care Operations,Supplies and Services,643.35,Jul-22
Slough Borough Council,805400,The Leading Care Company,M44C,Adult Social Care Operations,Supplies and Services,685.42,Jul-22
Slough Borough Council,805400,The Leading Care Company,M44C,Adult Social Care Operations,Supplies and Services,830.26,Jul-22
Slough Borough Council,805400,The Leading Care Company,M44C,Adult Social Care Operations,Supplies and Services,"1,156.51",Jul-22
Slough Borough Council,805400,The Leading Care Company,M44C,Adult Social Care Operations,Supplies and Services,509.36,Jul-22
Slough Borough Council,805400,The Leading Care Company,M44C,Adult Social Care Operations,Supplies and Services,893.96,Jul-22
Slough Borough Council,805400,The Leading Care Company,M44D,Adult Social Care Operations,Supplies and Services,"1,061.57",Jul-22
Slough Borough Council,805400,The Leading Care Company,M44D,Adult Social Care Operations,Supplies and Services,"3,800.16",Jul-22
Slough Borough Council,805400,The Leading Care Company,M45C,Adult Social Care Operations,Supplies and Services,"1,504.51",Jul-22
Slough Borough Council,805400,The Leading Care Company,M48C,Adult Social Care Operations,Supplies and Services,"3,800.16",Jul-22
Slough Borough Council,3116,The Oratory Montessori Day Nursery,F909,Children & Families,Supplies and Services,"13,699.58",Jul-22
Slough Borough Council,2002,The Pace Centre,F551,Children & Families,Supplies and Services,"2,520.00",Jul-22
Slough Borough Council,2002,The Pace Centre,F551,Children & Families,Supplies and Services,"4,680.00",Jul-22
Slough Borough Council,807439,The Pines,M26E,Adult Social Care Operations,Supplies and Services,"4,974.17",Jul-22
Slough Borough Council,807439,The Pines,M26E,Adult Social Care Operations,Supplies and Services,"3,025.37",Jul-22
Slough Borough Council,807588,The Priory School,F462,Children & Families,Supplies and Services,"5,320.00",Jul-22
Slough Borough Council,2898,The Regard Partnership Ltd,M42E,Adult Social Care Operations,Supplies and Services,"5,363.17",Jul-22
Slough Borough Council,2898,The Regard Partnership Ltd,M42E,Adult Social Care Operations,Supplies and Services,"6,520.63",Jul-22
Slough Borough Council,2898,The Regard Partnership Ltd,M42E,Adult Social Care Operations,Supplies and Services,"6,743.47",Jul-22
Slough Borough Council,2898,The Regard Partnership Ltd,M42E,Adult Social Care Operations,Supplies and Services,"5,007.74",Jul-22
Slough Borough Council,2898,The Regard Partnership Ltd,M42E,Adult Social Care Operations,Supplies and Services,"6,559.16",Jul-22
Slough Borough Council,2898,The Regard Partnership Ltd,M42E,Adult Social Care Operations,Supplies and Services,"5,129.35",Jul-22
Slough Borough Council,2898,The Regard Partnership Ltd,M44D,Adult Social Care Operations,Supplies and Services,"4,519.14",Jul-22
Slough Borough Council,808166,The Royal National College for the Blind,F462,Children & Families,Supplies and Services,"17,689.32",Jul-22
Slough Borough Council,2209,The Specialist Education Trust,B297,Finance & Commercial,Government Grants,"1,890.00",Jul-22
Slough Borough Council,821,The Westgate School,F449,Education & Inclusion,Supplies and Services,655.60,Jul-22
Slough Borough Council,821,The Westgate School,E610,Children & Families,Supplies and Services,"53,653.37",Jul-22
Slough Borough Council,821,The Westgate School,B297,Finance & Commercial,Government Grants,"17,193.60",Jul-22
Slough Borough Council,807128,The Willows School Academy Trust,F551,Children & Families,Supplies and Services,"7,740.00",Jul-22
Slough Borough Council,805915,Time 4 U Limited,M44F,Adult Social Care Operations,Supplies and Services,"2,892.85",Jul-22
Slough Borough Council,806360,Tiny Turtles Daycare Nursery Ltd,F382,Children & Families,Supplies and Services,"2,369.00",Jul-22
Slough Borough Council,806360,Tiny Turtles Daycare Nursery Ltd,F909,Children & Families,Supplies and Services,"2,700.00",Jul-22
Slough Borough Council,806360,Tiny Turtles Daycare Nursery Ltd,F909,Children & Families,Supplies and Services,"14,977.65",Jul-22
Slough Borough Council,803194,TMP Worldwide,B348,People,Indirect Employee Expenses,"1,246.82",Jul-22
Slough Borough Council,803194,TMP Worldwide,B348,People,Indirect Employee Expenses,"1,246.82",Jul-22
Slough Borough Council,171,Toad Hall Nursery,F909,Children & Families,Supplies and Services,"23,509.31",Jul-22
Slough Borough Council,2203,Toby Miller,C322,Community,Supplies and Services,876.50,Jul-22
Slough Borough Council,1782,Top Mill Ltd,H205,Housing (People) Services,Supplies and Services,560.00,Jul-22
Slough Borough Council,1782,Top Mill Ltd,H205,Housing (People) Services,Supplies and Services,560.00,Jul-22
Slough Borough Council,2432,Tracsis Traffic Data Limited,P238,Capital,Capital Charges,"1,445.00",Jul-22
Slough Borough Council,1010,Trading Standards South East Ltd,D303,Place Regulation,Supplies and Services,"3,383.00",Jul-22
Slough Borough Council,1476,Transport For London - London Buses,D512,Place Strategy & Infrastructure,Supplies and Services,"11,910.08",Jul-22
Slough Borough Council,2889,Tudor (UK) Ltd t/a Tudor Environmental,D750,Place Operations,Supplies and Services,"2,440.90",Jul-22
Slough Borough Council,942,Turning Point,A04C,Adult Social Care Operations,Supplies and Services,"186,334.75",Jul-22
Slough Borough Council,1387,Ultimate Incentive Ltd,B283,Finance & Commercial,Supplies and Services,548.00,Jul-22
Slough Borough Council,807414,Uniq Health Care,M42E,Adult Social Care Operations,Supplies and Services,"1,228.00",Jul-22
Slough Borough Council,807414,Uniq Health Care,M42E,Adult Social Care Operations,Supplies and Services,"1,228.00",Jul-22
Slough Borough Council,807414,Uniq Health Care,M42E,Adult Social Care Operations,Supplies and Services,"1,228.00",Jul-22
Slough Borough Council,807414,Uniq Health Care,M42E,Adult Social Care Operations,Supplies and Services,"1,228.00",Jul-22
Slough Borough Council,807414,Uniq Health Care,M42E,Adult Social Care Operations,Supplies and Services,"1,228.00",Jul-22
Slough Borough Council,807414,Uniq Health Care,M42E,Adult Social Care Operations,Supplies and Services,"1,228.00",Jul-22
Slough Borough Council,807414,Uniq Health Care,M42E,Adult Social Care Operations,Supplies and Services,"1,228.00",Jul-22
Slough Borough Council,807414,Uniq Health Care,M42E,Adult Social Care Operations,Supplies and Services,"1,228.00",Jul-22
Slough Borough Council,807414,Uniq Health Care,M42E,Adult Social Care Operations,Supplies and Services,"1,228.00",Jul-22
Slough Borough Council,807414,Uniq Health Care,M42E,Adult Social Care Operations,Supplies and Services,"1,228.00",Jul-22
Slough Borough Council,803603,Unique Training Solutions,A07R,Adult Social Care Operations,Indirect Employee Expenses,624.00,Jul-22
Slough Borough Council,3953,Upton Court Grammar School,E610,Children & Families,Supplies and Services,"2,000.00",Jul-22
Slough Borough Council,577,Upton Park Hotel,H205,Housing (People) Services,Supplies and Services,"3,360.00",Jul-22
Slough Borough Council,577,Upton Park Hotel,H205,Housing (People) Services,Supplies and Services,"1,512.00",Jul-22
Slough Borough Council,577,Upton Park Hotel,H205,Housing (People) Services,Supplies and Services,"1,372.00",Jul-22
Slough Borough Council,577,Upton Park Hotel,H205,Housing (People) Services,Supplies and Services,"1,372.00",Jul-22
Slough Borough Council,577,Upton Park Hotel,H205,Housing (People) Services,Supplies and Services,"1,372.00",Jul-22
Slough Borough Council,577,Upton Park Hotel,H205,Housing (People) Services,Supplies and Services,"1,372.00",Jul-22
Slough Borough Council,577,Upton Park Hotel,H205,Housing (People) Services,Supplies and Services,"1,540.00",Jul-22
Slough Borough Council,577,Upton Park Hotel,H205,Housing (People) Services,Supplies and Services,"1,372.00",Jul-22
Slough Borough Council,577,Upton Park Hotel,H205,Housing (People) Services,Supplies and Services,784.00,Jul-22
Slough Borough Council,577,Upton Park Hotel,H205,Housing (People) Services,Supplies and Services,"1,372.00",Jul-22
Slough Borough Council,577,Upton Park Hotel,H205,Housing (People) Services,Supplies and Services,"2,184.00",Jul-22
Slough Borough Council,577,Upton Park Hotel,H205,Housing (People) Services,Supplies and Services,"1,372.00",Jul-22
Slough Borough Council,577,Upton Park Hotel,H205,Housing (People) Services,Supplies and Services,"1,372.00",Jul-22
Slough Borough Council,577,Upton Park Hotel,H205,Housing (People) Services,Supplies and Services,"3,024.00",Jul-22
Slough Borough Council,577,Upton Park Hotel,H205,Housing (People) Services,Supplies and Services,"1,848.00",Jul-22
Slough Borough Council,577,Upton Park Hotel,H205,Housing (People) Services,Supplies and Services,"1,372.00",Jul-22
Slough Borough Council,577,Upton Park Hotel,H205,Housing (People) Services,Supplies and Services,"1,372.00",Jul-22
Slough Borough Council,577,Upton Park Hotel,H205,Housing (People) Services,Supplies and Services,"1,372.00",Jul-22
Slough Borough Council,577,Upton Park Hotel,H205,Housing (People) Services,Supplies and Services,"1,372.00",Jul-22
Slough Borough Council,577,Upton Park Hotel,H205,Housing (People) Services,Supplies and Services,"1,372.00",Jul-22
Slough Borough Council,577,Upton Park Hotel,H205,Housing (People) Services,Supplies and Services,"2,184.00",Jul-22
Slough Borough Council,577,Upton Park Hotel,H205,Housing (People) Services,Supplies and Services,"1,372.00",Jul-22
Slough Borough Council,577,Upton Park Hotel,H205,Housing (People) Services,Supplies and Services,931.00,Jul-22
Slough Borough Council,577,Upton Park Hotel,H205,Housing (People) Services,Supplies and Services,"2,856.00",Jul-22
Slough Borough Council,577,Upton Park Hotel,H205,Housing (People) Services,Supplies and Services,"1,372.00",Jul-22
Slough Borough Council,577,Upton Park Hotel,H205,Housing (People) Services,Supplies and Services,"1,372.00",Jul-22
Slough Borough Council,577,Upton Park Hotel,H205,Housing (People) Services,Supplies and Services,"1,372.00",Jul-22
Slough Borough Council,577,Upton Park Hotel,H205,Housing (People) Services,Supplies and Services,"1,372.00",Jul-22
Slough Borough Council,577,Upton Park Hotel,H205,Housing (People) Services,Supplies and Services,"1,372.00",Jul-22
Slough Borough Council,577,Upton Park Hotel,H205,Housing (People) Services,Supplies and Services,"1,372.00",Jul-22
Slough Borough Council,577,Upton Park Hotel,H205,Housing (People) Services,Supplies and Services,"1,540.00",Jul-22
Slough Borough Council,577,Upton Park Hotel,H205,Housing (People) Services,Supplies and Services,"1,372.00",Jul-22
Slough Borough Council,577,Upton Park Hotel,H205,Housing (People) Services,Supplies and Services,"1,372.00",Jul-22
Slough Borough Council,577,Upton Park Hotel,H205,Housing (People) Services,Supplies and Services,"1,372.00",Jul-22
Slough Borough Council,577,Upton Park Hotel,H205,Housing (People) Services,Supplies and Services,"1,372.00",Jul-22
Slough Borough Council,577,Upton Park Hotel,H205,Housing (People) Services,Supplies and Services,"1,372.00",Jul-22
Slough Borough Council,577,Upton Park Hotel,H205,Housing (People) Services,Supplies and Services,"-6,500.00",Jul-22
Slough Borough Council,577,Upton Park Hotel,H205,Housing (People) Services,Supplies and Services,"1,372.00",Jul-22
Slough Borough Council,577,Upton Park Hotel,H205,Housing (People) Services,Supplies and Services,"1,372.00",Jul-22
Slough Borough Council,577,Upton Park Hotel,H205,Housing (People) Services,Supplies and Services,"1,372.00",Jul-22
Slough Borough Council,577,Upton Park Hotel,H205,Housing (People) Services,Supplies and Services,"1,372.00",Jul-22
Slough Borough Council,577,Upton Park Hotel,H205,Housing (People) Services,Supplies and Services,"1,372.00",Jul-22
Slough Borough Council,577,Upton Park Hotel,H205,Housing (People) Services,Supplies and Services,"1,372.00",Jul-22
Slough Borough Council,577,Upton Park Hotel,H205,Housing (People) Services,Supplies and Services,"1,372.00",Jul-22
Slough Borough Council,577,Upton Park Hotel,H205,Housing (People) Services,Supplies and Services,"1,372.00",Jul-22
Slough Borough Council,577,Upton Park Hotel,H205,Housing (People) Services,Supplies and Services,"1,372.00",Jul-22
Slough Borough Council,577,Upton Park Hotel,H205,Housing (People) Services,Supplies and Services,"1,512.00",Jul-22
Slough Borough Council,577,Upton Park Hotel,H205,Housing (People) Services,Supplies and Services,"1,372.00",Jul-22
Slough Borough Council,577,Upton Park Hotel,H205,Housing (People) Services,Supplies and Services,"1,372.00",Jul-22
Slough Borough Council,577,Upton Park Hotel,H205,Housing (People) Services,Supplies and Services,"1,372.00",Jul-22
Slough Borough Council,804834,UXBRIDGE COLLEGE,F558,Children & Families,Supplies and Services,"15,823.00",Jul-22
Slough Borough Council,803251,Vail Williams LLP,B079,Place Strategy & Infrastructure,Supplies and Services,"4,500.00",Jul-22
Slough Borough Council,1212,Virgin Media Ltd,A03D,Adult Social Care Operations,Supplies and Services,"9,586.56",Jul-22
Slough Borough Council,1212,Virgin Media Ltd,B342,Digital and Strategic IT,Supplies and Services,"4,071.00",Jul-22
Slough Borough Council,1212,Virgin Media Ltd,B342,Digital and Strategic IT,Supplies and Services,"14,746.00",Jul-22
Slough Borough Council,1212,Virgin Media Ltd,B023,Finance & Commercial,Supplies and Services,"22,548.77",Jul-22
Slough Borough Council,1212,Virgin Media Ltd,B023,Finance & Commercial,Supplies and Services,"3,570.57",Jul-22
Slough Borough Council,1839,Vistascapes,P006,Capital,Capital Charges,"25,600.00",Jul-22
Slough Borough Council,807617,Vivedia Ltd t/a Obitus,D320,Place Operations,External Receipts,"1,375.00",Jul-22
Slough Borough Council,752,Vodafone Limited,B282,Digital and Strategic IT,Supplies and Services,"1,611.36",Jul-22
Slough Borough Council,803163,Volker Highways,P159,Capital,Capital Charges,"1,063.65",Jul-22
Slough Borough Council,803163,Volker Highways,D413,Place Strategy & Infrastructure,Supplies and Services,"13,235.19",Jul-22
Slough Borough Council,2682,Voyage 1 Limited,M26E,Adult Social Care Operations,Supplies and Services,"7,146.32",Jul-22
Slough Borough Council,2682,Voyage 1 Limited,M26E,Adult Social Care Operations,Supplies and Services,607.11,Jul-22
Slough Borough Council,2682,Voyage 1 Limited,M26E,Adult Social Care Operations,Supplies and Services,"7,146.32",Jul-22
Slough Borough Council,2682,Voyage 1 Limited,M26E,Adult Social Care Operations,Supplies and Services,"5,301.21",Jul-22
Slough Borough Council,2682,Voyage 1 Limited,M26E,Adult Social Care Operations,Supplies and Services,"5,049.28",Jul-22
Slough Borough Council,2682,Voyage 1 Limited,M26E,Adult Social Care Operations,Supplies and Services,587.53,Jul-22
Slough Borough Council,2682,Voyage 1 Limited,M26E,Adult Social Care Operations,Supplies and Services,"6,458.29",Jul-22
Slough Borough Council,2682,Voyage 1 Limited,M27F,Adult Social Care Operations,Supplies and Services,"5,016.97",Jul-22
Slough Borough Council,2682,Voyage 1 Limited,M26E,Adult Social Care Operations,Supplies and Services,"7,549.84",Jul-22
Slough Borough Council,2682,Voyage 1 Limited,M26E,Adult Social Care Operations,External Receipts,-701.66,Jul-22
Slough Borough Council,3436,Voyage Ltd,M26E,Adult Social Care Operations,Supplies and Services,"5,723.62",Jul-22
Slough Borough Council,3436,Voyage Ltd,M26E,Adult Social Care Operations,Supplies and Services,"5,538.98",Jul-22
Slough Borough Council,3436,Voyage Ltd,M26E,Adult Social Care Operations,Supplies and Services,"3,460.63",Jul-22
Slough Borough Council,3436,Voyage Ltd,M42E,Adult Social Care Operations,Supplies and Services,"5,353.99",Jul-22
Slough Borough Council,3436,Voyage Ltd,M42E,Adult Social Care Operations,Supplies and Services,"5,517.74",Jul-22
Slough Borough Council,3436,Voyage Ltd,M42E,Adult Social Care Operations,Supplies and Services,"5,108.52",Jul-22
Slough Borough Council,3436,Voyage Ltd,M42E,Adult Social Care Operations,Supplies and Services,"4,733.10",Jul-22
Slough Borough Council,3436,Voyage Ltd,M42E,Adult Social Care Operations,Supplies and Services,"5,611.55",Jul-22
Slough Borough Council,3436,Voyage Ltd,M42E,Adult Social Care Operations,Supplies and Services,"5,751.10",Jul-22
Slough Borough Council,3436,Voyage Ltd,M42E,Adult Social Care Operations,Supplies and Services,"5,628.75",Jul-22
Slough Borough Council,3436,Voyage Ltd,M42E,Adult Social Care Operations,Supplies and Services,"-16,785.35",Jul-22
Slough Borough Council,3436,Voyage Ltd,M42E,Adult Social Care Operations,External Receipts,-748.52,Jul-22
Slough Borough Council,808416,WATERMELON PROPERTIES LIMITED,H205,Housing (People) Services,Supplies and Services,900.00,Jul-22
Slough Borough Council,808416,WATERMELON PROPERTIES LIMITED,H205,Housing (People) Services,Supplies and Services,"1,800.00",Jul-22
Slough Borough Council,804372,Ways into Work,B211,Community,Supplies and Services,"72,402.21",Jul-22
Slough Borough Council,448,Wea Southern,B211,Community,Supplies and Services,"5,806.11",Jul-22
Slough Borough Council,1762,Wellingtons For Langley Hall,F550,Children & Families,Supplies and Services,"1,428.00",Jul-22
Slough Borough Council,1762,Wellingtons For Langley Hall,F909,Children & Families,Supplies and Services,"3,240.00",Jul-22
Slough Borough Council,1762,Wellingtons For Langley Hall,F909,Children & Families,Supplies and Services,"72,824.09",Jul-22
Slough Borough Council,2891,West Berkshire Council,A08R,Adult Social Care Operations,Supplies and Services,"82,810.79",Jul-22
Slough Borough Council,774,West Berkshire County Council,M36E,Adult Social Care Operations,Supplies and Services,"1,583.88",Jul-22
Slough Borough Council,774,West Berkshire County Council,M36E,Adult Social Care Operations,Supplies and Services,"1,583.88",Jul-22
Slough Borough Council,774,West Berkshire County Council,M36E,Adult Social Care Operations,Supplies and Services,"1,811.46",Jul-22
Slough Borough Council,774,West Berkshire County Council,M36E,Adult Social Care Operations,Supplies and Services,"1,583.88",Jul-22
Slough Borough Council,1749,West London Ymca,H205,Housing (People) Services,Supplies and Services,"2,440.00",Jul-22
Slough Borough Council,1749,West London Ymca,H205,Housing (People) Services,Supplies and Services,"2,040.00",Jul-22
Slough Borough Council,1749,West London Ymca,H205,Housing (People) Services,Supplies and Services,"2,320.00",Jul-22
Slough Borough Council,1749,West London Ymca,H205,Housing (People) Services,Supplies and Services,560.00,Jul-22
Slough Borough Council,1749,West London Ymca,H205,Housing (People) Services,Supplies and Services,840.00,Jul-22
Slough Borough Council,1749,West London Ymca,H205,Housing (People) Services,Supplies and Services,"1,200.00",Jul-22
Slough Borough Council,1749,West London Ymca,H205,Housing (People) Services,Supplies and Services,920.00,Jul-22
Slough Borough Council,1649,Western House Primary School,F549,Children & Families,Supplies and Services,"4,620.00",Jul-22
Slough Borough Council,1649,Western House Primary School,E610,Children & Families,Supplies and Services,"24,905.51",Jul-22
Slough Borough Council,1649,Western House Primary School,B297,Finance & Commercial,Government Grants,"10,260.00",Jul-22
Slough Borough Council,3628,White Leaf Care Ltd,M26E,Adult Social Care Operations,Supplies and Services,"4,198.28",Jul-22
Slough Borough Council,3628,White Leaf Care Ltd,M27C,Adult Social Care Operations,Supplies and Services,"7,985.00",Jul-22
Slough Borough Council,808062,Whitefriars Nursing & Residential Home,M26E,Adult Social Care Operations,Supplies and Services,"5,048.40",Jul-22
Slough Borough Council,808062,Whitefriars Nursing & Residential Home,M26E,Adult Social Care Operations,Supplies and Services,"3,365.60",Jul-22
Slough Borough Council,1753,Willow Primary School,F551,Children & Families,Supplies and Services,"4,620.00",Jul-22
Slough Borough Council,1753,Willow Primary School,F549,Children & Families,Supplies and Services,"2,940.00",Jul-22
Slough Borough Council,1753,Willow Primary School,F551,Children & Families,Supplies and Services,"4,620.00",Jul-22
Slough Borough Council,1753,Willow Primary School,F551,Children & Families,Supplies and Services,"4,620.00",Jul-22
Slough Borough Council,1753,Willow Primary School,F551,Children & Families,Supplies and Services,"4,620.00",Jul-22
Slough Borough Council,1753,Willow Primary School,E620,Children & Families,Supplies and Services,"15,265.92",Jul-22
Slough Borough Council,805209,Wilsons Horticultural Maintenance Ltd,D750,Place Operations,Supplies and Services,"25,333.98",Jul-22
Slough Borough Council,807549,Windsar Care (UK) LLP,M15F,Adult Social Care Operations,Supplies and Services,"4,071.43",Jul-22
Slough Borough Council,807549,Windsar Care (UK) LLP,M15F,Adult Social Care Operations,Supplies and Services,"4,071.43",Jul-22
Slough Borough Council,807549,Windsar Care (UK) LLP,M18C,Adult Social Care Operations,Supplies and Services,"4,178.57",Jul-22
Slough Borough Council,807549,Windsar Care (UK) LLP,M18C,Adult Social Care Operations,Supplies and Services,"3,900.00",Jul-22
Slough Borough Council,807549,Windsar Care (UK) LLP,M18C,Adult Social Care Operations,Supplies and Services,"4,071.43",Jul-22
Slough Borough Council,807549,Windsar Care (UK) LLP,M18C,Adult Social Care Operations,Supplies and Services,"4,178.57",Jul-22
Slough Borough Council,807549,Windsar Care (UK) LLP,M18C,Adult Social Care Operations,Supplies and Services,"5,314.29",Jul-22
